Body Name,Mapped No.,Cleansed Supplier Name,Family Category,Sub Category,Ap Net Value,Ap Tax Valve,Ap Gross Value,Paid Date,Cleansed Portfolio
Nottinghamshire County Council,02-00004,ENNSTONE JOHNSTON LIMITED,External Services (Highways And Culture),Earth And Stone Aggregates ,0,0.01,0.01,19-May-11,TBC
Nottinghamshire County Council,02-00019,C S L SERVICES LIMITED,Soft Facilities Management,Cleaning Equipment And Janitorial Supplies,0,-0.01,-0.01,26-May-11,TBC
Nottinghamshire County Council,02-00021,ADVANCED EDUCATIONAL DIVISION,External Services (Highways And Culture),Education Services,0,20.92,20.92,25-May-11,TBC
Nottinghamshire County Council,02-00031,FOREST FARM TREE SERVICE,External Services (Highways And Culture),Farming Forestry And Wildlife Services,0,926,926,05-May-11,TBC
Nottinghamshire County Council,02-00040,CLEVELAND POTASH LIMITED,External Services (Highways And Culture),Earth And Stone Aggregates ,0,-177.65,-177.65,10-May-11,TBC
Nottinghamshire County Council,02-00041,CLEVELAND POTASH LIMITED,External Services (Highways And Culture),Earth And Stone Aggregates ,0,-130.21,-130.21,12-May-11,TBC
Nottinghamshire County Council,02-00051,ENNSTONE JOHNSTON LIMITED,External Services (Highways And Culture),Earth And Stone Aggregates ,0,-0.01,-0.01,19-May-11,TBC
Nottinghamshire County Council,02-00061,BMG FORESTRY AND GARDEN SERVICES,External Services (Highways And Culture),Farming Forestry And Wildlife Services,0,720,720,12-May-11,TBC
Nottinghamshire County Council,02-00088,SIMS GROUP UK LIMITED,Soft Facilities Management,Scrap And Waste Materials,0,-0.01,-0.01,04-May-11,TBC
Nottinghamshire County Council,02-00095,BATCHMIX LIMITED,Hard Facilities Management ,Concrete Installation And Repair Services,0,0.01,0.01,16-May-11,TBC
Nottinghamshire County Council,02-00129,WASTE RECYCLING GROUP PLC,Soft Facilities Management,Environmental Services,0,0.01,0.01,04-May-11,TBC
Nottinghamshire County Council,02-00130,S F PLANT HIRE,External Services (Highways And Culture),Construction Plant And Equipment,0,0.6,0.6,04-May-11,TBC
Nottinghamshire County Council,02-00137,J PUGH LEWIS LIMITED,Hard Facilities Management ,Building Construction Services,0,"7,237.09","7,237.09",04-May-11,TBC
Nottinghamshire County Council,02-00153,CAPITAL CAPTURE LIMITED,Professional Services,"Reproduction, Photographic And Design Services",0,785,785,04-May-11,TBC
Nottinghamshire County Council,02-00154,PERSONNEL AND CARE BANK,People,Recruitment,0,100.56,100.56,04-May-11,TBC
Nottinghamshire County Council,02-00155,TALLON MONITORING LIMITED,ICT,Telecommunications And Media,0,"1,344.00","1,344.00",04-May-11,TBC
Nottinghamshire County Council,02-00156,PERSONNEL AND CARE BANK,People,Recruitment,0,87.44,87.44,04-May-11,TBC
Nottinghamshire County Council,02-00192,LINKLINE MAINTENANCE SERVICES LIMITED,External Services (Highways And Culture),Highways And Works,0,0.01,0.01,05-May-11,TBC
Nottinghamshire County Council,02-00195,LANDSCAPE MAINTENANCE SERVICES,External Services (Highways And Culture),Farming Forestry And Wildlife Services,0,214,214,04-May-11,TBC
Nottinghamshire County Council,02-00207,HENRY KEMP ROAD MAINTENANCE LIMITED,External Services (Highways And Culture),Highways And Works,0,0.01,0.01,05-May-11,TBC
Nottinghamshire County Council,02-00210,HENRY KEMP ROAD MAINTENANCE LIMITED,External Services (Highways And Culture),Highways And Works,0,-0.01,-0.01,17-May-11,TBC
Nottinghamshire County Council,02-00250,NEWARK CONCRETE,Hard Facilities Management ,Concrete Installation And Repair Services,0,0.01,0.01,06-May-11,TBC
Nottinghamshire County Council,02-00251,SPRAYS TRANSPORT LIMITED,Transport And Travel,Taxi,0,-0.01,-0.01,04-May-11,TBC
Nottinghamshire County Council,02-00257,SPRAYS TRANSPORT LIMITED,Transport And Travel,Taxi,0,-0.01,-0.01,04-May-11,TBC
Nottinghamshire County Council,02-00265,SPRAYS TRANSPORT LIMITED,Transport And Travel,Taxi,0,-0.01,-0.01,04-May-11,TBC
Nottinghamshire County Council,02-00281,SPECIALIST COMPUTER CENTRES LIMITED,ICT,Computer Services,0,-0.01,-0.01,04-May-11,TBC
Nottinghamshire County Council,02-00287,BASSETLAW DISTRICT COUNCIL,Professional Services,Politics And Civic Affairs,0,-315.12,-315.12,04-May-11,TBC
Nottinghamshire County Council,02-00297,SPRAYS TRANSPORT LIMITED,Transport And Travel,Taxi,0,-0.01,-0.01,04-May-11,TBC
Nottinghamshire County Council,02-00423,NEWARK CONCRETE,Hard Facilities Management ,Concrete Installation And Repair Services,0,0.01,0.01,19-May-11,TBC
Nottinghamshire County Council,02-00424,NEWARK CONCRETE,Hard Facilities Management ,Concrete Installation And Repair Services,0,-0.01,-0.01,16-May-11,TBC
Nottinghamshire County Council,02-00452,BCB COATED STONE LIMITED,External Services (Highways And Culture),Highways And Works,0,0.01,0.01,05-May-11,TBC
Nottinghamshire County Council,02-00454,BCB COATED STONE LIMITED,External Services (Highways And Culture),Highways And Works,0,-0.01,-0.01,18-May-11,TBC
Nottinghamshire County Council,02-00461,A WANDLESS SIGN SERVICES LIMITED,Soft Facilities Management,Printed Media And Signage,0,"4,154.00","4,154.00",04-May-11,TBC
Nottinghamshire County Council,02-00462,A WANDLESS SIGN SERVICES LIMITED,Soft Facilities Management,Printed Media And Signage,0,"2,624.82","2,624.82",04-May-11,TBC
Nottinghamshire County Council,02-00477,STAFFLINE RECRUITMENT LIMITED,People,Recruitment,0,0.01,0.01,10-May-11,TBC
Nottinghamshire County Council,02-00479,MANN JONES LIMITED,External Services (Highways And Culture),Construction Plant And Equipment,0,0.01,0.01,10-May-11,TBC
Nottinghamshire County Council,02-00482,MANN JONES LIMITED,External Services (Highways And Culture),Construction Plant And Equipment,0,0.01,0.01,10-May-11,TBC
Nottinghamshire County Council,02-00508,PERSONNEL AND CARE BANK,People,Recruitment,0,89.39,89.39,04-May-11,TBC
Nottinghamshire County Council,02-00513,EDEN BROWN LIMITED,People,Recruitment,0,222.39,222.39,04-May-11,TBC
Nottinghamshire County Council,02-00514,MERIDIAN BUSINESS SUPPORT LIMITED,People,Recruitment,0,112.14,112.14,04-May-11,TBC
Nottinghamshire County Council,02-00515,REDSPEED INTERNATION LIMITED,External Services (Highways And Culture),Highways And Works,0,"14,257.98","14,257.98",04-May-11,TBC
Nottinghamshire County Council,02-00516,TALLON MONITORING LIMITED,ICT,Telecommunications And Media,0,107.3,107.3,09-May-11,TBC
Nottinghamshire County Council,02-00517,REDSPEED INTERNATION LIMITED,External Services (Highways And Culture),Highways And Works,0,"14,675.85","14,675.85",04-May-11,TBC
Nottinghamshire County Council,02-00522,BLUECARE RECRUITMENT LIMITED,People,Recruitment,0,180,180,04-May-11,TBC
Nottinghamshire County Council,02-00528,ULTRA ELECTRONICS DATEL,Hard Facilities Management ,Electronic Components And Supplies,0,233.4,233.4,06-May-11,TBC
Nottinghamshire County Council,02-00544,TARMAC CENTRAL LIMITED,External Services (Highways And Culture),Highways And Works,0,-0.01,-0.01,10-May-11,TBC
Nottinghamshire County Council,02-00548,TARMAC CENTRAL LIMITED,External Services (Highways And Culture),Highways And Works,0,-0.01,-0.01,10-May-11,TBC
Nottinghamshire County Council,02-00549,TARMAC CENTRAL LIMITED,External Services (Highways And Culture),Highways And Works,0,-0.01,-0.01,10-May-11,TBC
Nottinghamshire County Council,02-00551,TARMAC CENTRAL LIMITED,External Services (Highways And Culture),Highways And Works,0,-0.01,-0.01,05-May-11,TBC
Nottinghamshire County Council,02-00554,TARMAC CENTRAL LIMITED,External Services (Highways And Culture),Highways And Works,0,-0.01,-0.01,04-May-11,TBC
Nottinghamshire County Council,02-00556,TARMAC CENTRAL LIMITED,External Services (Highways And Culture),Highways And Works,0,-0.01,-0.01,04-May-11,TBC
Nottinghamshire County Council,02-00557,TARMAC CENTRAL LIMITED,External Services (Highways And Culture),Highways And Works,0,-0.01,-0.01,04-May-11,TBC
Nottinghamshire County Council,02-00558,TARMAC CENTRAL LIMITED,External Services (Highways And Culture),Highways And Works,0,-0.01,-0.01,04-May-11,TBC
Nottinghamshire County Council,02-00560,TARMAC CENTRAL LIMITED,External Services (Highways And Culture),Highways And Works,0,-0.01,-0.01,04-May-11,TBC
Nottinghamshire County Council,02-00563,TARMAC CENTRAL LIMITED,External Services (Highways And Culture),Highways And Works,0,-0.01,-0.01,04-May-11,TBC
Nottinghamshire County Council,02-00567,TARMAC CENTRAL LIMITED,External Services (Highways And Culture),Highways And Works,0,-0.02,-0.02,04-May-11,TBC
Nottinghamshire County Council,02-00571,NEWARK CONCRETE,Hard Facilities Management ,Concrete Installation And Repair Services,0,-0.01,-0.01,19-May-11,TBC
Nottinghamshire County Council,02-00601,EGS GROUP LIMITED,Professional Services,Consultancy,0,150,150,04-May-11,TBC
Nottinghamshire County Council,02-00606,XMA LIMITED,ICT,Computer Equipment And Accessories,0,-0.01,-0.01,17-May-11,TBC
Nottinghamshire County Council,02-00611,SPECIALIST COMPUTER CENTRES LIMITED,ICT,Computer Services,0,0.02,0.02,16-May-11,TBC
Nottinghamshire County Council,02-00624,CEMEX UK OPERATIONS,External Services (Highways And Culture),Earth And Stone Aggregates ,0,-0.01,-0.01,05-May-11,TBC
Nottinghamshire County Council,02-00729,NORTHERN RECRUITMENT GROUP,People,Recruitment,0,90.43,90.43,04-May-11,TBC
Nottinghamshire County Council,02-00730,NORTHERN RECRUITMENT GROUP,People,Recruitment,0,92.22,92.22,04-May-11,TBC
Nottinghamshire County Council,02-00731,SERENE CONSULTING LIMITED,Professional Services,Consultancy,0,"2,145.00","2,145.00",04-May-11,TBC
Nottinghamshire County Council,02-00732,KONICA MINOLTA,ICT,"Printing And Publishing, Equipment And Supplies",0,85.39,85.39,09-May-11,TBC
Nottinghamshire County Council,02-00733,EDEN BROWN LIMITED,People,Recruitment,0,281.88,281.88,06-May-11,TBC
Nottinghamshire County Council,02-00736,PICKFORDS LIMITED,Hard Facilities Management ,Material Handling And Storage,0,237.69,237.69,12-May-11,TBC
Nottinghamshire County Council,02-00828,TARMAC CENTRAL LIMITED,External Services (Highways And Culture),Highways And Works,0,-0.01,-0.01,12-May-11,TBC
Nottinghamshire County Council,02-00860,EDEN BROWN LIMITED,People,Recruitment,0,351.72,351.72,06-May-11,TBC
Nottinghamshire County Council,02-00861,SPECIALIST COMPUTER CENTRES LIMITED,ICT,Computer Services,0,"4,896.56","4,896.56",04-May-11,TBC
Nottinghamshire County Council,02-00862,PROCYON LIMITED,ICT,Audio And Visual Equipment,0,190,190,10-May-11,TBC
Nottinghamshire County Council,02-00863,PROCYON LIMITED,ICT,Audio And Visual Equipment,0,715.6,715.6,10-May-11,TBC
Nottinghamshire County Council,02-00865,EDEN BROWN LIMITED,People,Recruitment,0,376.24,376.24,04-May-11,TBC
Nottinghamshire County Council,02-00866,EDEN BROWN LIMITED,People,Recruitment,0,282.12,282.12,04-May-11,TBC
Nottinghamshire County Council,02-00867,EDEN BROWN LIMITED,People,Recruitment,0,440.36,440.36,04-May-11,TBC
Nottinghamshire County Council,02-00868,EDEN BROWN LIMITED,People,Recruitment,0,286.44,286.44,04-May-11,TBC
Nottinghamshire County Council,02-00870,EDEN BROWN LIMITED,People,Recruitment,0,190.03,190.03,04-May-11,TBC
Nottinghamshire County Council,02-00871,EDEN BROWN LIMITED,People,Recruitment,0,278.28,278.28,06-May-11,TBC
Nottinghamshire County Council,02-00872,EDEN BROWN LIMITED,People,Recruitment,0,347.2,347.2,04-May-11,TBC
Nottinghamshire County Council,02-00873,EDEN BROWN LIMITED,People,Recruitment,0,517.7,517.7,04-May-11,TBC
Nottinghamshire County Council,02-00874,LEICESTERSHIRE COUNTY COUNCIL,Professional Services,Politics And Civic Affairs,0,504,504,04-May-11,TBC
Nottinghamshire County Council,02-00875,EDEN BROWN LIMITED,People,Recruitment,0,365.71,365.71,04-May-11,TBC
Nottinghamshire County Council,02-00876,MEDICARE FIRST,Care,Medical Equipment And  Supplies,0,180,180,04-May-11,TBC
Nottinghamshire County Council,02-00877,MEDICARE FIRST,Care,Medical Equipment And  Supplies,0,270.8,270.8,04-May-11,TBC
Nottinghamshire County Council,02-00878,EDEN BROWN LIMITED,People,Recruitment,0,372.59,372.59,04-May-11,TBC
Nottinghamshire County Council,02-00879,FRONTLINE,Hard Facilities Management ,Plumbing Services,0,298.15,298.15,05-May-11,TBC
Nottinghamshire County Council,02-00880,CARDEA,Care,Healthcare Services,0,179.19,179.19,04-May-11,TBC
Nottinghamshire County Council,02-00881,IAN BUGG,People,Vocational Training,0,300,300,04-May-11,TBC
Nottinghamshire County Council,02-00882,CAPITA SOCIAL CARE AND HOUSING,Care,Domiciliary Care,0,100.26,100.26,05-May-11,TBC
Nottinghamshire County Council,02-00883,CAPITA SOCIAL CARE AND HOUSING,Care,Domiciliary Care,0,108.72,108.72,04-May-11,TBC
Nottinghamshire County Council,02-00884,CAPITA SOCIAL CARE AND HOUSING,Care,Domiciliary Care,0,134.09,134.09,04-May-11,TBC
Nottinghamshire County Council,02-00885,CAPITA SOCIAL CARE AND HOUSING,Care,Domiciliary Care,0,87.18,87.18,05-May-11,TBC
Nottinghamshire County Council,02-00887,CARITAS RECRUITMENT,People,Recruitment,0,235.71,235.71,04-May-11,TBC
Nottinghamshire County Council,02-00888,KONICA MINOLTA,ICT,"Printing And Publishing, Equipment And Supplies",0,101.84,101.84,06-May-11,TBC
Nottinghamshire County Council,02-00899,TARMAC CENTRAL LIMITED,External Services (Highways And Culture),Highways And Works,0,-0.01,-0.01,12-May-11,TBC
Nottinghamshire County Council,02-00920,INSIDE OUT TECHNICAL SECURITY LIMITED,Soft Facilities Management,Security,0,-0.01,-0.01,09-May-11,TBC
Nottinghamshire County Council,02-00925,REDSPEED INTERNATION LIMITED,External Services (Highways And Culture),Highways And Works,0,"1,450.53","1,450.53",04-May-11,TBC
Nottinghamshire County Council,02-00926,CARDEA,Care,Healthcare Services,0,97.32,97.32,04-May-11,TBC
Nottinghamshire County Council,02-00927,EDEN BROWN LIMITED,People,Recruitment,0,318.34,318.34,06-May-11,TBC
Nottinghamshire County Council,02-00928,EDEN BROWN LIMITED,People,Recruitment,0,295.78,295.78,04-May-11,TBC
Nottinghamshire County Council,02-00929,EDEN BROWN LIMITED,People,Recruitment,0,222.39,222.39,05-May-11,TBC
Nottinghamshire County Council,02-00930,EDEN BROWN LIMITED,People,Recruitment,0,496,496,06-May-11,TBC
Nottinghamshire County Council,02-00931,EDEN BROWN LIMITED,People,Recruitment,0,366.51,366.51,06-May-11,TBC
Nottinghamshire County Council,02-00932,EDEN BROWN LIMITED,People,Recruitment,0,288.92,288.92,09-May-11,TBC
Nottinghamshire County Council,02-00933,EDEN BROWN LIMITED,People,Recruitment,0,229.71,229.71,06-May-11,TBC
Nottinghamshire County Council,02-00934,EDEN BROWN LIMITED,People,Recruitment,0,252.9,252.9,09-May-11,TBC
Nottinghamshire County Council,02-00935,EDEN BROWN LIMITED,People,Recruitment,0,347.52,347.52,06-May-11,TBC
Nottinghamshire County Council,02-00936,CAPITA SOCIAL CARE AND HOUSING,Care,Domiciliary Care,0,104.58,104.58,05-May-11,TBC
Nottinghamshire County Council,02-00937,CAPITA SOCIAL CARE AND HOUSING,Care,Domiciliary Care,0,101.31,101.31,05-May-11,TBC
Nottinghamshire County Council,02-00938,KONICA MINOLTA,ICT,"Printing And Publishing, Equipment And Supplies",0,94.75,94.75,12-May-11,TBC
Nottinghamshire County Council,02-00939,KONICA MINOLTA,ICT,"Printing And Publishing, Equipment And Supplies",0,108.68,108.68,06-May-11,TBC
Nottinghamshire County Council,02-00940,MEDICARE FIRST,Care,Medical Equipment And  Supplies,0,310.8,310.8,04-May-11,TBC
Nottinghamshire County Council,02-00941,CARITAS RECRUITMENT,People,Recruitment,0,267.84,267.84,05-May-11,TBC
Nottinghamshire County Council,02-00942,CAPITA SOCIAL CARE AND HOUSING,Care,Domiciliary Care,0,298.26,298.26,05-May-11,TBC
Nottinghamshire County Council,02-00943,PICKFORDS LIMITED,Hard Facilities Management ,Material Handling And Storage,0,124.58,124.58,13-May-11,TBC
Nottinghamshire County Council,02-00951,OFFICE INNOVATIONS,Soft Facilities Management,Office Supplies And Machines (Non It),0,-0.02,-0.02,04-May-11,TBC
Nottinghamshire County Council,02-00972,EMO OIL LIMITED,Hard Facilities Management ,Utilities,0,-101.67,-101.67,17-May-11,TBC
Nottinghamshire County Council,02-00980,NEWARK CONCRETE,Hard Facilities Management ,Concrete Installation And Repair Services,0,-0.01,-0.01,19-May-11,TBC
Nottinghamshire County Council,02-00981,NEWARK CONCRETE,Hard Facilities Management ,Concrete Installation And Repair Services,0,-0.01,-0.01,16-May-11,TBC
Nottinghamshire County Council,02-00983,NUNEATON SIGNS,Soft Facilities Management,Printed Media And Signage,0,0.01,0.01,24-May-11,TBC
Nottinghamshire County Council,02-01033,SWIIS (UK) LIMITED,People,Agency Staff - Care,0,128.85,128.85,04-May-11,TBC
Nottinghamshire County Council,02-01034,SWIIS (UK) LIMITED,People,Agency Staff - Care,0,95.69,95.69,04-May-11,TBC
Nottinghamshire County Council,02-01036,RICHARD BALCHIN,People,Vocational Training,0,800,800,04-May-11,TBC
Nottinghamshire County Council,02-01037,POTENTIAL UK,People,Vocational Training,0,269.8,269.8,04-May-11,TBC
Nottinghamshire County Council,02-01038,MEDICARE FIRST,Care,Medical Equipment And  Supplies,0,356.16,356.16,04-May-11,TBC
Nottinghamshire County Council,02-01039,KELWAY (UK) LIMITED,ICT,Computer Services,0,221.76,221.76,04-May-11,TBC
Nottinghamshire County Council,02-01040,CARDEA,Care,Healthcare Services,0,46,46,10-May-11,TBC
Nottinghamshire County Council,02-01041,CARDEA,Care,Healthcare Services,0,333,333,10-May-11,TBC
Nottinghamshire County Council,02-01042,EDEN BROWN LIMITED,People,Recruitment,0,365.71,365.71,13-May-11,TBC
Nottinghamshire County Council,02-01043,EDEN BROWN LIMITED,People,Recruitment,0,371.57,371.57,13-May-11,TBC
Nottinghamshire County Council,02-01044,EDEN BROWN LIMITED,People,Recruitment,0,365.71,365.71,13-May-11,TBC
Nottinghamshire County Council,02-01045,EDEN BROWN LIMITED,People,Recruitment,0,231.83,231.83,13-May-11,TBC
Nottinghamshire County Council,02-01046,EDEN BROWN LIMITED,People,Recruitment,0,155.41,155.41,13-May-11,TBC
Nottinghamshire County Council,02-01047,EDEN BROWN LIMITED,People,Recruitment,0,423.32,423.32,13-May-11,TBC
Nottinghamshire County Council,02-01048,EDEN BROWN LIMITED,People,Recruitment,0,226.38,226.38,13-May-11,TBC
Nottinghamshire County Council,02-01049,EDEN BROWN LIMITED,People,Recruitment,0,481,481,13-May-11,TBC
Nottinghamshire County Council,02-01050,XMA LIMITED,ICT,Computer Equipment And Accessories,0,118.32,118.32,13-May-11,TBC
Nottinghamshire County Council,02-01051,DLA PIPER UK LLP,Professional Services,Legal Services,0,696.6,696.6,04-May-11,TBC
Nottinghamshire County Council,02-01052,STRAW AND PEARCE SOLICITORS,Professional Services,Legal Services,0,240,240,04-May-11,TBC
Nottinghamshire County Council,02-01053,STRAW AND PEARCE SOLICITORS,Professional Services,Legal Services,0,142,142,04-May-11,TBC
Nottinghamshire County Council,02-01054,CAPITA SOCIAL CARE AND HOUSING,Care,Domiciliary Care,0,87.85,87.85,05-May-11,TBC
Nottinghamshire County Council,02-01056,EDEN BROWN LIMITED,People,Recruitment,0,281.16,281.16,13-May-11,TBC
Nottinghamshire County Council,02-01058,EDEN BROWN LIMITED,People,Recruitment,0,291.64,291.64,13-May-11,TBC
Nottinghamshire County Council,02-01059,EDEN BROWN LIMITED,People,Recruitment,0,314.82,314.82,13-May-11,TBC
Nottinghamshire County Council,02-01065,AUTOBAR UK LIMITED,Hard Facilities Management ,Prepared And Preserved Foods,0,-97.94,-97.94,16-May-11,TBC
Nottinghamshire County Council,02-01068,BCB COATED STONE LIMITED,External Services (Highways And Culture),Highways And Works,0,0.01,0.01,16-May-11,TBC
Nottinghamshire County Council,02-01082,TRANS UK SUPPLIES LIMITED,ICT,Audio And Visual Equipment,0,0.01,0.01,04-May-11,TBC
Nottinghamshire County Council,02-01083,TRANS UK SUPPLIES LIMITED,ICT,Audio And Visual Equipment,0,-0.02,-0.02,04-May-11,TBC
Nottinghamshire County Council,02-01089,ROTHERA AND BRERETON,Soft Facilities Management,Paper And Paper Products,0,-0.01,-0.01,04-May-11,TBC
Nottinghamshire County Council,02-01100,ULVERSCROFT LARGE PRINT BOOKS LIMITED,Professional Services,"Reproduction, Photographic And Design Services",0,-0.05,-0.05,04-May-11,TBC
Nottinghamshire County Council,02-01349,EXPRESS ASPHALT LIMITED,External Services (Highways And Culture),Highways And Works,0,-0.01,-0.01,16-May-11,TBC
Nottinghamshire County Council,02-01364,TARMAC CENTRAL LIMITED,External Services (Highways And Culture),Highways And Works,0,-0.01,-0.01,17-May-11,TBC
Nottinghamshire County Council,02-01367,TARMAC CENTRAL LIMITED,External Services (Highways And Culture),Highways And Works,0,-0.01,-0.01,17-May-11,TBC
Nottinghamshire County Council,02-01419,S F PLANT HIRE,External Services (Highways And Culture),Construction Plant And Equipment,0,-0.4,-0.4,23-May-11,TBC
Nottinghamshire County Council,02-01425,HULLEYS,Soft Facilities Management,Frozen Goods,0,-0.01,-0.01,04-May-11,TBC
Nottinghamshire County Council,02-01428,NATIONAL GRID GAS PLC,Hard Facilities Management ,Utilities,0,637,637,04-May-11,TBC
Nottinghamshire County Council,02-01430,EDEN BROWN LIMITED,People,Recruitment,0,372.19,372.19,06-May-11,TBC
Nottinghamshire County Council,02-01431,BEACON HEALTH AND SAFETY,Hard Facilities Management ,Health And Safety,0,140,140,17-May-11,TBC
Nottinghamshire County Council,02-01433,CARDEA,Care,Healthcare Services,0,135.08,135.08,04-May-11,TBC
Nottinghamshire County Council,02-01434,CARDEA,Care,Healthcare Services,0,90.9,90.9,04-May-11,TBC
Nottinghamshire County Council,02-01435,CARDEA,Care,Healthcare Services,0,133.06,133.06,04-May-11,TBC
Nottinghamshire County Council,02-01436,CARDEA,Care,Healthcare Services,0,103.7,103.7,10-May-11,TBC
Nottinghamshire County Council,02-01437,EDEN BROWN LIMITED,People,Recruitment,0,260.34,260.34,16-May-11,TBC
Nottinghamshire County Council,02-01438,CUNNINGHAMS CASH REGISTERS LIMITED,Professional Services,Financial And Insurance Services,0,508.42,508.42,04-May-11,TBC
Nottinghamshire County Council,02-01439,KEN BURROWS LIMITED,Hard Facilities Management ,Electrical Systems And Lighting,0,183.98,183.98,04-May-11,TBC
Nottinghamshire County Council,02-01440,COOKCO LIMITED,Soft Facilities Management,Vending Machines And Food Equipment,0,247.2,247.2,04-May-11,TBC
Nottinghamshire County Council,02-01441,SL CLOTHING LIMITED,Soft Facilities Management,Clothing,0,191.27,191.27,04-May-11,TBC
Nottinghamshire County Council,02-01445,RATTLE AND DRUM,External Services (Highways And Culture),Education Services,0,588,588,04-May-11,TBC
Nottinghamshire County Council,02-01448,B S PROJECT SERVICES LIMITED,People,Recruitment,0,85.83,85.83,04-May-11,TBC
Nottinghamshire County Council,02-01449,CAPITA SOCIAL CARE AND HOUSING,Care,Domiciliary Care,0,86.61,86.61,05-May-11,TBC
Nottinghamshire County Council,02-01450,AUTOBAR UK LIMITED,Hard Facilities Management ,Prepared And Preserved Foods,0,18.53,18.53,04-May-11,TBC
Nottinghamshire County Council,02-01451,FEET (LINE MARKERS ) LIMITED,External Services (Highways And Culture),Sports And Recreational Equipment And Supplies,0,164,164,04-May-11,TBC
Nottinghamshire County Council,02-01453,FULL CIRLCE CARE AGENCY LIMITED,People,Agency Staff - Care,0,224.19,224.19,04-May-11,TBC
Nottinghamshire County Council,02-01454,TURNER AND TOWNSEND,Professional Services,Financial And Insurance Services,0,"3,000.00","3,000.00",04-May-11,TBC
Nottinghamshire County Council,02-01455,FULL CIRLCE CARE AGENCY LIMITED,People,Agency Staff - Care,0,284.26,284.26,04-May-11,TBC
Nottinghamshire County Council,02-01456,GLASDON UK LIMITED,Soft Facilities Management,Cleaning Equipment And Janitorial Supplies,0,"1,400.00","1,400.00",04-May-11,TBC
Nottinghamshire County Council,02-01457,GLASDON UK LIMITED,Soft Facilities Management,Cleaning Equipment And Janitorial Supplies,0,"2,240.00","2,240.00",04-May-11,TBC
Nottinghamshire County Council,02-01458,COOKCO LIMITED,Soft Facilities Management,Vending Machines And Food Equipment,0,107.96,107.96,04-May-11,TBC
Nottinghamshire County Council,02-01459,BLUECARE RECRUITMENT LIMITED,People,Recruitment,0,171,171,05-May-11,TBC
Nottinghamshire County Council,02-01460,GLAZER CONSULTING,Professional Services,Consultancy,0,"1,200.00","1,200.00",12-May-11,TBC
Nottinghamshire County Council,02-01461,SHEFFIELD FAMILY LAW ASSOCIATES,Professional Services,Legal Services,0,217.72,217.72,04-May-11,TBC
Nottinghamshire County Council,02-01462,SHEFFIELD FAMILY LAW ASSOCIATES,Professional Services,Legal Services,0,135.75,135.75,04-May-11,TBC
Nottinghamshire County Council,02-01463,SHERIDAN MYERS,Professional Services,Consultancy,0,"1,437.71","1,437.71",04-May-11,TBC
Nottinghamshire County Council,02-01464,ADVANTAGE HEALTHCARE NURSING ANDCARE LIMITED,Care,Healthcare Services,0,264.55,264.55,04-May-11,TBC
Nottinghamshire County Council,02-01465,TARMAC PRECAST CONCRETE,Hard Facilities Management ,Concrete Installation And Repair Services,0,"3,491.98","3,491.98",04-May-11,TBC
Nottinghamshire County Council,02-01466,VISIT ENGLAND,Transport And Travel,Travel Agencies And Booking,0,95.4,95.4,04-May-11,TBC
Nottinghamshire County Council,02-01467,ARVAL P H H BUSINESS SOLUTIONS,Transport And Travel,Gas Fuels And Lubricants ,0,1.22,1.22,04-May-11,TBC
Nottinghamshire County Council,02-01468,ARVAL P H H BUSINESS SOLUTIONS,Transport And Travel,Gas Fuels And Lubricants ,0,0.01,0.01,04-May-11,TBC
Nottinghamshire County Council,02-01507,HULLEYS,Soft Facilities Management,Frozen Goods,0,-0.01,-0.01,04-May-11,TBC
Nottinghamshire County Council,02-01512,HULLEYS,Soft Facilities Management,Frozen Goods,0,-0.01,-0.01,04-May-11,TBC
Nottinghamshire County Council,02-01577,TARMAC CENTRAL LIMITED,External Services (Highways And Culture),Highways And Works,0,-0.01,-0.01,17-May-11,TBC
Nottinghamshire County Council,02-01582,TARMAC CENTRAL LIMITED,External Services (Highways And Culture),Highways And Works,0,-0.01,-0.01,18-May-11,TBC
Nottinghamshire County Council,02-01605,BATCHMIX LIMITED,Hard Facilities Management ,Concrete Installation And Repair Services,0,-0.01,-0.01,16-May-11,TBC
Nottinghamshire County Council,02-01914,BRAKE BROS LIMITED,Soft Facilities Management,Prepared And Preserved Foods,0,2.22,2.22,06-May-11,TBC
Nottinghamshire County Council,02-01969,RAI TECHNICAL LIMITED,Hard Facilities Management ,Tools And General Machinery,0,-0.01,-0.01,24-May-11,TBC
Nottinghamshire County Council,02-01998,CARDEA,Care,Healthcare Services,0,333,333,06-May-11,TBC
Nottinghamshire County Council,02-01999,CARDEA,Care,Healthcare Services,0,333,333,06-May-11,TBC
Nottinghamshire County Council,02-02000,CARDEA,Care,Healthcare Services,0,141.98,141.98,06-May-11,TBC
Nottinghamshire County Council,02-02001,EDEN BROWN LIMITED,People,Recruitment,0,374.95,374.95,06-May-11,TBC
Nottinghamshire County Council,02-02002,EDEN BROWN LIMITED,People,Recruitment,0,139.14,139.14,06-May-11,TBC
Nottinghamshire County Council,02-02003,EDEN BROWN LIMITED,People,Recruitment,0,217.45,217.45,12-May-11,TBC
Nottinghamshire County Council,02-02004,CARDEA,Care,Healthcare Services,0,221.68,221.68,06-May-11,TBC
Nottinghamshire County Council,02-02005,COOKCO LIMITED,Soft Facilities Management,Vending Machines And Food Equipment,0,516.9,516.9,06-May-11,TBC
Nottinghamshire County Council,02-02006,KB RECRUITMENT LIMITED,People,Recruitment,0,115.9,115.9,09-May-11,TBC
Nottinghamshire County Council,02-02007,CAPITA SOCIAL CARE AND HOUSING,Care,Domiciliary Care,0,113.52,113.52,06-May-11,TBC
Nottinghamshire County Council,02-02008,CAPITA SOCIAL CARE AND HOUSING,Care,Domiciliary Care,0,119.14,119.14,06-May-11,TBC
Nottinghamshire County Council,02-02009,CAPITA SOCIAL CARE AND HOUSING,Care,Domiciliary Care,0,113.52,113.52,06-May-11,TBC
Nottinghamshire County Council,02-02011,CAPITA SOCIAL CARE AND HOUSING,Care,Domiciliary Care,0,113.52,113.52,06-May-11,TBC
Nottinghamshire County Council,02-02012,CAPITA SOCIAL CARE AND HOUSING,Care,Domiciliary Care,0,121.2,121.2,06-May-11,TBC
Nottinghamshire County Council,02-02013,CAPITA SOCIAL CARE AND HOUSING,Care,Domiciliary Care,0,112.02,112.02,06-May-11,TBC
Nottinghamshire County Council,02-02014,CAPITA SOCIAL CARE AND HOUSING,Care,Domiciliary Care,0,127.92,127.92,06-May-11,TBC
Nottinghamshire County Council,02-02015,CARDEA,Care,Healthcare Services,0,184.87,184.87,17-May-11,TBC
Nottinghamshire County Council,02-02017,CAPITA SOCIAL CARE AND HOUSING,Care,Domiciliary Care,0,92.7,92.7,06-May-11,TBC
Nottinghamshire County Council,02-02018,XMA LIMITED,ICT,Computer Equipment And Accessories,0,186.66,186.66,13-May-11,TBC
Nottinghamshire County Council,02-02019,AUDIT COMMISSION,Professional Services,Politics And Civic Affairs,0,"4,095.60","4,095.60",06-May-11,TBC
Nottinghamshire County Council,02-02020,CENTRAL LAW TRAINING LIMITED,People,Vocational Training,0,228.04,228.04,06-May-11,TBC
Nottinghamshire County Council,02-02021,FREETH CARTWRIGHT SOLICITORS,Professional Services,Legal Services,0,310.2,310.2,06-May-11,TBC
Nottinghamshire County Council,02-02022,BROWNE JACOBSON LLP,Professional Services,Legal Services,0,213,213,06-May-11,TBC
Nottinghamshire County Council,02-02023,CARTER BROWN ASSOCIATES,Professional Services,Legal Services,0,114.46,114.46,06-May-11,TBC
Nottinghamshire County Council,02-02024,BROWNE JACOBSON LLP,Professional Services,Legal Services,0,114,114,06-May-11,TBC
Nottinghamshire County Council,02-02025,EDEN BROWN LIMITED,People,Recruitment,0,481,481,19-May-11,TBC
Nottinghamshire County Council,02-02026,EDEN BROWN LIMITED,People,Recruitment,0,295.78,295.78,19-May-11,TBC
Nottinghamshire County Council,02-02027,EDEN BROWN LIMITED,People,Recruitment,0,365.71,365.71,19-May-11,TBC
Nottinghamshire County Council,02-02028,EDEN BROWN LIMITED,People,Recruitment,0,343.2,343.2,19-May-11,TBC
Nottinghamshire County Council,02-02029,WASTECYCLE LIMITED,Soft Facilities Management,Environmental Services,0,120.6,120.6,06-May-11,TBC
Nottinghamshire County Council,02-02030,SPRING TECHNOLOGY STAFFING SERVICES,People,Recruitment,0,278.4,278.4,06-May-11,TBC
Nottinghamshire County Council,02-02031,CARDEA,Care,Healthcare Services,0,88.16,88.16,10-May-11,TBC
Nottinghamshire County Council,02-02032,CARITAS RECRUITMENT,People,Recruitment,0,931.29,931.29,18-May-11,TBC
Nottinghamshire County Council,02-02033,EDEN BROWN LIMITED,People,Recruitment,0,229.36,229.36,19-May-11,TBC
Nottinghamshire County Council,02-02034,FRONTLINE,Hard Facilities Management ,Plumbing Services,0,298.15,298.15,18-May-11,TBC
Nottinghamshire County Council,02-02036,WATCH-IT SECURITY SERVICES,Soft Facilities Management,Security,0,273,273,06-May-11,TBC
Nottinghamshire County Council,02-02045,S R C L LIMITED,Soft Facilities Management,Scrap And Waste Materials,0,"3,209.03","3,209.03",05-May-11,TBC
Nottinghamshire County Council,02-02060,HULLEYS,Soft Facilities Management,Frozen Goods,0,-0.01,-0.01,06-May-11,TBC
Nottinghamshire County Council,02-02062,STONE COMPUTERS LIMITED,ICT,Hardware,0,-0.01,-0.01,25-May-11,TBC
Nottinghamshire County Council,02-02064,PULSE,External Services (Highways And Culture),Sports And Recreational Equipment And Supplies,0,"7,147.80","7,147.80",06-May-11,TBC
Nottinghamshire County Council,02-02143,TOTAL UK LIMITED,Transport And Travel,Gas Fuels And Lubricants ,0,-0.01,-0.01,09-May-11,TBC
Nottinghamshire County Council,02-02266,SB ELECTRONIC SYSTEMS LIMITED,Hard Facilities Management ,Electronic Components And Supplies,0,"3,256.40","3,256.40",09-May-11,TBC
Nottinghamshire County Council,02-02267,PICKFORDS LIMITED,Hard Facilities Management ,Material Handling And Storage,0,205.52,205.52,18-May-11,TBC
Nottinghamshire County Council,02-02268,COAL 4 ENERGY,Hard Facilities Management ,Utilities,0,37.06,37.06,09-May-11,TBC
Nottinghamshire County Council,02-02269,COAL 4 ENERGY,Hard Facilities Management ,Utilities,0,45.37,45.37,09-May-11,TBC
Nottinghamshire County Council,02-02270,TNT POST UK LIMITED,Soft Facilities Management,Mail And Couriers,0,370.2,370.2,09-May-11,TBC
Nottinghamshire County Council,02-02273,EMERY JOHNSON SOLICITORS,Professional Services,Legal Services,0,230.66,230.66,09-May-11,TBC
Nottinghamshire County Council,02-02274,CAPITA SOCIAL CARE AND HOUSING,Care,Domiciliary Care,0,113.52,113.52,12-May-11,TBC
Nottinghamshire County Council,02-02275,CAPITA SOCIAL CARE AND HOUSING,Care,Domiciliary Care,0,113.52,113.52,12-May-11,TBC
Nottinghamshire County Council,02-02276,7KS CORPORATE AND FINANCE,Professional Services,Financial And Insurance Services,0,594.9,594.9,09-May-11,TBC
Nottinghamshire County Council,02-02277,7KS CORPORATE AND FINANCE,Professional Services,Financial And Insurance Services,0,214.16,214.16,17-May-11,TBC
Nottinghamshire County Council,02-02278,EDC (NOTTINGHAM) LIMITED,People,Recruitment,0,769.6,769.6,09-May-11,TBC
Nottinghamshire County Council,02-02279,EDEN BROWN LIMITED,People,Recruitment,0,240.71,240.71,26-May-11,TBC
Nottinghamshire County Council,02-02280,EDEN BROWN LIMITED,People,Recruitment,0,310.18,310.18,26-May-11,TBC
Nottinghamshire County Council,02-02281,EDEN BROWN LIMITED,People,Recruitment,0,277.88,277.88,26-May-11,TBC
Nottinghamshire County Council,02-02282,EDEN BROWN LIMITED,People,Recruitment,0,186.35,186.35,26-May-11,TBC
Nottinghamshire County Council,02-02283,BADENOCH AND CLARK,People,Recruitment,0,558,558,09-May-11,TBC
Nottinghamshire County Council,02-02284,BADENOCH AND CLARK,People,Recruitment,0,496,496,09-May-11,TBC
Nottinghamshire County Council,02-02285,BADENOCH AND CLARK,People,Recruitment,0,496,496,09-May-11,TBC
Nottinghamshire County Council,02-02286,BADENOCH AND CLARK,People,Recruitment,0,620,620,09-May-11,TBC
Nottinghamshire County Council,02-02287,BADENOCH AND CLARK,People,Recruitment,0,620,620,09-May-11,TBC
Nottinghamshire County Council,02-02288,BADENOCH AND CLARK,People,Recruitment,0,620,620,09-May-11,TBC
Nottinghamshire County Council,02-02289,BADENOCH AND CLARK,People,Recruitment,0,558,558,09-May-11,TBC
Nottinghamshire County Council,02-02290,EMERY JOHNSON SOLICITORS,Professional Services,Legal Services,0,197.87,197.87,09-May-11,TBC
Nottinghamshire County Council,02-02291,REED EMPLOYMENT PLC,People,Recruitment,0,199.8,199.8,09-May-11,TBC
Nottinghamshire County Council,02-02293,BADENOCH AND CLARK,People,Recruitment,0,273.33,273.33,09-May-11,TBC
Nottinghamshire County Council,02-02294,CRANTON ELECTRICAL CO LIMITED,Hard Facilities Management ,Electrical Systems And Lighting,0,138.99,138.99,09-May-11,TBC
Nottinghamshire County Council,02-02296,NOTTINGHAM SECURITY LIMITED,Soft Facilities Management,Security,0,330,330,09-May-11,TBC
Nottinghamshire County Council,02-02301,KONICA MINOLTA,ICT,"Printing And Publishing, Equipment And Supplies",0,172.69,172.69,18-May-11,TBC
Nottinghamshire County Council,02-02302,KONICA MINOLTA,ICT,"Printing And Publishing, Equipment And Supplies",0,90.06,90.06,09-May-11,TBC
Nottinghamshire County Council,02-02303,KONICA MINOLTA,ICT,"Printing And Publishing, Equipment And Supplies",0,375.52,375.52,13-May-11,TBC
Nottinghamshire County Council,02-02305,CARTER BROWN ASSOCIATES,Professional Services,Legal Services,0,198.19,198.19,09-May-11,TBC
Nottinghamshire County Council,02-02306,CARTER BROWN ASSOCIATES,Professional Services,Legal Services,0,106.5,106.5,09-May-11,TBC
Nottinghamshire County Council,02-02310,PERSONNEL AND CARE BANK,People,Recruitment,0,111.75,111.75,09-May-11,TBC
Nottinghamshire County Council,02-02336,BRITISH TELECOMMUNICATIONS PLC,ICT,Telecommunications And Media,0,-0.01,-0.01,12-May-11,TBC
Nottinghamshire County Council,02-02368,SHEFFIELD FAMILY LAW ASSOCIATES,Professional Services,Legal Services,0,0.01,0.01,09-May-11,TBC
Nottinghamshire County Council,02-02371,SHEFFIELD FAMILY LAW ASSOCIATES,Professional Services,Legal Services,0,0.01,0.01,09-May-11,TBC
Nottinghamshire County Council,02-02393,TURPIN SMALE,TBC,TBC,0,9.57,9.57,17-May-11,TBC
Nottinghamshire County Council,02-02404,COMBINED OFFICE INTERIORS LIMITED,Soft Facilities Management,Office Supplies And Machines (Non It),0,-0.01,-0.01,10-May-11,TBC
Nottinghamshire County Council,02-02428,SCHRODER INVESTMENT MANAGEMENT LIMITED,Professional Services,Financial And Insurance Services,0,-0.01,-0.01,10-May-11,TBC
Nottinghamshire County Council,02-02432,ACCO U K LIMITED SERVICES DIVISION,Soft Facilities Management,Office Supplies And Machines (Non It),0,-0.02,-0.02,10-May-11,TBC
Nottinghamshire County Council,02-02448,KONICA MINOLTA,ICT,"Printing And Publishing, Equipment And Supplies",0,110.6,110.6,16-May-11,TBC
Nottinghamshire County Council,02-02449,TRI-X-CHILDCARE,Care,Infant Or Child Daycare Services,0,160,160,10-May-11,TBC
Nottinghamshire County Council,02-02452,H P C C S LIMITED,Soft Facilities Management,Cleaning Equipment And Janitorial Supplies,0,95.39,95.39,17-May-11,TBC
Nottinghamshire County Council,02-02453,GAINSBOROUGH SPECIALIST BATHING,Hard Facilities Management ,Plumbing Services,0,999,999,10-May-11,TBC
Nottinghamshire County Council,02-02454,SEISIN,Soft Facilities Management,Security,0,"1,534.05","1,534.05",16-May-11,TBC
Nottinghamshire County Council,02-02455,ASHFIELD DISTRICT COUNCIL,Professional Services,Politics And Civic Affairs,0,"2,000.00","2,000.00",10-May-11,TBC
Nottinghamshire County Council,02-02459,LINDLEY CATERING LIMITED,Soft Facilities Management,Restaurants And Catering,0,166.67,166.67,10-May-11,TBC
Nottinghamshire County Council,02-02461,KB RECRUITMENT LIMITED,People,Recruitment,0,226.62,226.62,10-May-11,TBC
Nottinghamshire County Council,02-02490,TUNSTALL TELECOM LIMITED,ICT,Telecommunications And Media,0,720.07,720.07,10-May-11,TBC
Nottinghamshire County Council,02-02501,CORONA ENERGY RETAIL LIMITED,Hard Facilities Management ,Utilities,0,-0.01,-0.01,10-May-11,TBC
Nottinghamshire County Council,02-02680,NTL GROUP LIMITED,ICT,Telecommunications And Media,0,0.01,0.01,11-May-11,TBC
Nottinghamshire County Council,02-02681,STREETMASTER PRODUCTS,Soft Facilities Management,Furniture And Furnishings,0,287.1,287.1,11-May-11,TBC
Nottinghamshire County Council,02-02682,CARDEA,Care,Healthcare Services,0,153.44,153.44,12-May-11,TBC
Nottinghamshire County Council,02-02683,CARDEA,Care,Healthcare Services,0,110.6,110.6,12-May-11,TBC
Nottinghamshire County Council,02-02684,CARDEA,Care,Healthcare Services,0,110.6,110.6,17-May-11,TBC
Nottinghamshire County Council,02-02685,EDEN BROWN LIMITED,People,Recruitment,0,268.92,268.92,16-May-11,TBC
Nottinghamshire County Council,02-02688,B G PETCHELL LIMITED,Hard Facilities Management ,Carpentry Services,0,475.6,475.6,12-May-11,TBC
Nottinghamshire County Council,02-02691,EDEN BROWN LIMITED,People,Recruitment,0,268.92,268.92,19-May-11,TBC
Nottinghamshire County Council,02-02692,EDEN BROWN LIMITED,People,Recruitment,0,365.71,365.71,19-May-11,TBC
Nottinghamshire County Council,02-02693,EDEN BROWN LIMITED,People,Recruitment,0,268.92,268.92,19-May-11,TBC
Nottinghamshire County Council,02-02694,EDEN BROWN LIMITED,People,Recruitment,0,365.71,365.71,19-May-11,TBC
Nottinghamshire County Council,02-02695,EDEN BROWN LIMITED,People,Recruitment,0,434.52,434.52,19-May-11,TBC
Nottinghamshire County Council,02-02696,EDEN BROWN LIMITED,People,Recruitment,0,309.04,309.04,19-May-11,TBC
Nottinghamshire County Council,02-02697,EDEN BROWN LIMITED,People,Recruitment,0,222.39,222.39,20-May-11,TBC
Nottinghamshire County Council,02-02699,CODNOR HORTICULTURAL (WHOLESALE)SUPPLIES,External Services (Highways And Culture),Plant And Animal Supplies,0,88.48,88.48,11-May-11,TBC
Nottinghamshire County Council,02-02700,MANSFIELD DISTRICT COUNCIL,Professional Services,Politics And Civic Affairs,0,120.16,120.16,12-May-11,TBC
Nottinghamshire County Council,02-02701,CAPITA SOCIAL CARE AND HOUSING,Care,Domiciliary Care,0,231.34,231.34,12-May-11,TBC
Nottinghamshire County Council,02-02702,TMH (WEST HALLAM) LIMITED,People,Agency Staff - Manual,0,415.06,415.06,11-May-11,TBC
Nottinghamshire County Council,02-02703,CAPITA SOCIAL CARE AND HOUSING,Care,Domiciliary Care,0,113.52,113.52,12-May-11,TBC
Nottinghamshire County Council,02-02704,AMI EDUCATION SOLUTIONS,External Services (Highways And Culture),Education Services,0,148.9,148.9,12-May-11,TBC
Nottinghamshire County Council,02-02705,AMI EDUCATION SOLUTIONS,External Services (Highways And Culture),Education Services,0,137.73,137.73,12-May-11,TBC
Nottinghamshire County Council,02-02707,LEAVESLEY CONTAINER SERVICES,Hard Facilities Management ,Material Handling And Storage,0,427,427,19-May-11,TBC
Nottinghamshire County Council,02-02708,AU MEDIA COMMS,ICT,Telecommunications And Media,0,"1,920.00","1,920.00",12-May-11,TBC
Nottinghamshire County Council,02-02711,CARDEA,Care,Healthcare Services,0,111.62,111.62,12-May-11,TBC
Nottinghamshire County Council,02-02712,CARITAS RECRUITMENT,People,Recruitment,0,547.6,547.6,18-May-11,TBC
Nottinghamshire County Council,02-02713,PREMIER PETS HOTEL,External Services (Highways And Culture),Plant And Animal Supplies,0,168.89,168.89,11-May-11,TBC
Nottinghamshire County Council,02-02718,JETCRAFT PERFORMANCE LIMITED,External Services (Highways And Culture),Sports And Recreational Equipment And Supplies,0,119,119,10-May-11,TBC
Nottinghamshire County Council,02-02719,KB RECRUITMENT LIMITED,People,Recruitment,0,145.92,145.92,11-May-11,TBC
Nottinghamshire County Council,02-02720,CANNON PEST CONTROL,External Services (Highways And Culture),Farming Forestry And Wildlife Services,0,88.3,88.3,11-May-11,TBC
Nottinghamshire County Council,02-02721,PHS GROUP PLC,Soft Facilities Management,Cleaning Equipment And Janitorial Supplies,0,317.23,317.23,11-May-11,TBC
Nottinghamshire County Council,02-02722,BROWNE JACOBSON LLP,Professional Services,Legal Services,0,864,864,11-May-11,TBC
Nottinghamshire County Council,02-02723,AUDIT COMMISSION,Professional Services,Politics And Civic Affairs,0,"4,041.60","4,041.60",12-May-11,TBC
Nottinghamshire County Council,02-02724,TNT POST UK LIMITED,Soft Facilities Management,Mail And Couriers,0,470.83,470.83,11-May-11,TBC
Nottinghamshire County Council,02-02727,PERSONAL STORAGE NOTTINGHAM LIMITED,Hard Facilities Management ,Material Handling And Storage,0,124.41,124.41,11-May-11,TBC
Nottinghamshire County Council,02-02728,WRAGGE AND CO,Professional Services,Legal Services,0,695.04,695.04,12-May-11,TBC
Nottinghamshire County Council,02-02729,NCC SERVICES LIMITED,ICT,Computer Equipment And Accessories,0,159,159,11-May-11,TBC
Nottinghamshire County Council,02-02730,CARTER BROWN ASSOCIATES,Professional Services,Legal Services,0,192.6,192.6,11-May-11,TBC
Nottinghamshire County Council,02-02731,DODDS AND PARTNERS,Care,Medical Equipment And  Supplies,0,100.65,100.65,12-May-11,TBC
Nottinghamshire County Council,02-02732,WARD FENCING LIMITED,Hard Facilities Management ,Building Construction Services,0,660,660,11-May-11,TBC
Nottinghamshire County Council,02-02733,WARD FENCING LIMITED,Hard Facilities Management ,Building Construction Services,0,602,602,11-May-11,TBC
Nottinghamshire County Council,02-02734,SQUIDCARD LIMITED,Professional Services,Financial And Insurance Services,0,"2,815.72","2,815.72",13-May-11,TBC
Nottinghamshire County Council,02-02735,CANDOR SERVICES LIMITED,Soft Facilities Management,Cleaning Equipment And Janitorial Supplies,0,"1,198.00","1,198.00",11-May-11,TBC
Nottinghamshire County Council,02-02736,@HOME CHILDCARE LIMITED,Care,Infant Or Child Daycare Services,0,144,144,12-May-11,TBC
Nottinghamshire County Council,02-02737,CAPITA SOCIAL CARE AND HOUSING,Care,Domiciliary Care,0,87.18,87.18,18-May-11,TBC
Nottinghamshire County Council,02-02738,ALEXANDER LEIGH CONSULTING LIMITED,Professional Services,Consultancy,0,265.4,265.4,11-May-11,TBC
Nottinghamshire County Council,02-02739,TMH (WEST HALLAM) LIMITED,People,Agency Staff - Manual,0,413.06,413.06,11-May-11,TBC
Nottinghamshire County Council,02-02744,EXPERIENCE NOTTINGHAMSHIRE LIMITED,Professional Services,Politics And Civic Affairs,0,"11,800.00","11,800.00",11-May-11,TBC
Nottinghamshire County Council,02-02749,PSB DESIGN AND PRINT CONSULTANTS LIMITED,Professional Services,"Reproduction, Photographic And Design Services",0,88,88,12-May-11,TBC
Nottinghamshire County Council,02-02750,SPRING TECHNOLOGY STAFFING SERVICES,People,Recruitment,0,565,565,11-May-11,TBC
Nottinghamshire County Council,02-02751,DRAEFERN LIMITED T/A RIGHT4STAFF,People,Recruitment,0,84.17,84.17,11-May-11,TBC
Nottinghamshire County Council,02-02752,DRAEFERN LIMITED T/A RIGHT4STAFF,People,Recruitment,0,86.52,86.52,11-May-11,TBC
Nottinghamshire County Council,02-02753,DRAEFERN LIMITED T/A RIGHT4STAFF,People,Recruitment,0,86.52,86.52,11-May-11,TBC
Nottinghamshire County Council,02-02754,DRAEFERN LIMITED T/A RIGHT4STAFF,People,Recruitment,0,125.8,125.8,11-May-11,TBC
Nottinghamshire County Council,02-02755,DRAEFERN LIMITED T/A RIGHT4STAFF,People,Recruitment,0,84.17,84.17,11-May-11,TBC
Nottinghamshire County Council,02-02756,CAPITA SOCIAL CARE AND HOUSING,Care,Domiciliary Care,0,134.09,134.09,18-May-11,TBC
Nottinghamshire County Council,02-02757,CAPITA SOCIAL CARE AND HOUSING,Care,Domiciliary Care,0,134.09,134.09,12-May-11,TBC
Nottinghamshire County Council,02-02775,ROYAL MAIL GROUP PLC,Soft Facilities Management,Mail And Couriers,0,-156,-156,31-May-11,TBC
Nottinghamshire County Council,02-02778,DAWSON RENTALS PORTABLE COLD STORAGE LIMITED,Soft Facilities Management,Vending Machines And Food Equipment,0,-0.01,-0.01,11-May-11,TBC
Nottinghamshire County Council,02-02781,BRITISH TELECOMMUNICATIONS PLC,ICT,Telecommunications And Media,0,-0.01,-0.01,11-May-11,TBC
Nottinghamshire County Council,02-02876,BRITISH OXYGEN COMPANY LIMITED,External Services (Highways And Culture),Chemicals And Gases,0,0.01,0.01,12-May-11,TBC
Nottinghamshire County Council,02-02877,BRITISH OXYGEN COMPANY LIMITED,External Services (Highways And Culture),Chemicals And Gases,0,-0.01,-0.01,12-May-11,TBC
Nottinghamshire County Council,02-02878,BRITISH OXYGEN COMPANY LIMITED,External Services (Highways And Culture),Chemicals And Gases,0,0.01,0.01,12-May-11,TBC
Nottinghamshire County Council,02-02879,BRITISH OXYGEN COMPANY LIMITED,External Services (Highways And Culture),Chemicals And Gases,0,-0.01,-0.01,12-May-11,TBC
Nottinghamshire County Council,02-02888,TAXICOVER (UK) LIMITED T/A CHRIS'S TAXIS,Transport And Travel,Taxi,0,129.49,129.49,11-May-11,TBC
Nottinghamshire County Council,02-02890,TAXICOVER (UK) LIMITED T/A CHRIS'S TAXIS,Transport And Travel,Taxi,0,323.96,323.96,11-May-11,TBC
Nottinghamshire County Council,02-02894,TAXICOVER (UK) LIMITED T/A CHRIS'S TAXIS,Transport And Travel,Taxi,0,192.28,192.28,11-May-11,TBC
Nottinghamshire County Council,02-02896,TAXICOVER (UK) LIMITED T/A CHRIS'S TAXIS,Transport And Travel,Taxi,0,272.8,272.8,11-May-11,TBC
Nottinghamshire County Council,02-02904,TAXICOVER (UK) LIMITED T/A CHRIS'S TAXIS,Transport And Travel,Taxi,0,170.41,170.41,11-May-11,TBC
Nottinghamshire County Council,02-02907,CABLINE UK LIMITED,Transport And Travel,Taxi,0,132,132,11-May-11,TBC
Nottinghamshire County Council,02-02908,CABLINE UK LIMITED,Transport And Travel,Taxi,0,172.44,172.44,11-May-11,TBC
Nottinghamshire County Council,02-02909,CABLINE UK LIMITED,Transport And Travel,Taxi,0,255.46,255.46,11-May-11,TBC
Nottinghamshire County Council,02-02910,CABLINE UK LIMITED,Transport And Travel,Taxi,0,99,99,11-May-11,TBC
Nottinghamshire County Council,02-02911,CABLINE UK LIMITED,Transport And Travel,Taxi,0,185.72,185.72,11-May-11,TBC
Nottinghamshire County Council,02-02912,CENTRAL CARS (NOTTINGHAM) LIMITED,Transport And Travel,Taxi,0,105.6,105.6,11-May-11,TBC
Nottinghamshire County Council,02-02913,FIRST 4 CARE LIMITED,Care,Domiciliary Care,0,165,165,12-May-11,TBC
Nottinghamshire County Council,02-02916,MARRIOTTS TRAVEL,Transport And Travel,Travel Agencies And Booking,0,306.59,306.59,11-May-11,TBC
Nottinghamshire County Council,02-02917,MARRIOTTS TRAVEL,Transport And Travel,Travel Agencies And Booking,0,286.66,286.66,11-May-11,TBC
Nottinghamshire County Council,02-02919,MARTINS TRAVEL,Transport And Travel,Travel Agencies And Booking,0,259.8,259.8,11-May-11,TBC
Nottinghamshire County Council,02-02922,ACE OF MANSFIELD LIMITED,Transport And Travel,Taxi,0,89.65,89.65,11-May-11,TBC
Nottinghamshire County Council,02-02923,ACE OF MANSFIELD LIMITED,Transport And Travel,Taxi,0,110,110,11-May-11,TBC
Nottinghamshire County Council,02-02924,ACE OF MANSFIELD LIMITED,Transport And Travel,Taxi,0,96,96,11-May-11,TBC
Nottinghamshire County Council,02-02925,NEWARK - ACORN TRAVEL,Transport And Travel,Travel Agencies And Booking,0,106.13,106.13,11-May-11,TBC
Nottinghamshire County Council,02-02928,ARROW SPECIALISED TRANSPORT LIMITED,Transport And Travel,Bus,0,249.24,249.24,11-May-11,TBC
Nottinghamshire County Council,02-02929,ARROW SPECIALISED TRANSPORT LIMITED,Transport And Travel,Bus,0,124.02,124.02,11-May-11,TBC
Nottinghamshire County Council,02-02930,ARROW SPECIALISED TRANSPORT LIMITED,Transport And Travel,Bus,0,211.06,211.06,11-May-11,TBC
Nottinghamshire County Council,02-02932,ARROW SPECIALISED TRANSPORT LIMITED,Transport And Travel,Bus,0,168.04,168.04,11-May-11,TBC
Nottinghamshire County Council,02-02934,ARROW SPECIALISED TRANSPORT LIMITED,Transport And Travel,Bus,0,182.5,182.5,11-May-11,TBC
Nottinghamshire County Council,02-02935,ARROW SPECIALISED TRANSPORT LIMITED,Transport And Travel,Bus,0,216.68,216.68,11-May-11,TBC
Nottinghamshire County Council,02-02936,ARROW SPECIALISED TRANSPORT LIMITED,Transport And Travel,Bus,0,147.4,147.4,11-May-11,TBC
Nottinghamshire County Council,02-02937,ARROW SPECIALISED TRANSPORT LIMITED,Transport And Travel,Bus,0,272.6,272.6,11-May-11,TBC
Nottinghamshire County Council,02-02938,ARROW SPECIALISED TRANSPORT LIMITED,Transport And Travel,Bus,0,267.23,267.23,11-May-11,TBC
Nottinghamshire County Council,02-02939,ARROW SPECIALISED TRANSPORT LIMITED,Transport And Travel,Bus,0,99.75,99.75,11-May-11,TBC
Nottinghamshire County Council,02-02942,ARROW SPECIALISED TRANSPORT LIMITED,Transport And Travel,Bus,0,205.63,205.63,11-May-11,TBC
Nottinghamshire County Council,02-02943,ARROW SPECIALISED TRANSPORT LIMITED,Transport And Travel,Bus,0,254.32,254.32,11-May-11,TBC
Nottinghamshire County Council,02-02944,ARROW SPECIALISED TRANSPORT LIMITED,Transport And Travel,Bus,0,294.21,294.21,11-May-11,TBC
Nottinghamshire County Council,02-02945,ARROW SPECIALISED TRANSPORT LIMITED,Transport And Travel,Bus,0,291.85,291.85,11-May-11,TBC
Nottinghamshire County Council,02-02946,ARROW SPECIALISED TRANSPORT LIMITED,Transport And Travel,Bus,0,327.15,327.15,11-May-11,TBC
Nottinghamshire County Council,02-02947,ARROW SPECIALISED TRANSPORT LIMITED,Transport And Travel,Bus,0,221.21,221.21,11-May-11,TBC
Nottinghamshire County Council,02-02948,ARROW SPECIALISED TRANSPORT LIMITED,Transport And Travel,Bus,0,295.11,295.11,11-May-11,TBC
Nottinghamshire County Council,02-02949,ARROW SPECIALISED TRANSPORT LIMITED,Transport And Travel,Bus,0,195.45,195.45,11-May-11,TBC
Nottinghamshire County Council,02-02951,ARROW SPECIALISED TRANSPORT LIMITED,Transport And Travel,Bus,0,252.78,252.78,11-May-11,TBC
Nottinghamshire County Council,02-02952,ARROW SPECIALISED TRANSPORT LIMITED,Transport And Travel,Bus,0,226.16,226.16,11-May-11,TBC
Nottinghamshire County Council,02-02953,ARROW SPECIALISED TRANSPORT LIMITED,Transport And Travel,Bus,0,296.87,296.87,11-May-11,TBC
Nottinghamshire County Council,02-02954,ARROW SPECIALISED TRANSPORT LIMITED,Transport And Travel,Bus,0,261.95,261.95,11-May-11,TBC
Nottinghamshire County Council,02-02955,ARROW SPECIALISED TRANSPORT LIMITED,Transport And Travel,Bus,0,199.96,199.96,11-May-11,TBC
Nottinghamshire County Council,02-02956,ARROW SPECIALISED TRANSPORT LIMITED,Transport And Travel,Bus,0,256.94,256.94,11-May-11,TBC
Nottinghamshire County Council,02-02957,ARROW SPECIALISED TRANSPORT LIMITED,Transport And Travel,Bus,0,360.84,360.84,11-May-11,TBC
Nottinghamshire County Council,02-02958,ARROW SPECIALISED TRANSPORT LIMITED,Transport And Travel,Bus,0,258.72,258.72,11-May-11,TBC
Nottinghamshire County Council,02-02959,ARROW SPECIALISED TRANSPORT LIMITED,Transport And Travel,Bus,0,176.44,176.44,11-May-11,TBC
Nottinghamshire County Council,02-02960,ARROW SPECIALISED TRANSPORT LIMITED,Transport And Travel,Bus,0,250.8,250.8,11-May-11,TBC
Nottinghamshire County Council,02-02961,ARROW SPECIALISED TRANSPORT LIMITED,Transport And Travel,Bus,0,171.6,171.6,11-May-11,TBC
Nottinghamshire County Council,02-02962,ARROW SPECIALISED TRANSPORT LIMITED,Transport And Travel,Bus,0,184.8,184.8,11-May-11,TBC
Nottinghamshire County Council,02-02963,ARROW SPECIALISED TRANSPORT LIMITED,Transport And Travel,Bus,0,247.28,247.28,11-May-11,TBC
Nottinghamshire County Council,02-02964,ARROW SPECIALISED TRANSPORT LIMITED,Transport And Travel,Bus,0,190.96,190.96,11-May-11,TBC
Nottinghamshire County Council,02-02966,BRIDGES TRANSPORT SERVICES,Transport And Travel,Bus,0,145.22,145.22,11-May-11,TBC
Nottinghamshire County Council,02-02967,BRIDGES TRANSPORT SERVICES,Transport And Travel,Bus,0,111.68,111.68,11-May-11,TBC
Nottinghamshire County Council,02-02968,BRIDGES TRANSPORT SERVICES,Transport And Travel,Bus,0,163.88,163.88,11-May-11,TBC
Nottinghamshire County Council,02-02969,BRIDGES TRANSPORT SERVICES,Transport And Travel,Bus,0,183.48,183.48,11-May-11,TBC
Nottinghamshire County Council,02-02970,BRIDGES TRANSPORT SERVICES,Transport And Travel,Bus,0,143.31,143.31,11-May-11,TBC
Nottinghamshire County Council,02-02971,BRIDGES TRANSPORT SERVICES,Transport And Travel,Bus,0,151.47,151.47,11-May-11,TBC
Nottinghamshire County Council,02-02972,D G PRIVATE HIRE LIMITED,Transport And Travel,Taxi,0,247.52,247.52,11-May-11,TBC
Nottinghamshire County Council,02-02973,D G PRIVATE HIRE LIMITED,Transport And Travel,Taxi,0,265.32,265.32,11-May-11,TBC
Nottinghamshire County Council,02-02974,D G PRIVATE HIRE LIMITED,Transport And Travel,Taxi,0,221.1,221.1,11-May-11,TBC
Nottinghamshire County Council,02-02975,D G PRIVATE HIRE LIMITED,Transport And Travel,Taxi,0,322.81,322.81,11-May-11,TBC
Nottinghamshire County Council,02-02976,D G PRIVATE HIRE LIMITED,Transport And Travel,Taxi,0,132.66,132.66,11-May-11,TBC
Nottinghamshire County Council,02-02977,D G PRIVATE HIRE LIMITED,Transport And Travel,Taxi,0,176.88,176.88,11-May-11,TBC
Nottinghamshire County Council,02-02978,D G PRIVATE HIRE LIMITED,Transport And Travel,Taxi,0,349.49,349.49,11-May-11,TBC
Nottinghamshire County Council,02-02987,HORIZON TRAVEL,Transport And Travel,Travel Agencies And Booking,0,165.78,165.78,11-May-11,TBC
Nottinghamshire County Council,02-02999,SPRAYS TRANSPORT LIMITED,Transport And Travel,Taxi,0,224.4,224.4,12-May-11,TBC
Nottinghamshire County Council,02-03000,SPRAYS TRANSPORT LIMITED,Transport And Travel,Taxi,0,193.6,193.6,12-May-11,TBC
Nottinghamshire County Council,02-03001,SPRAYS TRANSPORT LIMITED,Transport And Travel,Taxi,0,202.4,202.4,12-May-11,TBC
Nottinghamshire County Council,02-03002,SPRAYS TRANSPORT LIMITED,Transport And Travel,Taxi,0,144,144,12-May-11,TBC
Nottinghamshire County Council,02-03003,SPRAYS TRANSPORT LIMITED,Transport And Travel,Taxi,0,184.8,184.8,12-May-11,TBC
Nottinghamshire County Council,02-03004,SPRAYS TRANSPORT LIMITED,Transport And Travel,Taxi,0,184.8,184.8,12-May-11,TBC
Nottinghamshire County Council,02-03005,SPRAYS TRANSPORT LIMITED,Transport And Travel,Taxi,0,274.05,274.05,12-May-11,TBC
Nottinghamshire County Council,02-03006,SPRAYS TRANSPORT LIMITED,Transport And Travel,Taxi,0,194.98,194.98,12-May-11,TBC
Nottinghamshire County Council,02-03007,SPRAYS TRANSPORT LIMITED,Transport And Travel,Taxi,0,189.62,189.62,12-May-11,TBC
Nottinghamshire County Council,02-03008,SPRAYS TRANSPORT LIMITED,Transport And Travel,Taxi,0,315.06,315.06,12-May-11,TBC
Nottinghamshire County Council,02-03009,SPRAYS TRANSPORT LIMITED,Transport And Travel,Taxi,0,169.71,169.71,12-May-11,TBC
Nottinghamshire County Council,02-03010,SPRAYS TRANSPORT LIMITED,Transport And Travel,Taxi,0,261.3,261.3,12-May-11,TBC
Nottinghamshire County Council,02-03011,SPRAYS TRANSPORT LIMITED,Transport And Travel,Taxi,0,237.95,237.95,12-May-11,TBC
Nottinghamshire County Council,02-03012,SPRAYS TRANSPORT LIMITED,Transport And Travel,Taxi,0,277.99,277.99,12-May-11,TBC
Nottinghamshire County Council,02-03013,SPRAYS TRANSPORT LIMITED,Transport And Travel,Taxi,0,226.93,226.93,12-May-11,TBC
Nottinghamshire County Council,02-03014,SPRAYS TRANSPORT LIMITED,Transport And Travel,Taxi,0,260.81,260.81,12-May-11,TBC
Nottinghamshire County Council,02-03015,SPRAYS TRANSPORT LIMITED,Transport And Travel,Taxi,0,270,270,12-May-11,TBC
Nottinghamshire County Council,02-03016,SPRAYS TRANSPORT LIMITED,Transport And Travel,Taxi,0,230.01,230.01,12-May-11,TBC
Nottinghamshire County Council,02-03017,SPRAYS TRANSPORT LIMITED,Transport And Travel,Taxi,0,231.28,231.28,12-May-11,TBC
Nottinghamshire County Council,02-03018,SPRAYS TRANSPORT LIMITED,Transport And Travel,Taxi,0,237.95,237.95,12-May-11,TBC
Nottinghamshire County Council,02-03019,SPRAYS TRANSPORT LIMITED,Transport And Travel,Taxi,0,187,187,12-May-11,TBC
Nottinghamshire County Council,02-03020,SPRAYS TRANSPORT LIMITED,Transport And Travel,Taxi,0,173.8,173.8,12-May-11,TBC
Nottinghamshire County Council,02-03021,SPRAYS TRANSPORT LIMITED,Transport And Travel,Taxi,0,187,187,12-May-11,TBC
Nottinghamshire County Council,02-03022,SPRAYS TRANSPORT LIMITED,Transport And Travel,Taxi,0,239.8,239.8,12-May-11,TBC
Nottinghamshire County Council,02-03029,COUNTY CARS,Transport And Travel,Taxi,0,92.11,92.11,11-May-11,TBC
Nottinghamshire County Council,02-03030,COUNTY CARS,Transport And Travel,Taxi,0,165.84,165.84,11-May-11,TBC
Nottinghamshire County Council,02-03031,1-2-3 TAXIS,Transport And Travel,Taxi,0,171.6,171.6,11-May-11,TBC
Nottinghamshire County Council,02-03066,P AND P TAXIS,Transport And Travel,Taxi,0,101.2,101.2,11-May-11,TBC
Nottinghamshire County Council,02-03103,CAPITA SOCIAL CARE AND HOUSING,Care,Domiciliary Care,0,120.62,120.62,12-May-11,TBC
Nottinghamshire County Council,02-03105,SLACK AND CO FLOORCOVERINGS,Soft Facilities Management,Furniture And Furnishings,0,148,148,12-May-11,TBC
Nottinghamshire County Council,02-03106,P AND D SPECIALIST SERVICES LIMITED,ICT,Audio And Visual Equipment,0,336,336,20-May-11,TBC
Nottinghamshire County Council,02-03107,KINDERKEY,Care,Healthcare Services,0,607,607,20-May-11,TBC
Nottinghamshire County Council,02-03108,SHEFFIELD FAMILY LAW ASSOCIATES,Professional Services,Legal Services,0,90.38,90.38,12-May-11,TBC
Nottinghamshire County Council,02-03109,DODDS AND PARTNERS,Care,Medical Equipment And  Supplies,0,188.93,188.93,12-May-11,TBC
Nottinghamshire County Council,02-03110,NUMATIC INTERNATIONAL LIMITED,Soft Facilities Management,Cleaning Equipment And Janitorial Supplies,0,265.04,265.04,12-May-11,TBC
Nottinghamshire County Council,02-03111,MAKING IT! ENTERPRISES LIMITED,External Services (Highways And Culture),Sports And Recreational Equipment And Supplies,0,409.48,409.48,12-May-11,TBC
Nottinghamshire County Council,02-03112,MAKING IT! ENTERPRISES LIMITED,External Services (Highways And Culture),Sports And Recreational Equipment And Supplies,0,124.74,124.74,12-May-11,TBC
Nottinghamshire County Council,02-03113,MAKING IT! ENTERPRISES LIMITED,External Services (Highways And Culture),Sports And Recreational Equipment And Supplies,0,409.48,409.48,12-May-11,TBC
Nottinghamshire County Council,02-03114,MAKING IT! ENTERPRISES LIMITED,External Services (Highways And Culture),Sports And Recreational Equipment And Supplies,0,191.74,191.74,12-May-11,TBC
Nottinghamshire County Council,02-03116,GEM VENDING LIMITED,Soft Facilities Management,Vending Machines And Food Equipment,0,285,285,12-May-11,TBC
Nottinghamshire County Council,02-03118,CARTER BROWN ASSOCIATES,Professional Services,Legal Services,0,155.4,155.4,12-May-11,TBC
Nottinghamshire County Council,02-03121,TUNSTALL TELECOM LIMITED,ICT,Telecommunications And Media,0,179.2,179.2,12-May-11,TBC
Nottinghamshire County Council,02-03122,KB RECRUITMENT LIMITED,People,Recruitment,0,618.11,618.11,12-May-11,TBC
Nottinghamshire County Council,02-03124,DODDS AND PARTNERS,Care,Medical Equipment And  Supplies,0,85,85,12-May-11,TBC
Nottinghamshire County Council,02-03125,DODDS AND PARTNERS,Care,Medical Equipment And  Supplies,0,214.61,214.61,12-May-11,TBC
Nottinghamshire County Council,02-03126,DODDS AND PARTNERS,Care,Medical Equipment And  Supplies,0,251.96,251.96,12-May-11,TBC
Nottinghamshire County Council,02-03127,THE DERBYSHIRE HOTEL,Transport And Travel,Hotels And Venues,0,"1,348.67","1,348.67",12-May-11,TBC
Nottinghamshire County Council,02-03129,TRENT VINEYARD,Transport And Travel,Hotels And Venues,0,365.2,365.2,12-May-11,TBC
Nottinghamshire County Council,02-03130,PICKFORDS LIMITED,Hard Facilities Management ,Material Handling And Storage,0,321.82,321.82,13-May-11,TBC
Nottinghamshire County Council,02-03131,EMERY JOHNSON SOLICITORS,Professional Services,Legal Services,0,365.56,365.56,12-May-11,TBC
Nottinghamshire County Council,02-03132,LINCOLNSHIRE COUNTY COUNCIL,Professional Services,Politics And Civic Affairs,0,282.37,282.37,12-May-11,TBC
Nottinghamshire County Council,02-03136,MAKING IT! ENTERPRISES LIMITED,External Services (Highways And Culture),Sports And Recreational Equipment And Supplies,0,850.3,850.3,12-May-11,TBC
Nottinghamshire County Council,02-03141,TITAN BUS (UK) LIMITED,Transport And Travel,Bus,0,"1,000.00","1,000.00",12-May-11,TBC
Nottinghamshire County Council,02-03143,N S L LIMITED,Transport And Travel,Motor Vehicles,0,"16,618.00","16,618.00",12-May-11,TBC
Nottinghamshire County Council,02-03144,TUNSTALL TELECOM LIMITED,ICT,Telecommunications And Media,0,149.76,149.76,12-May-11,TBC
Nottinghamshire County Council,02-03146,N S L LIMITED,Transport And Travel,Motor Vehicles,0,"18,950.00","18,950.00",12-May-11,TBC
Nottinghamshire County Council,02-03148,CAPITAL CAPTURE LIMITED,Professional Services,"Reproduction, Photographic And Design Services",0,"1,215.00","1,215.00",27-May-11,TBC
Nottinghamshire County Council,02-03149,MEDICARE FIRST,Care,Medical Equipment And  Supplies,0,280.2,280.2,12-May-11,TBC
Nottinghamshire County Council,02-03150,OUTCOMES UK,People,Recruitment,0,636.5,636.5,11-May-11,TBC
Nottinghamshire County Council,02-03152,CBN,External Services (Highways And Culture),Organisations And Clubs,0,140,140,12-May-11,TBC
Nottinghamshire County Council,02-03153,B A A F,Care,Adoption Services,0,613.2,613.2,12-May-11,TBC
Nottinghamshire County Council,02-03155,FEET (LINE MARKERS ) LIMITED,External Services (Highways And Culture),Sports And Recreational Equipment And Supplies,0,182,182,12-May-11,TBC
Nottinghamshire County Council,02-03156,FEET (LINE MARKERS ) LIMITED,External Services (Highways And Culture),Sports And Recreational Equipment And Supplies,0,182,182,12-May-11,TBC
Nottinghamshire County Council,02-03157,FEET (LINE MARKERS ) LIMITED,External Services (Highways And Culture),Sports And Recreational Equipment And Supplies,0,182,182,12-May-11,TBC
Nottinghamshire County Council,02-03158,FEET (LINE MARKERS ) LIMITED,External Services (Highways And Culture),Sports And Recreational Equipment And Supplies,0,182,182,12-May-11,TBC
Nottinghamshire County Council,02-03159,TNT POST UK LIMITED,Soft Facilities Management,Mail And Couriers,0,358.8,358.8,12-May-11,TBC
Nottinghamshire County Council,02-03160,FEET (LINE MARKERS ) LIMITED,External Services (Highways And Culture),Sports And Recreational Equipment And Supplies,0,182,182,12-May-11,TBC
Nottinghamshire County Council,02-03162,FRESH OPPORTUNITIES LIMITED,Soft Facilities Management,Beverages,0,189.67,189.67,12-May-11,TBC
Nottinghamshire County Council,02-03163,EDEN MOBILITY LIMITED,Care,Medical Equipment And  Supplies,0,91.2,91.2,18-May-11,TBC
Nottinghamshire County Council,02-03167,STEVEN PASK LIMITED,External Services (Highways And Culture),Farming Forestry And Wildlife Services,0,683.23,683.23,18-May-11,TBC
Nottinghamshire County Council,02-03168,ALEXANDER LEIGH CONSULTING LIMITED,Professional Services,Consultancy,0,272.17,272.17,12-May-11,TBC
Nottinghamshire County Council,02-03169,SYNARBOR EDUCATION,External Services (Highways And Culture),Education Services,0,155.82,155.82,19-May-11,TBC
Nottinghamshire County Council,02-03170,SYNARBOR EDUCATION,External Services (Highways And Culture),Education Services,0,192.18,192.18,12-May-11,TBC
Nottinghamshire County Council,02-03171,CARITAS RECRUITMENT,People,Recruitment,0,295.63,295.63,18-May-11,TBC
Nottinghamshire County Council,02-03172,BLUECARE RECRUITMENT LIMITED,People,Recruitment,0,256.5,256.5,20-May-11,TBC
Nottinghamshire County Council,02-03173,CARITAS RECRUITMENT,People,Recruitment,0,591.26,591.26,18-May-11,TBC
Nottinghamshire County Council,02-03178,LOCAL GOVERNMENT ASSOCIATION,External Services (Highways And Culture),Organisations And Clubs,0,"15,576.21","15,576.21",12-May-11,TBC
Nottinghamshire County Council,02-03179,COMENSURA LIMITED,Professional Services,Consultancy,0,"8,365.52","8,365.52",11-May-11,TBC
Nottinghamshire County Council,02-03180,MEDICARE FIRST,Care,Medical Equipment And  Supplies,0,427.92,427.92,12-May-11,TBC
Nottinghamshire County Council,02-03181,OUTCOMES UK,People,Recruitment,0,"7,466.12","7,466.12",12-May-11,TBC
Nottinghamshire County Council,02-03182,NATIONAL GRID GAS PLC,Hard Facilities Management ,Utilities,0,"2,218.20","2,218.20",12-May-11,TBC
Nottinghamshire County Council,02-03191,STAFFLINE RECRUITMENT LIMITED,People,Recruitment,0,0.01,0.01,31-May-11,TBC
Nottinghamshire County Council,02-03192,STAFFLINE RECRUITMENT LIMITED,People,Recruitment,0,-0.01,-0.01,16-May-11,TBC
Nottinghamshire County Council,02-03262,TUBES FITTINGS VALVES LIMITED,Hard Facilities Management ,Plumbing Services,0,-0.01,-0.01,23-May-11,TBC
Nottinghamshire County Council,02-03263,TUBES FITTINGS VALVES LIMITED,Hard Facilities Management ,Plumbing Services,0,-0.01,-0.01,23-May-11,TBC
Nottinghamshire County Council,02-03264,TUBES FITTINGS VALVES LIMITED,Hard Facilities Management ,Plumbing Services,0,0.01,0.01,23-May-11,TBC
Nottinghamshire County Council,02-03265,TUBES FITTINGS VALVES LIMITED,Hard Facilities Management ,Plumbing Services,0,-0.01,-0.01,23-May-11,TBC
Nottinghamshire County Council,02-03276,TUBES FITTINGS VALVES LIMITED,Hard Facilities Management ,Plumbing Services,0,0.01,0.01,24-May-11,TBC
Nottinghamshire County Council,02-03282,TUBES FITTINGS VALVES LIMITED,Hard Facilities Management ,Plumbing Services,0,0.01,0.01,23-May-11,TBC
Nottinghamshire County Council,02-03292,SWIIS (UK) LIMITED,People,Agency Staff - Care,0,89.67,89.67,17-May-11,TBC
Nottinghamshire County Council,02-03293,SWIIS (UK) LIMITED,People,Agency Staff - Care,0,130.36,130.36,19-May-11,TBC
Nottinghamshire County Council,02-03294,SWIIS (UK) LIMITED,People,Agency Staff - Care,0,112.27,112.27,19-May-11,TBC
Nottinghamshire County Council,02-03295,SWIIS (UK) LIMITED,People,Agency Staff - Care,0,122.07,122.07,19-May-11,TBC
Nottinghamshire County Council,02-03296,JENX LIMITED,Care,Medical Equipment And  Supplies,0,143.8,143.8,13-May-11,TBC
Nottinghamshire County Council,02-03297,SHAW BROS LIMITED,Hard Facilities Management ,Plumbing Services,0,217,217,13-May-11,TBC
Nottinghamshire County Council,02-03298,ART CLEANING (MIDLANDS) LIMITED,Soft Facilities Management,Industrial Cleaning Services,0,105.04,105.04,13-May-11,TBC
Nottinghamshire County Council,02-03299,MAKING IT! ENTERPRISES LIMITED,External Services (Highways And Culture),Sports And Recreational Equipment And Supplies,0,112.89,112.89,13-May-11,TBC
Nottinghamshire County Council,02-03300,HS SPORTS LIMITED,External Services (Highways And Culture),Sports And Recreational Equipment And Supplies,0,289,289,27-May-11,TBC
Nottinghamshire County Council,02-03301,MAKING IT! ENTERPRISES LIMITED,External Services (Highways And Culture),Sports And Recreational Equipment And Supplies,0,"2,042.99","2,042.99",13-May-11,TBC
Nottinghamshire County Council,02-03302,HS SPORTS LIMITED,External Services (Highways And Culture),Sports And Recreational Equipment And Supplies,0,220,220,27-May-11,TBC
Nottinghamshire County Council,02-03303,EDEN BROWN LIMITED,People,Recruitment,0,371.47,371.47,19-May-11,TBC
Nottinghamshire County Council,02-03304,EDEN BROWN LIMITED,People,Recruitment,0,230.92,230.92,26-May-11,TBC
Nottinghamshire County Council,02-03305,EDEN BROWN LIMITED,People,Recruitment,0,218.04,218.04,26-May-11,TBC
Nottinghamshire County Council,02-03306,EDEN BROWN LIMITED,People,Recruitment,0,200.58,200.58,24-May-11,TBC
Nottinghamshire County Council,02-03307,RIG SOCIAL CARE (NORTH) LIMITED,Care,Domiciliary Care,0,300.91,300.91,13-May-11,TBC
Nottinghamshire County Council,02-03308,EDEN BROWN LIMITED,People,Recruitment,0,481,481,26-May-11,TBC
Nottinghamshire County Council,02-03309,EDEN BROWN LIMITED,People,Recruitment,0,358.88,358.88,27-May-11,TBC
Nottinghamshire County Council,02-03310,EDEN BROWN LIMITED,People,Recruitment,0,268.92,268.92,27-May-11,TBC
Nottinghamshire County Council,02-03311,EDEN BROWN LIMITED,People,Recruitment,0,218.04,218.04,27-May-11,TBC
Nottinghamshire County Council,02-03312,EDEN BROWN LIMITED,People,Recruitment,0,188.42,188.42,27-May-11,TBC
Nottinghamshire County Council,02-03313,EDEN BROWN LIMITED,People,Recruitment,0,372.45,372.45,27-May-11,TBC
Nottinghamshire County Council,02-03314,EDEN BROWN LIMITED,People,Recruitment,0,218.53,218.53,27-May-11,TBC
Nottinghamshire County Council,02-03315,SWIIS (UK) LIMITED,People,Agency Staff - Care,0,102.48,102.48,19-May-11,TBC
Nottinghamshire County Council,02-03316,ART CLEANING (MIDLANDS) LIMITED,Soft Facilities Management,Industrial Cleaning Services,0,117.94,117.94,13-May-11,TBC
Nottinghamshire County Council,02-03317,MAKING IT! ENTERPRISES LIMITED,External Services (Highways And Culture),Sports And Recreational Equipment And Supplies,0,194.77,194.77,13-May-11,TBC
Nottinghamshire County Council,02-03318,TOTAL SECURITY PROTECTION LIMITED,Soft Facilities Management,Security,0,283,283,13-May-11,TBC
Nottinghamshire County Council,02-03319,ART CLEANING (MIDLANDS) LIMITED,Soft Facilities Management,Industrial Cleaning Services,0,102.96,102.96,13-May-11,TBC
Nottinghamshire County Council,02-03320,ART CLEANING (MIDLANDS) LIMITED,Soft Facilities Management,Industrial Cleaning Services,0,94.43,94.43,13-May-11,TBC
Nottinghamshire County Council,02-03321,ART CLEANING (MIDLANDS) LIMITED,Soft Facilities Management,Industrial Cleaning Services,0,112.53,112.53,13-May-11,TBC
Nottinghamshire County Council,02-03322,CAPITA SOCIAL CARE AND HOUSING,Care,Domiciliary Care,0,294.74,294.74,13-May-11,TBC
Nottinghamshire County Council,02-03323,MEDICARE FIRST,Care,Medical Equipment And  Supplies,0,308.3,308.3,13-May-11,TBC
Nottinghamshire County Council,02-03324,CAPITA SOCIAL CARE AND HOUSING,Care,Domiciliary Care,0,298.86,298.86,18-May-11,TBC
Nottinghamshire County Council,02-03325,SYNARBOR EDUCATION,External Services (Highways And Culture),Education Services,0,155.82,155.82,13-May-11,TBC
Nottinghamshire County Council,02-03330,MEDICARE FIRST,Care,Medical Equipment And  Supplies,0,268.92,268.92,20-May-11,TBC
Nottinghamshire County Council,02-03331,CAPITA SOCIAL CARE AND HOUSING,Care,Domiciliary Care,0,232.24,232.24,25-May-11,TBC
Nottinghamshire County Council,02-03332,MAKING IT! ENTERPRISES LIMITED,External Services (Highways And Culture),Sports And Recreational Equipment And Supplies,0,480.89,480.89,13-May-11,TBC
Nottinghamshire County Council,02-03333,H P C C S LIMITED,Soft Facilities Management,Cleaning Equipment And Janitorial Supplies,0,101.76,101.76,17-May-11,TBC
Nottinghamshire County Council,02-03336,PRINCIPAL HAYLEY,Transport And Travel,Hotels And Venues,0,"4,980.80","4,980.80",13-May-11,TBC
Nottinghamshire County Council,02-03337,MEDICARE FIRST,Care,Medical Equipment And  Supplies,0,292.3,292.3,13-May-11,TBC
Nottinghamshire County Council,02-03340,EDEN BROWN LIMITED,People,Recruitment,0,217.45,217.45,24-May-11,TBC
Nottinghamshire County Council,02-03341,CAPITA SOCIAL CARE AND HOUSING,Care,Domiciliary Care,0,246.16,246.16,18-May-11,TBC
Nottinghamshire County Council,02-03342,CAPITA SOCIAL CARE AND HOUSING,Care,Domiciliary Care,0,232.64,232.64,13-May-11,TBC
Nottinghamshire County Council,02-03343,THE APPROPRIATE ADULT SERVICE,Care,Community And Social Services,0,297.5,297.5,13-May-11,TBC
Nottinghamshire County Council,02-03344,EDEN BROWN LIMITED,People,Recruitment,0,303.06,303.06,26-May-11,TBC
Nottinghamshire County Council,02-03345,EDEN BROWN LIMITED,People,Recruitment,0,296.52,296.52,26-May-11,TBC
Nottinghamshire County Council,02-03346,EDEN BROWN LIMITED,People,Recruitment,0,300.4,300.4,26-May-11,TBC
Nottinghamshire County Council,02-03347,ROSPA ENTERPRISE LIMITED,Hard Facilities Management ,Health And Safety,0,99,99,13-May-11,TBC
Nottinghamshire County Council,02-03348,ROYAL MAIL GROUP PLC,Soft Facilities Management,Mail And Couriers,0,100,100,13-May-11,TBC
Nottinghamshire County Council,02-03350,G AND S SMIRTHWAITE LIMITED,Soft Facilities Management,Furniture And Furnishings,0,106.4,106.4,13-May-11,TBC
Nottinghamshire County Council,02-03351,EDEN BROWN LIMITED,People,Recruitment,0,369.71,369.71,13-May-11,TBC
Nottinghamshire County Council,02-03352,KONICA MINOLTA,ICT,"Printing And Publishing, Equipment And Supplies",0,106.3,106.3,16-May-11,TBC
Nottinghamshire County Council,02-03355,KB RECRUITMENT LIMITED,People,Recruitment,0,317.26,317.26,16-May-11,TBC
Nottinghamshire County Council,02-03359,BROXTOWE BOROUGH COUNCIL,Professional Services,Politics And Civic Affairs,0,115.69,115.69,13-May-11,TBC
Nottinghamshire County Council,02-03360,G4S SECURITY SERVICES (UK) LIMITED,Soft Facilities Management,Security,0,160,160,13-May-11,TBC
Nottinghamshire County Council,02-03361,CAPITA SOCIAL CARE AND HOUSING,Care,Domiciliary Care,0,240.19,240.19,13-May-11,TBC
Nottinghamshire County Council,02-03370,FARMHOUSE SPECIALITY FOODS,Soft Facilities Management,Prepared And Preserved Foods,0,0.02,0.02,13-May-11,TBC
Nottinghamshire County Council,02-03372,FARMHOUSE SPECIALITY FOODS,Soft Facilities Management,Prepared And Preserved Foods,0,-0.01,-0.01,13-May-11,TBC
Nottinghamshire County Council,02-03445,CLEVELAND POTASH LIMITED,External Services (Highways And Culture),Earth And Stone Aggregates ,0,-224.4,-224.4,12-May-11,TBC
Nottinghamshire County Council,02-03457,TELEVISION INSTALL.SERV MANSFIELD LIMITED,ICT,Telecommunications And Media,0,91,91,13-May-11,TBC
Nottinghamshire County Council,02-03612,ELGATE PRODUCTS LIMITED,External Services (Highways And Culture),Arts And Crafts,0,-3.61,-3.61,16-May-11,TBC
Nottinghamshire County Council,02-03651,TRANS UK SUPPLIES LIMITED,ICT,Audio And Visual Equipment,0,-0.01,-0.01,20-May-11,TBC
Nottinghamshire County Council,02-03703,CAPITA SOCIAL CARE AND HOUSING,Care,Domiciliary Care,0,146.15,146.15,17-May-11,TBC
Nottinghamshire County Council,02-03704,CAPITA SOCIAL CARE AND HOUSING,Care,Domiciliary Care,0,189.42,189.42,17-May-11,TBC
Nottinghamshire County Council,02-03705,TALLON MONITORING LIMITED,ICT,Telecommunications And Media,0,"1,612.00","1,612.00",17-May-11,TBC
Nottinghamshire County Council,02-03706,FRONTLINE,Hard Facilities Management ,Plumbing Services,0,237.71,237.71,17-May-11,TBC
Nottinghamshire County Council,02-03707,CAPITA SOCIAL CARE AND HOUSING,Care,Domiciliary Care,0,126.38,126.38,17-May-11,TBC
Nottinghamshire County Council,02-03708,CAPITA SOCIAL CARE AND HOUSING,Care,Domiciliary Care,0,119.06,119.06,17-May-11,TBC
Nottinghamshire County Council,02-03709,CAPITA SOCIAL CARE AND HOUSING,Care,Domiciliary Care,0,113.52,113.52,17-May-11,TBC
Nottinghamshire County Council,02-03710,CAPITA SOCIAL CARE AND HOUSING,Care,Domiciliary Care,0,113.52,113.52,17-May-11,TBC
Nottinghamshire County Council,02-03711,CAPITA SOCIAL CARE AND HOUSING,Care,Domiciliary Care,0,113.52,113.52,17-May-11,TBC
Nottinghamshire County Council,02-03712,CAPITA SOCIAL CARE AND HOUSING,Care,Domiciliary Care,0,113.52,113.52,17-May-11,TBC
Nottinghamshire County Council,02-03713,RADIODETECTION LIMITED,Soft Facilities Management,Security,0,111.5,111.5,17-May-11,TBC
Nottinghamshire County Council,02-03714,CAPITA SOCIAL CARE AND HOUSING,Care,Domiciliary Care,0,98.36,98.36,17-May-11,TBC
Nottinghamshire County Council,02-03715,WILLIAM FREER LIMITED,Soft Facilities Management,Vending Machines And Food Equipment,0,159.86,159.86,17-May-11,TBC
Nottinghamshire County Council,02-03716,CUNNINGHAMS CASH REGISTERS LIMITED,Professional Services,Financial And Insurance Services,0,874.24,874.24,17-May-11,TBC
Nottinghamshire County Council,02-03717,WILLIAM FREER LIMITED,Soft Facilities Management,Vending Machines And Food Equipment,0,169.76,169.76,17-May-11,TBC
Nottinghamshire County Council,02-03718,WILLIAM FREER LIMITED,Soft Facilities Management,Vending Machines And Food Equipment,0,138.59,138.59,17-May-11,TBC
Nottinghamshire County Council,02-03719,LEISURE SAFETY AND TRAINING SERVICES,People,Vocational Training,0,91,91,17-May-11,TBC
Nottinghamshire County Council,02-03720,KEN BURROWS LIMITED,Hard Facilities Management ,Electrical Systems And Lighting,0,183.98,183.98,17-May-11,TBC
Nottinghamshire County Council,02-03721,KEN BURROWS LIMITED,Hard Facilities Management ,Electrical Systems And Lighting,0,146.2,146.2,17-May-11,TBC
Nottinghamshire County Council,02-03722,WILLIAM FREER LIMITED,Soft Facilities Management,Vending Machines And Food Equipment,0,407.85,407.85,17-May-11,TBC
Nottinghamshire County Council,02-03723,KONICA MINOLTA,ICT,"Printing And Publishing, Equipment And Supplies",0,250.46,250.46,17-May-11,TBC
Nottinghamshire County Council,02-03724,KONICA MINOLTA,ICT,"Printing And Publishing, Equipment And Supplies",0,236.83,236.83,17-May-11,TBC
Nottinghamshire County Council,02-03725,CAPITA SOCIAL CARE AND HOUSING,Care,Domiciliary Care,0,109.1,109.1,17-May-11,TBC
Nottinghamshire County Council,02-03726,CAPITA SOCIAL CARE AND HOUSING,Care,Domiciliary Care,0,136.24,136.24,17-May-11,TBC
Nottinghamshire County Council,02-03727,CAPITA SOCIAL CARE AND HOUSING,Care,Domiciliary Care,0,114.09,114.09,17-May-11,TBC
Nottinghamshire County Council,02-03731,MEDICARE FIRST,Care,Medical Equipment And  Supplies,0,420.84,420.84,24-May-11,TBC
Nottinghamshire County Council,02-03733,CAPITA SOCIAL CARE AND HOUSING,Care,Domiciliary Care,0,110.53,110.53,17-May-11,TBC
Nottinghamshire County Council,02-03734,EDEN BROWN LIMITED,People,Recruitment,0,369.67,369.67,19-May-11,TBC
Nottinghamshire County Council,02-03736,CANDOR SERVICES LIMITED,Soft Facilities Management,Cleaning Equipment And Janitorial Supplies,0,88.19,88.19,17-May-11,TBC
Nottinghamshire County Council,02-03737,CANDOR SERVICES LIMITED,Soft Facilities Management,Cleaning Equipment And Janitorial Supplies,0,85.2,85.2,17-May-11,TBC
Nottinghamshire County Council,02-03738,PEAR TREE PLANT,External Services (Highways And Culture),Plant And Animal Supplies,0,320,320,17-May-11,TBC
Nottinghamshire County Council,02-03740,REED EMPLOYMENT PLC,People,Recruitment,0,201.8,201.8,17-May-11,TBC
Nottinghamshire County Council,02-03766,SIEMENS PLC,Hard Facilities Management ,Electrical Systems And Lighting,0,-0.01,-0.01,23-May-11,TBC
Nottinghamshire County Council,02-03782,EXPRESS ASPHALT LIMITED,External Services (Highways And Culture),Highways And Works,0,-0.01,-0.01,26-May-11,TBC
Nottinghamshire County Council,02-03791,REGATTA LIMITED,Soft Facilities Management,Clothing,0,0.02,0.02,17-May-11,TBC
Nottinghamshire County Council,02-03805,XMA LIMITED,ICT,Computer Equipment And Accessories,0,0.01,0.01,18-May-11,TBC
Nottinghamshire County Council,02-03949,ARTSTRAWS LIMITED,External Services (Highways And Culture),Classroom Supplies And Teaching Aids,0,0.01,0.01,18-May-11,TBC
Nottinghamshire County Council,02-03953,EASTPOINT,People,Vocational Training,0,0.01,0.01,18-May-11,TBC
Nottinghamshire County Council,02-03960,THE NE GROUP (NORTH NOTTINGHAMSHIRE ENTERPRISES),Transport And Travel,Hotels And Venues,0,124.22,124.22,18-May-11,TBC
Nottinghamshire County Council,02-03961,BUS SHELTERS LIMITED,Transport And Travel,Bus,0,553.82,553.82,18-May-11,TBC
Nottinghamshire County Council,02-03962,KINGSFORTH SECURITY FENCING LIMITED,Soft Facilities Management,Security,0,"1,425.00","1,425.00",18-May-11,TBC
Nottinghamshire County Council,02-03963,KINGSFORTH SECURITY FENCING LIMITED,Soft Facilities Management,Security,0,"4,750.00","4,750.00",18-May-11,TBC
Nottinghamshire County Council,02-03964,EDEN BROWN LIMITED,People,Recruitment,0,253.22,253.22,18-May-11,TBC
Nottinghamshire County Council,02-03965,EDEN BROWN LIMITED,People,Recruitment,0,272.55,272.55,19-May-11,TBC
Nottinghamshire County Council,02-03966,PAYNE SECURITY,Soft Facilities Management,Security,0,94.3,94.3,18-May-11,TBC
Nottinghamshire County Council,02-03967,B N A,People,Recruitment,0,110.98,110.98,18-May-11,TBC
Nottinghamshire County Council,02-03968,PLINTH 2000 LIMITED,Care,Medical Equipment And  Supplies,0,167,167,18-May-11,TBC
Nottinghamshire County Council,02-03969,EDEN BROWN LIMITED,People,Recruitment,0,386.1,386.1,19-May-11,TBC
Nottinghamshire County Council,02-03970,CARDEA,Care,Healthcare Services,0,153.14,153.14,24-May-11,TBC
Nottinghamshire County Council,02-03971,CARDEA,Care,Healthcare Services,0,103.37,103.37,24-May-11,TBC
Nottinghamshire County Council,02-03972,MEDICARE FIRST,Care,Medical Equipment And  Supplies,0,357.12,357.12,24-May-11,TBC
Nottinghamshire County Council,02-03973,CAPITA SOCIAL CARE AND HOUSING,Care,Domiciliary Care,0,260.59,260.59,18-May-11,TBC
Nottinghamshire County Council,02-03974,CAPITA SOCIAL CARE AND HOUSING,Care,Domiciliary Care,0,134.09,134.09,18-May-11,TBC
Nottinghamshire County Council,02-03975,CAPITA SOCIAL CARE AND HOUSING,Care,Domiciliary Care,0,105.85,105.85,18-May-11,TBC
Nottinghamshire County Council,02-03976,CAPITA SOCIAL CARE AND HOUSING,Care,Domiciliary Care,0,118.53,118.53,18-May-11,TBC
Nottinghamshire County Council,02-03977,CAPITA SOCIAL CARE AND HOUSING,Care,Domiciliary Care,0,98.18,98.18,18-May-11,TBC
Nottinghamshire County Council,02-03978,CAPITA SOCIAL CARE AND HOUSING,Care,Domiciliary Care,0,113.52,113.52,18-May-11,TBC
Nottinghamshire County Council,02-03979,EDEN BROWN LIMITED,People,Recruitment,0,377.95,377.95,18-May-11,TBC
Nottinghamshire County Council,02-03980,CONISTON ASSOCIATES LIMITED,People,Vocational Training,0,88.2,88.2,18-May-11,TBC
Nottinghamshire County Council,02-03981,EDEN BROWN LIMITED,People,Recruitment,0,371.95,371.95,18-May-11,TBC
Nottinghamshire County Council,02-03982,KONICA MINOLTA,ICT,"Printing And Publishing, Equipment And Supplies",0,293.3,293.3,18-May-11,TBC
Nottinghamshire County Council,02-03983,WILLIAM FREER LIMITED,Soft Facilities Management,Vending Machines And Food Equipment,0,278.85,278.85,18-May-11,TBC
Nottinghamshire County Council,02-03985,ACADEMY SOCIAL CARE LIMITED,Care,Domiciliary Care,0,145.43,145.43,18-May-11,TBC
Nottinghamshire County Council,02-03986,KONICA MINOLTA,ICT,"Printing And Publishing, Equipment And Supplies",0,109.45,109.45,18-May-11,TBC
Nottinghamshire County Council,02-03987,CAPITA,Professional Services,Consultancy,0,177.6,177.6,18-May-11,TBC
Nottinghamshire County Council,02-03988,CAPITA SOCIAL CARE AND HOUSING,Care,Domiciliary Care,0,101.31,101.31,18-May-11,TBC
Nottinghamshire County Council,02-03989,CAPITA SOCIAL CARE AND HOUSING,Care,Domiciliary Care,0,87.85,87.85,25-May-11,TBC
Nottinghamshire County Council,02-03991,REED EMPLOYMENT PLC,People,Recruitment,0,140.4,140.4,18-May-11,TBC
Nottinghamshire County Council,02-03992,REED EMPLOYMENT PLC,People,Recruitment,0,201.8,201.8,18-May-11,TBC
Nottinghamshire County Council,02-03997,DRAEFERN LIMITED T/A RIGHT4STAFF,People,Recruitment,0,99.22,99.22,18-May-11,TBC
Nottinghamshire County Council,02-03998,DRAEFERN LIMITED T/A RIGHT4STAFF,People,Recruitment,0,117.02,117.02,18-May-11,TBC
Nottinghamshire County Council,02-03999,SODEXO PRESTIGE LIMITED,Soft Facilities Management,Vending Machines And Food Equipment,0,153,153,18-May-11,TBC
Nottinghamshire County Council,02-04000,THE APPROPRIATE ADULT SERVICE,Care,Community And Social Services,0,330.75,330.75,18-May-11,TBC
Nottinghamshire County Council,02-04001,NEOPOST LIMITED,Soft Facilities Management,Mail And Couriers,0,150.07,150.07,18-May-11,TBC
Nottinghamshire County Council,02-04004,CYCLESCHEME LIMITED,Transport And Travel,Cycles,0,166.67,166.67,18-May-11,TBC
Nottinghamshire County Council,02-04005,CYCLESCHEME LIMITED,Transport And Travel,Cycles,0,192.65,192.65,18-May-11,TBC
Nottinghamshire County Council,02-04006,CYCLESCHEME LIMITED,Transport And Travel,Cycles,0,116.67,116.67,18-May-11,TBC
Nottinghamshire County Council,02-04007,CYCLESCHEME LIMITED,Transport And Travel,Cycles,0,-84.17,-84.17,18-May-11,TBC
Nottinghamshire County Council,02-04008,RADIO EXPRESS LIMITED,Professional Services,"Reproduction, Photographic And Design Services",0,461,461,18-May-11,TBC
Nottinghamshire County Council,02-04009,ENVIROTEC,Soft Facilities Management,Cleaning Equipment And Janitorial Supplies,0,400,400,18-May-11,TBC
Nottinghamshire County Council,02-04012,HAYLEY CONFERENCE CENTRES,Transport And Travel,Hotels And Venues,0,964,964,18-May-11,TBC
Nottinghamshire County Council,02-04018,EMO OIL LIMITED,Hard Facilities Management ,Utilities,0,-95.59,-95.59,25-May-11,TBC
Nottinghamshire County Council,02-04180,SIMS GROUP UK LIMITED,Soft Facilities Management,Scrap And Waste Materials,0,-0.01,-0.01,23-May-11,TBC
Nottinghamshire County Council,02-04196,P RHODES TRANSPORT LIMITED,Transport And Travel,Bus,0,0.01,0.01,19-May-11,TBC
Nottinghamshire County Council,02-04343,CEMEX UK OPERATIONS,External Services (Highways And Culture),Earth And Stone Aggregates ,0,-0.01,-0.01,20-May-11,TBC
Nottinghamshire County Council,02-04408,BRITISH TELECOMMUNICATIONS PLC,ICT,Telecommunications And Media,0,0.01,0.01,20-May-11,TBC
Nottinghamshire County Council,02-04409,BRITISH TELECOMMUNICATIONS PLC,ICT,Telecommunications And Media,0,-0.01,-0.01,23-May-11,TBC
Nottinghamshire County Council,02-04463,JOHNSONS STALBRIDGE LINEN SERVICES,Soft Facilities Management,Cleaning Equipment And Janitorial Supplies,0,0.01,0.01,20-May-11,TBC
Nottinghamshire County Council,02-04538,NORTHCLIFFE MEDIA LIMITED,ICT,Telecommunications And Media,0,-0.01,-0.01,20-May-11,TBC
Nottinghamshire County Council,02-04559,BRAKE BROS LIMITED,Soft Facilities Management,Prepared And Preserved Foods,0,0.02,0.02,23-May-11,TBC
Nottinghamshire County Council,02-04568,BRAKE BROS LIMITED,Soft Facilities Management,Prepared And Preserved Foods,0,-0.04,-0.04,23-May-11,TBC
Nottinghamshire County Council,02-04669,CARE SHOP,Care,Healthcare Services,0,373.9,373.9,23-May-11,TBC
Nottinghamshire County Council,02-04670,LANTEC SERVICES LIMITED,ICT,Communications Devices And Accessories,0,239,239,23-May-11,TBC
Nottinghamshire County Council,02-04671,BAKER SHEPHERD GILLESPIE LLP,Professional Services,Legal Services,0,463.5,463.5,23-May-11,TBC
Nottinghamshire County Council,02-04672,TELEVISION INSTALL.SERV MANSFIELD LIMITED,ICT,Telecommunications And Media,0,98.2,98.2,23-May-11,TBC
Nottinghamshire County Council,02-04673,CAPITA SOCIAL CARE AND HOUSING,Care,Domiciliary Care,0,113.52,113.52,23-May-11,TBC
Nottinghamshire County Council,02-04674,CAPITA SOCIAL CARE AND HOUSING,Care,Domiciliary Care,0,113.52,113.52,23-May-11,TBC
Nottinghamshire County Council,02-04675,CAPITA SOCIAL CARE AND HOUSING,Care,Domiciliary Care,0,113.52,113.52,23-May-11,TBC
Nottinghamshire County Council,02-04676,CAPITA SOCIAL CARE AND HOUSING,Care,Domiciliary Care,0,113.52,113.52,23-May-11,TBC
Nottinghamshire County Council,02-04677,CAPITA SOCIAL CARE AND HOUSING,Care,Domiciliary Care,0,113.52,113.52,23-May-11,TBC
Nottinghamshire County Council,02-04678,CAPITA SOCIAL CARE AND HOUSING,Care,Domiciliary Care,0,125.42,125.42,23-May-11,TBC
Nottinghamshire County Council,02-04679,CAPITA SOCIAL CARE AND HOUSING,Care,Domiciliary Care,0,113.52,113.52,23-May-11,TBC
Nottinghamshire County Council,02-04680,CAPITA SOCIAL CARE AND HOUSING,Care,Domiciliary Care,0,113.52,113.52,23-May-11,TBC
Nottinghamshire County Council,02-04681,CAPITA SOCIAL CARE AND HOUSING,Care,Domiciliary Care,0,140.56,140.56,23-May-11,TBC
Nottinghamshire County Council,02-04682,CAPITA SOCIAL CARE AND HOUSING,Care,Domiciliary Care,0,134.33,134.33,23-May-11,TBC
Nottinghamshire County Council,02-04683,CAPITA SOCIAL CARE AND HOUSING,Care,Domiciliary Care,0,144.11,144.11,25-May-11,TBC
Nottinghamshire County Council,02-04684,CAPITA SOCIAL CARE AND HOUSING,Care,Domiciliary Care,0,113.52,113.52,25-May-11,TBC
Nottinghamshire County Council,02-04685,CAPITA SOCIAL CARE AND HOUSING,Care,Domiciliary Care,0,113.52,113.52,23-May-11,TBC
Nottinghamshire County Council,02-04686,CAPITA SOCIAL CARE AND HOUSING,Care,Domiciliary Care,0,92.04,92.04,25-May-11,TBC
Nottinghamshire County Council,02-04687,CAPITA SOCIAL CARE AND HOUSING,Care,Domiciliary Care,0,113.52,113.52,23-May-11,TBC
Nottinghamshire County Council,02-04688,CAPITA SOCIAL CARE AND HOUSING,Care,Domiciliary Care,0,113.52,113.52,25-May-11,TBC
Nottinghamshire County Council,02-04689,CAPITA SOCIAL CARE AND HOUSING,Care,Domiciliary Care,0,117.84,117.84,23-May-11,TBC
Nottinghamshire County Council,02-04690,CAPITA SOCIAL CARE AND HOUSING,Care,Domiciliary Care,0,118.48,118.48,23-May-11,TBC
Nottinghamshire County Council,02-04691,CAPITA SOCIAL CARE AND HOUSING,Care,Domiciliary Care,0,134.09,134.09,23-May-11,TBC
Nottinghamshire County Council,02-04692,CAPITA SOCIAL CARE AND HOUSING,Care,Domiciliary Care,0,113.52,113.52,23-May-11,TBC
Nottinghamshire County Council,02-04697,CAPITA SOCIAL CARE AND HOUSING,Care,Domiciliary Care,0,124.32,124.32,23-May-11,TBC
Nottinghamshire County Council,02-04698,CAPITA SOCIAL CARE AND HOUSING,Care,Domiciliary Care,0,92.04,92.04,25-May-11,TBC
Nottinghamshire County Council,02-04699,CAPITA SOCIAL CARE AND HOUSING,Care,Domiciliary Care,0,85.9,85.9,23-May-11,TBC
Nottinghamshire County Council,02-04700,CAPITA SOCIAL CARE AND HOUSING,Care,Domiciliary Care,0,108.72,108.72,25-May-11,TBC
Nottinghamshire County Council,02-04701,CAPITA SOCIAL CARE AND HOUSING,Care,Domiciliary Care,0,134.09,134.09,23-May-11,TBC
Nottinghamshire County Council,02-04702,CAPITA SOCIAL CARE AND HOUSING,Care,Domiciliary Care,0,113.52,113.52,23-May-11,TBC
Nottinghamshire County Council,02-04703,CAPITA SOCIAL CARE AND HOUSING,Care,Domiciliary Care,0,116,116,23-May-11,TBC
Nottinghamshire County Council,02-04704,CAPITA SOCIAL CARE AND HOUSING,Care,Domiciliary Care,0,113.52,113.52,23-May-11,TBC
Nottinghamshire County Council,02-04705,CAPITA SOCIAL CARE AND HOUSING,Care,Domiciliary Care,0,119.8,119.8,23-May-11,TBC
Nottinghamshire County Council,02-04706,CAPITA SOCIAL CARE AND HOUSING,Care,Domiciliary Care,0,113.52,113.52,23-May-11,TBC
Nottinghamshire County Council,02-04707,CAPITA SOCIAL CARE AND HOUSING,Care,Domiciliary Care,0,117.76,117.76,23-May-11,TBC
Nottinghamshire County Council,02-04708,CAPITA SOCIAL CARE AND HOUSING,Care,Domiciliary Care,0,113.52,113.52,23-May-11,TBC
Nottinghamshire County Council,02-04709,CAPITA SOCIAL CARE AND HOUSING,Care,Domiciliary Care,0,113.52,113.52,23-May-11,TBC
Nottinghamshire County Council,02-04710,CAPITA SOCIAL CARE AND HOUSING,Care,Domiciliary Care,0,123.76,123.76,23-May-11,TBC
Nottinghamshire County Council,02-04711,CAPITA SOCIAL CARE AND HOUSING,Care,Domiciliary Care,0,110.65,110.65,23-May-11,TBC
Nottinghamshire County Council,02-04712,CAPITA SOCIAL CARE AND HOUSING,Care,Domiciliary Care,0,118.64,118.64,23-May-11,TBC
Nottinghamshire County Council,02-04713,CAPITA SOCIAL CARE AND HOUSING,Care,Domiciliary Care,0,113.52,113.52,23-May-11,TBC
Nottinghamshire County Council,02-04714,CAPITA SOCIAL CARE AND HOUSING,Care,Domiciliary Care,0,113.52,113.52,23-May-11,TBC
Nottinghamshire County Council,02-04715,CAPITA SOCIAL CARE AND HOUSING,Care,Domiciliary Care,0,117.6,117.6,23-May-11,TBC
Nottinghamshire County Council,02-04716,REED EMPLOYMENT PLC,People,Recruitment,0,275.2,275.2,23-May-11,TBC
Nottinghamshire County Council,02-04717,REED EMPLOYMENT PLC,People,Recruitment,0,243.2,243.2,23-May-11,TBC
Nottinghamshire County Council,02-04718,REED EMPLOYMENT PLC,People,Recruitment,0,140.8,140.8,23-May-11,TBC
Nottinghamshire County Council,02-04719,REED EMPLOYMENT PLC,People,Recruitment,0,248,248,23-May-11,TBC
Nottinghamshire County Council,02-04720,SELLICK PARTNERSHIP (LEGAL) LIMITED,Professional Services,Legal Services,0,186.3,186.3,23-May-11,TBC
Nottinghamshire County Council,02-04726,POSITIVE OPTIONS LIMITED,Professional Services,Consultancy,0,193.78,193.78,23-May-11,TBC
Nottinghamshire County Council,02-04727,PROTOCOL NATIONAL,People,Vocational Training,0,928.97,928.97,23-May-11,TBC
Nottinghamshire County Council,02-04728,CUSTOM GROUP LIMITED,Soft Facilities Management,Furniture And Furnishings,0,143.4,143.4,23-May-11,TBC
Nottinghamshire County Council,02-04729,BADENOCH AND CLARK,People,Recruitment,0,300,300,23-May-11,TBC
Nottinghamshire County Council,02-04730,BADENOCH AND CLARK,People,Recruitment,0,200,200,23-May-11,TBC
Nottinghamshire County Council,02-04731,BADENOCH AND CLARK,People,Recruitment,0,400,400,23-May-11,TBC
Nottinghamshire County Council,02-04732,BADENOCH AND CLARK,People,Recruitment,0,200,200,23-May-11,TBC
Nottinghamshire County Council,02-04734,NOTTINGHAM CITY COUNCIL,Professional Services,Politics And Civic Affairs,0,"8,065.13","8,065.13",23-May-11,TBC
Nottinghamshire County Council,02-04735,COMET GROUP PLC,ICT,Audio And Visual Equipment,0,96,96,23-May-11,TBC
Nottinghamshire County Council,02-04736,GET BACK SUPPLIES LIMITED,Soft Facilities Management,Furniture And Furnishings,0,219.88,219.88,23-May-11,TBC
Nottinghamshire County Council,02-04738,MEDICARE FIRST,Care,Medical Equipment And  Supplies,0,237.85,237.85,23-May-11,TBC
Nottinghamshire County Council,02-04740,CAPITA SOCIAL CARE AND HOUSING,Care,Domiciliary Care,0,114.63,114.63,25-May-11,TBC
Nottinghamshire County Council,02-04741,CAPITA SOCIAL CARE AND HOUSING,Care,Domiciliary Care,0,113.52,113.52,25-May-11,TBC
Nottinghamshire County Council,02-04742,CAPITA SOCIAL CARE AND HOUSING,Care,Domiciliary Care,0,148.72,148.72,23-May-11,TBC
Nottinghamshire County Council,02-04743,ACADEMY SOCIAL CARE LIMITED,Care,Domiciliary Care,0,122.06,122.06,23-May-11,TBC
Nottinghamshire County Council,02-04744,CAPITA SOCIAL CARE AND HOUSING,Care,Domiciliary Care,0,113.52,113.52,23-May-11,TBC
Nottinghamshire County Council,02-04745,WILLIAM FREER LIMITED,Soft Facilities Management,Vending Machines And Food Equipment,0,359.56,359.56,23-May-11,TBC
Nottinghamshire County Council,02-04746,WEIGHTMANS LLP,Professional Services,Legal Services,0,"2,990.40","2,990.40",23-May-11,TBC
Nottinghamshire County Council,02-04747,DODDS AND PARTNERS,Care,Medical Equipment And  Supplies,0,94.33,94.33,23-May-11,TBC
Nottinghamshire County Council,02-04748,DODDS AND PARTNERS,Care,Medical Equipment And  Supplies,0,111,111,23-May-11,TBC
Nottinghamshire County Council,02-04749,DODDS AND PARTNERS,Care,Medical Equipment And  Supplies,0,146,146,23-May-11,TBC
Nottinghamshire County Council,02-04750,BROWNE JACOBSON LLP,Professional Services,Legal Services,0,219.6,219.6,23-May-11,TBC
Nottinghamshire County Council,02-04751,CARTER BROWN ASSOCIATES,Professional Services,Legal Services,0,154.73,154.73,23-May-11,TBC
Nottinghamshire County Council,02-04752,BROWNE JACOBSON LLP,Professional Services,Legal Services,0,240,240,23-May-11,TBC
Nottinghamshire County Council,02-04753,WRAGGE AND CO,Professional Services,Legal Services,0,"1,167.60","1,167.60",25-May-11,TBC
Nottinghamshire County Council,02-04754,PEDAL EXPRESS LIMITED,Soft Facilities Management,Mail And Couriers,0,141.78,141.78,23-May-11,TBC
Nottinghamshire County Council,02-04756,WEIGHTMANS LLP,Professional Services,Legal Services,0,"2,212.66","2,212.66",23-May-11,TBC
Nottinghamshire County Council,02-04757,SWIIS (UK) LIMITED,People,Agency Staff - Care,0,135.48,135.48,23-May-11,TBC
Nottinghamshire County Council,02-04758,C E F M LIMITED,Professional Services,Consultancy,0,"6,914.16","6,914.16",23-May-11,TBC
Nottinghamshire County Council,02-04759,GNA SURVEYORS LIMITED,Professional Services,Professional Engineering Services,0,480,480,23-May-11,TBC
Nottinghamshire County Council,02-04800,BROXTOWE BOROUGH COUNCIL,Professional Services,Politics And Civic Affairs,0,"-2,046.28","-2,046.28",23-May-11,TBC
Nottinghamshire County Council,02-04930,BRAKE BROS LIMITED,Soft Facilities Management,Prepared And Preserved Foods,0,-0.03,-0.03,24-May-11,TBC
Nottinghamshire County Council,02-04932,BRAKE BROS LIMITED,Soft Facilities Management,Prepared And Preserved Foods,0,-0.02,-0.02,24-May-11,TBC
Nottinghamshire County Council,02-04992,SPECIALIST COMPUTER CENTRES LIMITED,ICT,Computer Services,0,"7,928.81","7,928.81",24-May-11,TBC
Nottinghamshire County Council,02-04993,MERIDIAN BUSINESS SUPPORT LIMITED,People,Recruitment,0,86.63,86.63,25-May-11,TBC
Nottinghamshire County Council,02-04994,EMO OIL LIMITED,Hard Facilities Management ,Utilities,0,51.05,51.05,24-May-11,TBC
Nottinghamshire County Council,02-04996,CAPITA SOCIAL CARE AND HOUSING,Care,Domiciliary Care,0,113.52,113.52,24-May-11,TBC
Nottinghamshire County Council,02-04997,CAPITA SOCIAL CARE AND HOUSING,Care,Domiciliary Care,0,132.28,132.28,25-May-11,TBC
Nottinghamshire County Council,02-04998,CAPITA SOCIAL CARE AND HOUSING,Care,Domiciliary Care,0,87.84,87.84,25-May-11,TBC
Nottinghamshire County Council,02-04999,THE ROWAN ORGANISATION,Care,Daycare,0,"4,016.40","4,016.40",24-May-11,TBC
Nottinghamshire County Council,02-05000,THE NE GROUP (NORTH NOTTINGHAMSHIRE ENTERPRISES),Transport And Travel,Hotels And Venues,0,138.4,138.4,24-May-11,TBC
Nottinghamshire County Council,02-05001,THE NE GROUP (NORTH NOTTINGHAMSHIRE ENTERPRISES),Transport And Travel,Hotels And Venues,0,130.6,130.6,24-May-11,TBC
Nottinghamshire County Council,02-05003,EAST MIDLANDS QUALITY CENTRE LIMITED,Care,Community And Social Services,0,304,304,31-May-11,TBC
Nottinghamshire County Council,02-05004,RED EGG LIMITED,External Services (Highways And Culture),Sports And Recreational Equipment And Supplies,0,"1,282.00","1,282.00",24-May-11,TBC
Nottinghamshire County Council,02-05005,CAPITA SOCIAL CARE AND HOUSING,Care,Domiciliary Care,0,113.52,113.52,25-May-11,TBC
Nottinghamshire County Council,02-05006,GREENSCENE LANDSCAPING,Professional Services,Professional Artists And Performers,0,514.26,514.26,24-May-11,TBC
Nottinghamshire County Council,02-05007,TNT POST UK LIMITED,Soft Facilities Management,Mail And Couriers,0,358.85,358.85,24-May-11,TBC
Nottinghamshire County Council,02-05008,EDUCATIONAL RECORDING AGENCY,Professional Services,Legal Services,0,"6,664.19","6,664.19",24-May-11,TBC
Nottinghamshire County Council,02-05009,SYNARBOR EDUCATION,External Services (Highways And Culture),Education Services,0,192.18,192.18,24-May-11,TBC
Nottinghamshire County Council,02-05010,SYNARBOR EDUCATION,External Services (Highways And Culture),Education Services,0,186.98,186.98,24-May-11,TBC
Nottinghamshire County Council,02-05011,OUTCOMES UK,People,Recruitment,0,"4,329.50","4,329.50",24-May-11,TBC
Nottinghamshire County Council,02-05012,REED EMPLOYMENT PLC,People,Recruitment,0,163.62,163.62,24-May-11,TBC
Nottinghamshire County Council,02-05013,REED EMPLOYMENT PLC,People,Recruitment,0,201.8,201.8,24-May-11,TBC
Nottinghamshire County Council,02-05014,REED EMPLOYMENT PLC,People,Recruitment,0,166.35,166.35,24-May-11,TBC
Nottinghamshire County Council,02-05015,ACADEMY SOCIAL CARE LIMITED,Care,Domiciliary Care,0,166.21,166.21,24-May-11,TBC
Nottinghamshire County Council,02-05016,CAPITA SOCIAL CARE AND HOUSING,Care,Domiciliary Care,0,145.44,145.44,25-May-11,TBC
Nottinghamshire County Council,02-05018,CAPITA SOCIAL CARE AND HOUSING,Care,Domiciliary Care,0,177.6,177.6,25-May-11,TBC
Nottinghamshire County Council,02-05057,MERIDIAN BUSINESS SUPPORT LIMITED,People,Recruitment,0,-0.01,-0.01,24-May-11,TBC
Nottinghamshire County Council,02-05067,JOHNSTON PUBLISHING LIMITED,ICT,"Printing And Publishing, Equipment And Supplies",0,-0.02,-0.02,25-May-11,TBC
Nottinghamshire County Council,02-05184,W T BURDEN LIMITED,Hard Facilities Management ,Building And Construction Supplies,0,-0.01,-0.01,26-May-11,TBC
Nottinghamshire County Council,02-08331,LIMEHOUSE SOFTWARE LIMITED,ICT,Software,0,500,500,25-May-11,TBC
Nottinghamshire County Council,02-08332,WILLIAM FREER LIMITED,Soft Facilities Management,Vending Machines And Food Equipment,0,409.35,409.35,25-May-11,TBC
Nottinghamshire County Council,02-08333,EGS GROUP LIMITED,Professional Services,Consultancy,0,860.46,860.46,25-May-11,TBC
Nottinghamshire County Council,02-08334,BRISSCO SIGNS AND GRAPHICS,Soft Facilities Management,Printed Media And Signage,0,575.03,575.03,25-May-11,TBC
Nottinghamshire County Council,02-08335,NCC SERVICES LIMITED,ICT,Computer Equipment And Accessories,0,120,120,25-May-11,TBC
Nottinghamshire County Council,02-08336,JBA CONSULTING,Professional Services,Consultancy,0,120,120,25-May-11,TBC
Nottinghamshire County Council,02-08337,JBA CONSULTING,Professional Services,Consultancy,0,700,700,25-May-11,TBC
Nottinghamshire County Council,02-08340,THE ROWAN ORGANISATION,Care,Daycare,0,60,60,25-May-11,TBC
Nottinghamshire County Council,02-08341,CAPITA SOCIAL CARE AND HOUSING,Care,Domiciliary Care,0,113.52,113.52,25-May-11,TBC
Nottinghamshire County Council,02-08342,SERENE CONSULTING LIMITED,Professional Services,Consultancy,0,"1,870.00","1,870.00",25-May-11,TBC
Nottinghamshire County Council,02-08343,KB RECRUITMENT LIMITED,People,Recruitment,0,414.62,414.62,25-May-11,TBC
Nottinghamshire County Council,02-08344,KB RECRUITMENT LIMITED,People,Recruitment,0,243.43,243.43,25-May-11,TBC
Nottinghamshire County Council,02-08345,KB RECRUITMENT LIMITED,People,Recruitment,0,176.37,176.37,25-May-11,TBC
Nottinghamshire County Council,02-08346,EDEN BROWN LIMITED,People,Recruitment,0,189.18,189.18,25-May-11,TBC
Nottinghamshire County Council,02-08347,EDEN BROWN LIMITED,People,Recruitment,0,243.01,243.01,25-May-11,TBC
Nottinghamshire County Council,02-08350,KB RECRUITMENT LIMITED,People,Recruitment,0,255.93,255.93,25-May-11,TBC
Nottinghamshire County Council,02-08351,KB RECRUITMENT LIMITED,People,Recruitment,0,310.87,310.87,25-May-11,TBC
Nottinghamshire County Council,02-08353,WILSON ELECTRICS,Hard Facilities Management ,Electrical Systems And Lighting,0,86.77,86.77,25-May-11,TBC
Nottinghamshire County Council,02-08354,WILSON ELECTRICS,Hard Facilities Management ,Electrical Systems And Lighting,0,196.49,196.49,25-May-11,TBC
Nottinghamshire County Council,02-08359,OUTCOMES UK,People,Recruitment,0,584,584,25-May-11,TBC
Nottinghamshire County Council,02-08360,OUTCOMES UK,People,Recruitment,0,582.56,582.56,25-May-11,TBC
Nottinghamshire County Council,02-08361,COOKCO LIMITED,Soft Facilities Management,Vending Machines And Food Equipment,0,296,296,25-May-11,TBC
Nottinghamshire County Council,02-08363,NOTTINGHAM AND NOTTINGHAMSHIRE FUTURES LIMITED,Care,Healthcare Services,0,"2,300.00","2,300.00",25-May-11,TBC
Nottinghamshire County Council,02-08364,THE APPROPRIATE ADULT SERVICE,Care,Community And Social Services,0,567,567,25-May-11,TBC
Nottinghamshire County Council,02-08390,CARITAS RECRUITMENT,People,Recruitment,0,200.58,200.58,25-May-11,TBC
Nottinghamshire County Council,02-08391,CARITAS RECRUITMENT,People,Recruitment,0,217.45,217.45,25-May-11,TBC
Nottinghamshire County Council,02-08483,TALLON MONITORING LIMITED,ICT,Telecommunications And Media,0,"1,612.00","1,612.00",26-May-11,TBC
Nottinghamshire County Council,02-08484,DODDS AND PARTNERS,Care,Medical Equipment And  Supplies,0,207.57,207.57,26-May-11,TBC
Nottinghamshire County Council,02-08485,DODDS AND PARTNERS,Care,Medical Equipment And  Supplies,0,247.39,247.39,26-May-11,TBC
Nottinghamshire County Council,02-08486,DODDS AND PARTNERS,Care,Medical Equipment And  Supplies,0,84.65,84.65,26-May-11,TBC
Nottinghamshire County Council,02-08487,DODDS AND PARTNERS,Care,Medical Equipment And  Supplies,0,148.07,148.07,26-May-11,TBC
Nottinghamshire County Council,02-08488,TOWER MINT,External Services (Highways And Culture),Arts And Crafts,0,187.5,187.5,26-May-11,TBC
Nottinghamshire County Council,02-08490,NUMATIC INTERNATIONAL LIMITED,Soft Facilities Management,Cleaning Equipment And Janitorial Supplies,0,164.89,164.89,26-May-11,TBC
Nottinghamshire County Council,02-08493,A4E CONSULT LIMITED,Professional Services,Consultancy,0,136.5,136.5,26-May-11,TBC
Nottinghamshire County Council,02-08494,VEOLIA ENVIRONMENTAL SERVICES PLC,Soft Facilities Management,Scrap And Waste Materials,0,101.98,101.98,26-May-11,TBC
Nottinghamshire County Council,02-08495,VEOLIA ENVIRONMENTAL SERVICES PLC,Soft Facilities Management,Scrap And Waste Materials,0,107.82,107.82,26-May-11,TBC
Nottinghamshire County Council,02-08496,ADT FIRE AND SECURITY PLC,Soft Facilities Management,Security,0,98,98,26-May-11,TBC
Nottinghamshire County Council,02-08497,CAPITA SOCIAL CARE AND HOUSING,Care,Domiciliary Care,0,132.02,132.02,26-May-11,TBC
Nottinghamshire County Council,02-08498,CAPITA,Professional Services,Consultancy,0,207.68,207.68,26-May-11,TBC
Nottinghamshire County Council,02-08499,CAPITA SOCIAL CARE AND HOUSING,Care,Domiciliary Care,0,114.63,114.63,26-May-11,TBC
Nottinghamshire County Council,02-08500,KONICA MINOLTA,ICT,"Printing And Publishing, Equipment And Supplies",0,148.42,148.42,26-May-11,TBC
Nottinghamshire County Council,02-08503,D J AND M BOWER (TARMAC ROADSURFACING),External Services (Highways And Culture),Highways And Works,0,223.44,223.44,26-May-11,TBC
Nottinghamshire County Council,02-08504,COSTAR UK LIMITED,Professional Services,Property Management,0,847.6,847.6,26-May-11,TBC
Nottinghamshire County Council,02-08505,THE CONSORTIUM,External Services (Highways And Culture),Education Services,0,110.4,110.4,26-May-11,TBC
Nottinghamshire County Council,02-08507,WATER SOLUTIONS,Hard Facilities Management ,Plumbing Services,0,87.36,87.36,26-May-11,TBC
Nottinghamshire County Council,02-08509,WILSON ELECTRICS,Hard Facilities Management ,Electrical Systems And Lighting,0,148.16,148.16,26-May-11,TBC
Nottinghamshire County Council,02-08510,HONEYWELL BUILDING SOLUTIONS,Hard Facilities Management ,Building Construction Services,0,511.22,511.22,26-May-11,TBC
Nottinghamshire County Council,02-08520,BRITISH TELECOMMUNICATIONS PLC,ICT,Telecommunications And Media,0,-0.01,-0.01,27-May-11,TBC
Nottinghamshire County Council,02-08528,SSP HATS LIMITED,Soft Facilities Management,Clothing,0,-7.26,-7.26,26-May-11,TBC
Nottinghamshire County Council,02-08529,FARMHOUSE SPECIALITY FOODS,Soft Facilities Management,Prepared And Preserved Foods,0,0.02,0.02,26-May-11,TBC
Nottinghamshire County Council,02-08612,BRIGHT IDEAS MARKETING LIMITED,Professional Services,Marketing And Distribution,0,-0.01,-0.01,27-May-11,TBC
Nottinghamshire County Council,02-08639,FILA-LYRA GB LIMITED,External Services (Highways And Culture),Manufacturing Machinery,0,0.01,0.01,27-May-11,TBC
Nottinghamshire County Council,02-08787,B N GIBSON MOTORS,Transport And Travel,Taxi,0,0.01,0.01,27-May-11,TBC
Nottinghamshire County Council,02-08806,BRAKE BROS LIMITED,Soft Facilities Management,Prepared And Preserved Foods,0,0.02,0.02,27-May-11,TBC
Nottinghamshire County Council,02-08808,BRAKE BROS LIMITED,Soft Facilities Management,Prepared And Preserved Foods,0,-0.03,-0.03,27-May-11,TBC
Nottinghamshire County Council,02-08908,CARDEA,Care,Healthcare Services,0,102.94,102.94,31-May-11,TBC
Nottinghamshire County Council,02-08909,SOFTBOX LIMITED,ICT,Software,0,425,425,31-May-11,TBC
Nottinghamshire County Council,02-08910,RURAL COMMUNITY ACTION GROUP,External Services (Highways And Culture),Organisations And Clubs,0,"7,117.20","7,117.20",31-May-11,TBC
Nottinghamshire County Council,02-08911,CAPITA SOCIAL CARE AND HOUSING,Care,Domiciliary Care,0,96,96,31-May-11,TBC
Nottinghamshire County Council,02-08912,CAPITA SOCIAL CARE AND HOUSING,Care,Domiciliary Care,0,91.06,91.06,31-May-11,TBC
Nottinghamshire County Council,02-08913,KONICA MINOLTA,ICT,"Printing And Publishing, Equipment And Supplies",0,173.47,173.47,31-May-11,TBC
Nottinghamshire County Council,02-08914,EMO OIL LIMITED,Hard Facilities Management ,Utilities,0,409.92,409.92,31-May-11,TBC
Nottinghamshire County Council,02-08916,OUTCOMES UK,People,Recruitment,0,583.92,583.92,31-May-11,TBC
Nottinghamshire County Council,02-08917,PELICAN BUYING COMPANY LIMITED,Professional Services,Consultancy,0,400,400,31-May-11,TBC
Nottinghamshire County Council,02-08920,VEOLIA ENVIRONMENTAL SERVICES PLC,Soft Facilities Management,Scrap And Waste Materials,0,110.16,110.16,31-May-11,TBC
Nottinghamshire County Council,02-08921,VEOLIA ENVIRONMENTAL SERVICES PLC,Soft Facilities Management,Scrap And Waste Materials,0,96.28,96.28,31-May-11,TBC
Nottinghamshire County Council,02-08922,KONICA MINOLTA,ICT,"Printing And Publishing, Equipment And Supplies",0,146.29,146.29,31-May-11,TBC
Nottinghamshire County Council,02-08923,KB RECRUITMENT LIMITED,People,Recruitment,0,88.18,88.18,31-May-11,TBC
Nottinghamshire County Council,02-08924,CAPITA,Professional Services,Consultancy,0,"10,806.00","10,806.00",31-May-11,TBC
Nottinghamshire County Council,02-08926,ACADEMY SOCIAL CARE LIMITED,Care,Domiciliary Care,0,192.18,192.18,31-May-11,TBC
Nottinghamshire County Council,02-08927,CAPITA SOCIAL CARE AND HOUSING,Care,Domiciliary Care,0,133.3,133.3,31-May-11,TBC
Nottinghamshire County Council,02-08928,E M D D LIMITED,Hard Facilities Management ,Tools And General Machinery,0,"2,033.60","2,033.60",31-May-11,TBC
Nottinghamshire County Council,02-08929,A4E CONSULT LIMITED,Professional Services,Consultancy,0,136.5,136.5,31-May-11,TBC
Nottinghamshire County Council,02-08930,CAPITA SOCIAL CARE AND HOUSING,Care,Domiciliary Care,0,113.52,113.52,31-May-11,TBC
Nottinghamshire County Council,02-08931,EDEN BROWN LIMITED,People,Recruitment,0,250.3,250.3,31-May-11,TBC
Nottinghamshire County Council,02-08933,GOVNET COMMUNICATIONS,ICT,Telecommunications And Media,0,88,88,31-May-11,TBC
Nottinghamshire County Council,02-08936,SODEXO PRESTIGE LIMITED,Soft Facilities Management,Vending Machines And Food Equipment,0,770.3,770.3,31-May-11,TBC
Nottinghamshire County Council,02-08937,WILLIAM FREER LIMITED,Soft Facilities Management,Vending Machines And Food Equipment,0,245.45,245.45,31-May-11,TBC
Nottinghamshire County Council,02-08938,PIVOTAL BUSINESS SOLUTIONS LIMITED,TBC,TBC,0,350,350,31-May-11,TBC
Nottinghamshire County Council,02-01244,MAKING IT! ENTERPRISES LIMITED,External Services (Highways And Culture),Sports And Recreational Equipment And Supplies,260.66,260.66,521.32,04-May-11,TBC
Nottinghamshire County Council,02-03250,BESTWOOD LODGE HOTEL,Transport And Travel,Hotels And Venues,267.67,267.67,535.34,13-May-11,TBC
Nottinghamshire County Council,02-02751,DRAEFERN LIMITED T/A RIGHT4STAFF,People,Recruitment,420.83,0,420.83,11-May-11,COMMUNITIES
Nottinghamshire County Council,02-02752,DRAEFERN LIMITED T/A RIGHT4STAFF,People,Recruitment,432.6,0,432.6,11-May-11,COMMUNITIES
Nottinghamshire County Council,02-02753,DRAEFERN LIMITED T/A RIGHT4STAFF,People,Recruitment,432.6,0,432.6,11-May-11,COMMUNITIES
Nottinghamshire County Council,02-02754,DRAEFERN LIMITED T/A RIGHT4STAFF,People,Recruitment,217.2,0,217.2,11-May-11,COMMUNITIES
Nottinghamshire County Council,02-02754,DRAEFERN LIMITED T/A RIGHT4STAFF,People,Recruitment,411.78,0,411.78,11-May-11,COMMUNITIES
Nottinghamshire County Council,02-02755,DRAEFERN LIMITED T/A RIGHT4STAFF,People,Recruitment,420.83,0,420.83,11-May-11,COMMUNITIES
Nottinghamshire County Council,02-03110,NUMATIC INTERNATIONAL LIMITED,Soft Facilities Management,Cleaning Equipment And Janitorial Supplies,"1,325.22",0,"1,325.22",12-May-11,COMMUNITIES
Nottinghamshire County Council,02-03436,BRITISH STANDARDS INSTITUTE,External Services (Highways And Culture),Organisations And Clubs,567,113.4,680.4,13-May-11,COMMUNITIES
Nottinghamshire County Council,02-03955,ROYAL MAIL GROUP PLC,Soft Facilities Management,Mail And Couriers,934.34,0,934.34,20-May-11,COMMUNITIES
Nottinghamshire County Council,02-03997,DRAEFERN LIMITED T/A RIGHT4STAFF,People,Recruitment,360.4,0,360.4,18-May-11,COMMUNITIES
Nottinghamshire County Council,02-03997,DRAEFERN LIMITED T/A RIGHT4STAFF,People,Recruitment,135.68,0,135.68,18-May-11,COMMUNITIES
Nottinghamshire County Council,02-03998,DRAEFERN LIMITED T/A RIGHT4STAFF,People,Recruitment,381.6,0,381.6,18-May-11,COMMUNITIES
Nottinghamshire County Council,02-03998,DRAEFERN LIMITED T/A RIGHT4STAFF,People,Recruitment,203.52,0,203.52,18-May-11,COMMUNITIES
Nottinghamshire County Council,02-04101,NUMATIC INTERNATIONAL LIMITED,Soft Facilities Management,Cleaning Equipment And Janitorial Supplies,"4,466.15",0,"4,466.15",19-May-11,COMMUNITIES
Nottinghamshire County Council,02-04101,NUMATIC INTERNATIONAL LIMITED,Soft Facilities Management,Cleaning Equipment And Janitorial Supplies,"1,017.00",0,"1,017.00",19-May-11,COMMUNITIES
Nottinghamshire County Council,02-04101,NUMATIC INTERNATIONAL LIMITED,Soft Facilities Management,Cleaning Equipment And Janitorial Supplies,"5,254.10",0,"5,254.10",19-May-11,COMMUNITIES
Nottinghamshire County Council,02-04101,NUMATIC INTERNATIONAL LIMITED,Soft Facilities Management,Cleaning Equipment And Janitorial Supplies,"2,286.20",0,"2,286.20",19-May-11,COMMUNITIES
Nottinghamshire County Council,02-08550,EAST MIDLANDS VEHICLE HIRE,Transport And Travel,Motor Vehicles,10,0,10,27-May-11,COMMUNITIES
Nottinghamshire County Council,02-08550,EAST MIDLANDS VEHICLE HIRE,Transport And Travel,Motor Vehicles,420,84,504,27-May-11,COMMUNITIES
Nottinghamshire County Council,02-00145,PHS GROUP PLC,Soft Facilities Management,Cleaning Equipment And Janitorial Supplies,"3,019.48",603.9,"3,623.38",31-May-11,COMMUNITIES
Nottinghamshire County Council,02-00390,ONLINE ROCK SALT,External Services (Highways And Culture),Earth And Stone Aggregates ,"2,800.00",490,"3,290.00",16-May-11,COMMUNITIES
Nottinghamshire County Council,02-00391,ONLINE ROCK SALT,External Services (Highways And Culture),Earth And Stone Aggregates ,"2,800.00",490,"3,290.00",16-May-11,COMMUNITIES
Nottinghamshire County Council,02-00392,ONLINE ROCK SALT,External Services (Highways And Culture),Earth And Stone Aggregates ,"2,800.00",490,"3,290.00",16-May-11,COMMUNITIES
Nottinghamshire County Council,02-00393,ONLINE ROCK SALT,External Services (Highways And Culture),Earth And Stone Aggregates ,"2,800.00",560,"3,360.00",16-May-11,COMMUNITIES
Nottinghamshire County Council,02-00394,ONLINE ROCK SALT,External Services (Highways And Culture),Earth And Stone Aggregates ,"2,800.00",560,"3,360.00",16-May-11,COMMUNITIES
Nottinghamshire County Council,02-00395,ONLINE ROCK SALT,External Services (Highways And Culture),Earth And Stone Aggregates ,"2,240.00",392,"2,632.00",16-May-11,COMMUNITIES
Nottinghamshire County Council,02-00396,ONLINE ROCK SALT,External Services (Highways And Culture),Earth And Stone Aggregates ,"-2,240.00",-392,"-2,632.00",16-May-11,COMMUNITIES
Nottinghamshire County Council,02-05006,GREENSCENE LANDSCAPING,Professional Services,Professional Artists And Performers,"2,174.00",0,"2,174.00",24-May-11,COMMUNITIES
Nottinghamshire County Council,02-05006,GREENSCENE LANDSCAPING,Professional Services,Professional Artists And Performers,397.28,0,397.28,24-May-11,COMMUNITIES
Nottinghamshire County Council,02-03316,ART CLEANING (MIDLANDS) LIMITED,Soft Facilities Management,Industrial Cleaning Services,589.68,0,589.68,13-May-11,COMMUNITIES
Nottinghamshire County Council,02-03321,ART CLEANING (MIDLANDS) LIMITED,Soft Facilities Management,Industrial Cleaning Services,562.64,0,562.64,13-May-11,COMMUNITIES
Nottinghamshire County Council,02-01847,OCS GROUP UK LIMITED,Soft Facilities Management,Cleaning Equipment And Janitorial Supplies,472.68,94.54,567.22,06-May-11,COMMUNITIES
Nottinghamshire County Council,02-03298,ART CLEANING (MIDLANDS) LIMITED,Soft Facilities Management,Industrial Cleaning Services,525.2,0,525.2,13-May-11,COMMUNITIES
Nottinghamshire County Council,02-01873,PHS GROUP PLC,Soft Facilities Management,Cleaning Equipment And Janitorial Supplies,128.49,25.7,154.19,06-May-11,COMMUNITIES
Nottinghamshire County Council,02-01873,PHS GROUP PLC,Soft Facilities Management,Cleaning Equipment And Janitorial Supplies,642.45,128.49,770.94,06-May-11,COMMUNITIES
Nottinghamshire County Council,02-00144,INPLACE PERSONNEL SERVICES LIMITED,People,Recruitment,264.6,52.92,317.52,13-May-11,COMMUNITIES
Nottinghamshire County Council,02-00476,INPLACE PERSONNEL SERVICES LIMITED,People,Recruitment,28.35,5.67,34.02,05-May-11,COMMUNITIES
Nottinghamshire County Council,02-00476,INPLACE PERSONNEL SERVICES LIMITED,People,Recruitment,28.35,5.67,34.02,05-May-11,COMMUNITIES
Nottinghamshire County Council,02-00476,INPLACE PERSONNEL SERVICES LIMITED,People,Recruitment,434.7,86.94,521.64,05-May-11,COMMUNITIES
Nottinghamshire County Council,02-01874,INPLACE PERSONNEL SERVICES LIMITED,People,Recruitment,28.35,5.67,34.02,06-May-11,COMMUNITIES
Nottinghamshire County Council,02-01874,INPLACE PERSONNEL SERVICES LIMITED,People,Recruitment,236.25,47.25,283.5,06-May-11,COMMUNITIES
Nottinghamshire County Council,02-03320,ART CLEANING (MIDLANDS) LIMITED,Soft Facilities Management,Industrial Cleaning Services,472.16,0,472.16,13-May-11,COMMUNITIES
Nottinghamshire County Council,02-00144,INPLACE PERSONNEL SERVICES LIMITED,People,Recruitment,189,37.8,226.8,13-May-11,COMMUNITIES
Nottinghamshire County Council,02-00476,INPLACE PERSONNEL SERVICES LIMITED,People,Recruitment,151.2,30.24,181.44,05-May-11,COMMUNITIES
Nottinghamshire County Council,02-01874,INPLACE PERSONNEL SERVICES LIMITED,People,Recruitment,189,37.8,226.8,06-May-11,COMMUNITIES
Nottinghamshire County Council,02-03319,ART CLEANING (MIDLANDS) LIMITED,Soft Facilities Management,Industrial Cleaning Services,514.8,0,514.8,13-May-11,COMMUNITIES
Nottinghamshire County Council,02-03736,CANDOR SERVICES LIMITED,Soft Facilities Management,Cleaning Equipment And Janitorial Supplies,4.09,0,4.09,17-May-11,COMMUNITIES
Nottinghamshire County Council,02-03736,CANDOR SERVICES LIMITED,Soft Facilities Management,Cleaning Equipment And Janitorial Supplies,26.1,0,26.1,17-May-11,COMMUNITIES
Nottinghamshire County Council,02-03736,CANDOR SERVICES LIMITED,Soft Facilities Management,Cleaning Equipment And Janitorial Supplies,9.3,0,9.3,17-May-11,COMMUNITIES
Nottinghamshire County Council,02-03736,CANDOR SERVICES LIMITED,Soft Facilities Management,Cleaning Equipment And Janitorial Supplies,1.12,0,1.12,17-May-11,COMMUNITIES
Nottinghamshire County Council,02-03736,CANDOR SERVICES LIMITED,Soft Facilities Management,Cleaning Equipment And Janitorial Supplies,11.07,0,11.07,17-May-11,COMMUNITIES
Nottinghamshire County Council,02-03736,CANDOR SERVICES LIMITED,Soft Facilities Management,Cleaning Equipment And Janitorial Supplies,0.59,0,0.59,17-May-11,COMMUNITIES
Nottinghamshire County Council,02-03736,CANDOR SERVICES LIMITED,Soft Facilities Management,Cleaning Equipment And Janitorial Supplies,0.79,0,0.79,17-May-11,COMMUNITIES
Nottinghamshire County Council,02-03736,CANDOR SERVICES LIMITED,Soft Facilities Management,Cleaning Equipment And Janitorial Supplies,1,0,1,17-May-11,COMMUNITIES
Nottinghamshire County Council,02-03736,CANDOR SERVICES LIMITED,Soft Facilities Management,Cleaning Equipment And Janitorial Supplies,1,0,1,17-May-11,COMMUNITIES
Nottinghamshire County Council,02-03736,CANDOR SERVICES LIMITED,Soft Facilities Management,Cleaning Equipment And Janitorial Supplies,15.18,0,15.18,17-May-11,COMMUNITIES
Nottinghamshire County Council,02-03736,CANDOR SERVICES LIMITED,Soft Facilities Management,Cleaning Equipment And Janitorial Supplies,16.5,0,16.5,17-May-11,COMMUNITIES
Nottinghamshire County Council,02-03736,CANDOR SERVICES LIMITED,Soft Facilities Management,Cleaning Equipment And Janitorial Supplies,70,0,70,17-May-11,COMMUNITIES
Nottinghamshire County Council,02-03736,CANDOR SERVICES LIMITED,Soft Facilities Management,Cleaning Equipment And Janitorial Supplies,36.7,0,36.7,17-May-11,COMMUNITIES
Nottinghamshire County Council,02-03736,CANDOR SERVICES LIMITED,Soft Facilities Management,Cleaning Equipment And Janitorial Supplies,3.6,0,3.6,17-May-11,COMMUNITIES
Nottinghamshire County Council,02-03736,CANDOR SERVICES LIMITED,Soft Facilities Management,Cleaning Equipment And Janitorial Supplies,2.95,0,2.95,17-May-11,COMMUNITIES
Nottinghamshire County Council,02-03736,CANDOR SERVICES LIMITED,Soft Facilities Management,Cleaning Equipment And Janitorial Supplies,4.09,0,4.09,17-May-11,COMMUNITIES
Nottinghamshire County Council,02-03736,CANDOR SERVICES LIMITED,Soft Facilities Management,Cleaning Equipment And Janitorial Supplies,13.05,0,13.05,17-May-11,COMMUNITIES
Nottinghamshire County Council,02-03736,CANDOR SERVICES LIMITED,Soft Facilities Management,Cleaning Equipment And Janitorial Supplies,9.3,0,9.3,17-May-11,COMMUNITIES
Nottinghamshire County Council,02-03736,CANDOR SERVICES LIMITED,Soft Facilities Management,Cleaning Equipment And Janitorial Supplies,1.12,0,1.12,17-May-11,COMMUNITIES
Nottinghamshire County Council,02-03736,CANDOR SERVICES LIMITED,Soft Facilities Management,Cleaning Equipment And Janitorial Supplies,0.98,0,0.98,17-May-11,COMMUNITIES
Nottinghamshire County Council,02-03736,CANDOR SERVICES LIMITED,Soft Facilities Management,Cleaning Equipment And Janitorial Supplies,36.7,0,36.7,17-May-11,COMMUNITIES
Nottinghamshire County Council,02-03736,CANDOR SERVICES LIMITED,Soft Facilities Management,Cleaning Equipment And Janitorial Supplies,5.9,0,5.9,17-May-11,COMMUNITIES
Nottinghamshire County Council,02-03736,CANDOR SERVICES LIMITED,Soft Facilities Management,Cleaning Equipment And Janitorial Supplies,18.23,0,18.23,17-May-11,COMMUNITIES
Nottinghamshire County Council,02-03736,CANDOR SERVICES LIMITED,Soft Facilities Management,Cleaning Equipment And Janitorial Supplies,18.23,0,18.23,17-May-11,COMMUNITIES
Nottinghamshire County Council,02-03736,CANDOR SERVICES LIMITED,Soft Facilities Management,Cleaning Equipment And Janitorial Supplies,1.5,0,1.5,17-May-11,COMMUNITIES
Nottinghamshire County Council,02-03736,CANDOR SERVICES LIMITED,Soft Facilities Management,Cleaning Equipment And Janitorial Supplies,11.07,0,11.07,17-May-11,COMMUNITIES
Nottinghamshire County Council,02-03736,CANDOR SERVICES LIMITED,Soft Facilities Management,Cleaning Equipment And Janitorial Supplies,0.59,0,0.59,17-May-11,COMMUNITIES
Nottinghamshire County Council,02-03736,CANDOR SERVICES LIMITED,Soft Facilities Management,Cleaning Equipment And Janitorial Supplies,0.79,0,0.79,17-May-11,COMMUNITIES
Nottinghamshire County Council,02-03736,CANDOR SERVICES LIMITED,Soft Facilities Management,Cleaning Equipment And Janitorial Supplies,3.6,0,3.6,17-May-11,COMMUNITIES
Nottinghamshire County Council,02-03736,CANDOR SERVICES LIMITED,Soft Facilities Management,Cleaning Equipment And Janitorial Supplies,2.95,0,2.95,17-May-11,COMMUNITIES
Nottinghamshire County Council,02-03736,CANDOR SERVICES LIMITED,Soft Facilities Management,Cleaning Equipment And Janitorial Supplies,4.09,0,4.09,17-May-11,COMMUNITIES
Nottinghamshire County Council,02-03736,CANDOR SERVICES LIMITED,Soft Facilities Management,Cleaning Equipment And Janitorial Supplies,13.05,0,13.05,17-May-11,COMMUNITIES
Nottinghamshire County Council,02-03736,CANDOR SERVICES LIMITED,Soft Facilities Management,Cleaning Equipment And Janitorial Supplies,9.3,0,9.3,17-May-11,COMMUNITIES
Nottinghamshire County Council,02-03736,CANDOR SERVICES LIMITED,Soft Facilities Management,Cleaning Equipment And Janitorial Supplies,1.12,0,1.12,17-May-11,COMMUNITIES
Nottinghamshire County Council,02-03736,CANDOR SERVICES LIMITED,Soft Facilities Management,Cleaning Equipment And Janitorial Supplies,18.23,0,18.23,17-May-11,COMMUNITIES
Nottinghamshire County Council,02-03736,CANDOR SERVICES LIMITED,Soft Facilities Management,Cleaning Equipment And Janitorial Supplies,18.23,0,18.23,17-May-11,COMMUNITIES
Nottinghamshire County Council,02-03736,CANDOR SERVICES LIMITED,Soft Facilities Management,Cleaning Equipment And Janitorial Supplies,8.94,0,8.94,17-May-11,COMMUNITIES
Nottinghamshire County Council,02-03736,CANDOR SERVICES LIMITED,Soft Facilities Management,Cleaning Equipment And Janitorial Supplies,36.7,0,36.7,17-May-11,COMMUNITIES
Nottinghamshire County Council,02-03736,CANDOR SERVICES LIMITED,Soft Facilities Management,Cleaning Equipment And Janitorial Supplies,3.1,0,3.1,17-May-11,COMMUNITIES
Nottinghamshire County Council,02-04139,ART CLEANING (MIDLANDS) LIMITED,Soft Facilities Management,Industrial Cleaning Services,"1,220.00",244,"1,464.00",26-May-11,COMMUNITIES
Nottinghamshire County Council,02-01875,BARKER ROSS LIMITED,People,Recruitment,417.06,83.41,500.47,05-May-11,COMMUNITIES
Nottinghamshire County Council,02-01876,BARKER ROSS LIMITED,People,Recruitment,417.06,83.41,500.47,05-May-11,COMMUNITIES
Nottinghamshire County Council,02-00477,STAFFLINE RECRUITMENT LIMITED,People,Recruitment,84.9,16.98,101.88,10-May-11,COMMUNITIES
Nottinghamshire County Council,02-00477,STAFFLINE RECRUITMENT LIMITED,People,Recruitment,169.8,33.96,203.76,10-May-11,COMMUNITIES
Nottinghamshire County Council,02-03190,STAFFLINE RECRUITMENT LIMITED,People,Recruitment,84.9,16.98,101.88,31-May-11,COMMUNITIES
Nottinghamshire County Council,02-03190,STAFFLINE RECRUITMENT LIMITED,People,Recruitment,169.8,33.96,203.76,31-May-11,COMMUNITIES
Nottinghamshire County Council,02-03191,STAFFLINE RECRUITMENT LIMITED,People,Recruitment,67.92,13.58,81.5,31-May-11,COMMUNITIES
Nottinghamshire County Council,02-03191,STAFFLINE RECRUITMENT LIMITED,People,Recruitment,135.84,27.17,163.01,31-May-11,COMMUNITIES
Nottinghamshire County Council,02-03192,STAFFLINE RECRUITMENT LIMITED,People,Recruitment,84.9,16.98,101.88,16-May-11,COMMUNITIES
Nottinghamshire County Council,02-03192,STAFFLINE RECRUITMENT LIMITED,People,Recruitment,101.88,20.38,122.26,16-May-11,COMMUNITIES
Nottinghamshire County Council,02-03193,STAFFLINE RECRUITMENT LIMITED,People,Recruitment,84.9,16.98,101.88,31-May-11,COMMUNITIES
Nottinghamshire County Council,02-03193,STAFFLINE RECRUITMENT LIMITED,People,Recruitment,169.8,33.96,203.76,31-May-11,COMMUNITIES
Nottinghamshire County Council,02-00477,STAFFLINE RECRUITMENT LIMITED,People,Recruitment,67.92,13.58,81.5,10-May-11,COMMUNITIES
Nottinghamshire County Council,02-02152,DRAEFERN LIMITED T/A RIGHT4STAFF,People,Recruitment,86,17.2,103.2,09-May-11,COMMUNITIES
Nottinghamshire County Council,02-02152,DRAEFERN LIMITED T/A RIGHT4STAFF,People,Recruitment,86,17.2,103.2,09-May-11,COMMUNITIES
Nottinghamshire County Council,02-02152,DRAEFERN LIMITED T/A RIGHT4STAFF,People,Recruitment,86,17.2,103.2,09-May-11,COMMUNITIES
Nottinghamshire County Council,02-02152,DRAEFERN LIMITED T/A RIGHT4STAFF,People,Recruitment,86,17.2,103.2,09-May-11,COMMUNITIES
Nottinghamshire County Council,02-02152,DRAEFERN LIMITED T/A RIGHT4STAFF,People,Recruitment,86,17.2,103.2,09-May-11,COMMUNITIES
Nottinghamshire County Council,02-02152,DRAEFERN LIMITED T/A RIGHT4STAFF,People,Recruitment,120.4,24.08,144.48,09-May-11,COMMUNITIES
Nottinghamshire County Council,02-03190,STAFFLINE RECRUITMENT LIMITED,People,Recruitment,84.9,16.98,101.88,31-May-11,COMMUNITIES
Nottinghamshire County Council,02-03191,STAFFLINE RECRUITMENT LIMITED,People,Recruitment,67.92,13.58,81.5,31-May-11,COMMUNITIES
Nottinghamshire County Council,02-03192,STAFFLINE RECRUITMENT LIMITED,People,Recruitment,84.9,16.98,101.88,16-May-11,COMMUNITIES
Nottinghamshire County Council,02-03193,STAFFLINE RECRUITMENT LIMITED,People,Recruitment,84.9,16.98,101.88,31-May-11,COMMUNITIES
Nottinghamshire County Council,02-02735,CANDOR SERVICES LIMITED,Soft Facilities Management,Cleaning Equipment And Janitorial Supplies,"5,990.00",0,"5,990.00",11-May-11,COMMUNITIES
Nottinghamshire County Council,02-08490,NUMATIC INTERNATIONAL LIMITED,Soft Facilities Management,Cleaning Equipment And Janitorial Supplies,824.44,0,824.44,26-May-11,COMMUNITIES
Nottinghamshire County Council,02-03737,CANDOR SERVICES LIMITED,Soft Facilities Management,Cleaning Equipment And Janitorial Supplies,358,0,358,17-May-11,COMMUNITIES
Nottinghamshire County Council,02-03737,CANDOR SERVICES LIMITED,Soft Facilities Management,Cleaning Equipment And Janitorial Supplies,11.5,0,11.5,17-May-11,COMMUNITIES
Nottinghamshire County Council,02-03737,CANDOR SERVICES LIMITED,Soft Facilities Management,Cleaning Equipment And Janitorial Supplies,16.5,0,16.5,17-May-11,COMMUNITIES
Nottinghamshire County Council,02-03737,CANDOR SERVICES LIMITED,Soft Facilities Management,Cleaning Equipment And Janitorial Supplies,40,0,40,17-May-11,COMMUNITIES
Nottinghamshire County Council,02-01421,TRENT ARCHITECTURE AND DESIGN LIMITED,Professional Services,Professional Engineering Services,"2,558.62",511.72,"3,070.34",04-May-11,RESOURCES
Nottinghamshire County Council,02-03199,CBP ARCHITECTS LIMITED,Professional Services,Professional Engineering Services,"1,625.00",325,"1,950.00",12-May-11,RESOURCES
Nottinghamshire County Council,02-03200,CBP ARCHITECTS LIMITED,Professional Services,Professional Engineering Services,"1,755.00",351,"2,106.00",12-May-11,RESOURCES
Nottinghamshire County Council,02-03201,CBP ARCHITECTS LIMITED,Professional Services,Professional Engineering Services,546,109.2,655.2,12-May-11,RESOURCES
Nottinghamshire County Council,02-03414,FAITHFULL AND GOULD,Professional Services,Consultancy,"2,995.00",599,"3,594.00",13-May-11,RESOURCES
Nottinghamshire County Council,02-03416,CBP ARCHITECTS LIMITED,Professional Services,Professional Engineering Services,"1,508.00",301.6,"1,809.60",13-May-11,RESOURCES
Nottinghamshire County Council,02-03417,CBP ARCHITECTS LIMITED,Professional Services,Professional Engineering Services,578.5,115.7,694.2,13-May-11,RESOURCES
Nottinghamshire County Council,02-03418,CBP ARCHITECTS LIMITED,Professional Services,Professional Engineering Services,546,109.2,655.2,13-May-11,RESOURCES
Nottinghamshire County Council,02-03606,FAITHFULL AND GOULD,Professional Services,Consultancy,952.5,190.5,"1,143.00",16-May-11,RESOURCES
Nottinghamshire County Council,02-03607,FAITHFULL AND GOULD,Professional Services,Consultancy,"1,207.61",241.52,"1,449.13",16-May-11,RESOURCES
Nottinghamshire County Council,02-03608,FAITHFULL AND GOULD,Professional Services,Consultancy,"1,188.75",237.75,"1,426.50",16-May-11,RESOURCES
Nottinghamshire County Council,02-04792,EDMOND SHIPWAY,Professional Services,Consultancy,"7,000.00","1,400.00","8,400.00",24-May-11,RESOURCES
Nottinghamshire County Council,02-08645,STANFORD MARSH,ICT,Hardware,535.65,107.13,642.78,26-May-11,RESOURCES
Nottinghamshire County Council,02-08649,VINCENT AND GORBING,Professional Services,Professional Engineering Services,"2,541.02",508.2,"3,049.22",26-May-11,RESOURCES
Nottinghamshire County Council,02-08654,WM SAUNDERS AND PARTNERS,Professional Services,Professional Engineering Services,480.77,96.15,576.92,26-May-11,RESOURCES
Nottinghamshire County Council,02-08655,WM SAUNDERS AND PARTNERS,Professional Services,Professional Engineering Services,540.45,108.09,648.54,26-May-11,RESOURCES
Nottinghamshire County Council,02-08685,EDC (NOTTINGHAM) LIMITED,People,Recruitment,"3,120.00",624,"3,744.00",26-May-11,RESOURCES
Nottinghamshire County Council,02-02278,EDC (NOTTINGHAM) LIMITED,People,Recruitment,962,0,962,09-May-11,RESOURCES
Nottinghamshire County Council,02-02278,EDC (NOTTINGHAM) LIMITED,People,Recruitment,962,0,962,09-May-11,RESOURCES
Nottinghamshire County Council,02-02278,EDC (NOTTINGHAM) LIMITED,People,Recruitment,962,0,962,09-May-11,RESOURCES
Nottinghamshire County Council,02-02278,EDC (NOTTINGHAM) LIMITED,People,Recruitment,962,0,962,09-May-11,RESOURCES
Nottinghamshire County Council,02-02702,TMH (WEST HALLAM) LIMITED,People,Agency Staff - Manual,83.2,0,83.2,11-May-11,RESOURCES
Nottinghamshire County Council,02-02702,TMH (WEST HALLAM) LIMITED,People,Agency Staff - Manual,"1,992.08",0,"1,992.08",11-May-11,RESOURCES
Nottinghamshire County Council,02-02739,TMH (WEST HALLAM) LIMITED,People,Agency Staff - Manual,"1,992.08",0,"1,992.08",11-May-11,RESOURCES
Nottinghamshire County Council,02-02739,TMH (WEST HALLAM) LIMITED,People,Agency Staff - Manual,73.2,0,73.2,11-May-11,RESOURCES
Nottinghamshire County Council,02-04127,TMH (WEST HALLAM) LIMITED,People,Agency Staff - Manual,796.83,0,796.83,19-May-11,RESOURCES
Nottinghamshire County Council,02-04127,TMH (WEST HALLAM) LIMITED,People,Agency Staff - Manual,18.4,0,18.4,19-May-11,RESOURCES
Nottinghamshire County Council,02-08975,T M S LIMITED,Hard Facilities Management ,Building And Construction Supplies,"-1,064.00",0,"-1,064.00",27-May-11,COMMUNITIES
Nottinghamshire County Council,02-00469,MANSFIELD DISTRICT COUNCIL,Professional Services,Politics And Civic Affairs,"76,702.63",0,"76,702.63",04-May-11,COMMUNITIES
Nottinghamshire County Council,02-00469,MANSFIELD DISTRICT COUNCIL,Professional Services,Politics And Civic Affairs,"-13,929.00",0,"-13,929.00",04-May-11,COMMUNITIES
Nottinghamshire County Council,02-00470,ASHFIELD DISTRICT COUNCIL,Professional Services,Politics And Civic Affairs,"5,358.00",0,"5,358.00",05-May-11,COMMUNITIES
Nottinghamshire County Council,02-00470,ASHFIELD DISTRICT COUNCIL,Professional Services,Politics And Civic Affairs,"-1,707.08",0,"-1,707.08",05-May-11,COMMUNITIES
Nottinghamshire County Council,02-00919,BARKER ROSS LIMITED,People,Recruitment,70.4,14.08,84.48,11-May-11,COMMUNITIES
Nottinghamshire County Council,02-00289,RAI TECHNICAL LIMITED,Hard Facilities Management ,Tools And General Machinery,49.68,9.94,59.62,05-May-11,COMMUNITIES
Nottinghamshire County Council,02-00289,RAI TECHNICAL LIMITED,Hard Facilities Management ,Tools And General Machinery,"1,126.25",225.25,"1,351.50",05-May-11,COMMUNITIES
Nottinghamshire County Council,02-00290,RAI TECHNICAL LIMITED,Hard Facilities Management ,Tools And General Machinery,91.26,18.25,109.51,05-May-11,COMMUNITIES
Nottinghamshire County Council,02-00290,RAI TECHNICAL LIMITED,Hard Facilities Management ,Tools And General Machinery,"1,126.25",225.25,"1,351.50",05-May-11,COMMUNITIES
Nottinghamshire County Council,02-01969,RAI TECHNICAL LIMITED,Hard Facilities Management ,Tools And General Machinery,73.98,14.8,88.78,24-May-11,COMMUNITIES
Nottinghamshire County Council,02-01969,RAI TECHNICAL LIMITED,Hard Facilities Management ,Tools And General Machinery,536.63,107.33,643.96,24-May-11,COMMUNITIES
Nottinghamshire County Council,02-03764,RAI TECHNICAL LIMITED,Hard Facilities Management ,Tools And General Machinery,132.84,26.57,159.41,24-May-11,COMMUNITIES
Nottinghamshire County Council,02-03764,RAI TECHNICAL LIMITED,Hard Facilities Management ,Tools And General Machinery,587.25,117.45,704.7,24-May-11,COMMUNITIES
Nottinghamshire County Council,02-04178,BARKER ROSS LIMITED,People,Recruitment,647.7,129.54,777.24,20-May-11,COMMUNITIES
Nottinghamshire County Council,02-00060,PARKER MERCHANTING LIMITED,Soft Facilities Management,Paper And Paper Products,8,1.6,9.6,05-May-11,COMMUNITIES
Nottinghamshire County Council,02-00060,PARKER MERCHANTING LIMITED,Soft Facilities Management,Paper And Paper Products,10.8,2.16,12.96,05-May-11,COMMUNITIES
Nottinghamshire County Council,02-00060,PARKER MERCHANTING LIMITED,Soft Facilities Management,Paper And Paper Products,52.44,10.49,62.93,05-May-11,COMMUNITIES
Nottinghamshire County Council,02-00060,PARKER MERCHANTING LIMITED,Soft Facilities Management,Paper And Paper Products,81.4,16.28,97.68,05-May-11,COMMUNITIES
Nottinghamshire County Council,02-00060,PARKER MERCHANTING LIMITED,Soft Facilities Management,Paper And Paper Products,84.6,16.92,101.52,05-May-11,COMMUNITIES
Nottinghamshire County Council,02-00060,PARKER MERCHANTING LIMITED,Soft Facilities Management,Paper And Paper Products,207,41.4,248.4,05-May-11,COMMUNITIES
Nottinghamshire County Council,02-00238,ADR TOWING,Transport And Travel,Fleet Maintenance Services,65.2,13.04,78.24,05-May-11,COMMUNITIES
Nottinghamshire County Council,02-00238,ADR TOWING,Transport And Travel,Fleet Maintenance Services,161.6,32.32,193.92,05-May-11,COMMUNITIES
Nottinghamshire County Council,02-00238,ADR TOWING,Transport And Travel,Fleet Maintenance Services,201.6,40.32,241.92,05-May-11,COMMUNITIES
Nottinghamshire County Council,02-00239,BOLLHOFF FASTENINGS LIMITED,Hard Facilities Management ,Hardware Fixtures And Fittings,467.4,93.48,560.88,04-May-11,COMMUNITIES
Nottinghamshire County Council,02-00291,RENNICKS (UK) LIMITED,External Services (Highways And Culture),Highways And Works,143.17,28.63,171.8,31-May-11,COMMUNITIES
Nottinghamshire County Council,02-00291,RENNICKS (UK) LIMITED,External Services (Highways And Culture),Highways And Works,180.36,36.07,216.43,31-May-11,COMMUNITIES
Nottinghamshire County Council,02-00291,RENNICKS (UK) LIMITED,External Services (Highways And Culture),Highways And Works,306.99,61.4,368.39,31-May-11,COMMUNITIES
Nottinghamshire County Council,02-00291,RENNICKS (UK) LIMITED,External Services (Highways And Culture),Highways And Works,397.57,79.51,477.08,31-May-11,COMMUNITIES
Nottinghamshire County Council,02-00291,RENNICKS (UK) LIMITED,External Services (Highways And Culture),Highways And Works,946.26,189.25,"1,135.51",31-May-11,COMMUNITIES
Nottinghamshire County Council,02-00291,RENNICKS (UK) LIMITED,External Services (Highways And Culture),Highways And Works,"1,181.80",236.36,"1,418.16",31-May-11,COMMUNITIES
Nottinghamshire County Council,02-00772,INDUSTRIAL DIAMOND SERVICES,External Services (Highways And Culture),Construction Plant And Equipment,"1,100.00",220,"1,320.00",04-May-11,COMMUNITIES
Nottinghamshire County Council,02-00773,INDUSTRIAL DIAMOND SERVICES,External Services (Highways And Culture),Construction Plant And Equipment,"1,100.00",220,"1,320.00",04-May-11,COMMUNITIES
Nottinghamshire County Council,02-00774,PARKER MERCHANTING LIMITED,Soft Facilities Management,Paper And Paper Products,496.8,99.36,596.16,04-May-11,COMMUNITIES
Nottinghamshire County Council,02-00775,SMITH BROS CAERCONAN WHOLESALE LIMITED,Hard Facilities Management ,Electronic Components And Supplies,"1,588.44",317.69,"1,906.13",04-May-11,COMMUNITIES
Nottinghamshire County Council,02-00775,SMITH BROS CAERCONAN WHOLESALE LIMITED,Hard Facilities Management ,Electronic Components And Supplies,28,5.6,33.6,04-May-11,COMMUNITIES
Nottinghamshire County Council,02-00921,KEYLINE BUILDERS MERCHANTS,Hard Facilities Management ,Building Construction Services,898.38,179.68,"1,078.06",05-May-11,COMMUNITIES
Nottinghamshire County Council,02-00922,THE POST AND COLUMN CO LIMITED,Hard Facilities Management ,Building And Construction Supplies,"2,348.10",469.62,"2,817.72",04-May-11,COMMUNITIES
Nottinghamshire County Council,02-00923,SIGNATURE LIMITED,External Services (Highways And Culture),Highways And Works,970.2,194.04,"1,164.24",04-May-11,COMMUNITIES
Nottinghamshire County Council,02-00923,SIGNATURE LIMITED,External Services (Highways And Culture),Highways And Works,"1,218.00",243.6,"1,461.60",04-May-11,COMMUNITIES
Nottinghamshire County Council,02-00923,SIGNATURE LIMITED,External Services (Highways And Culture),Highways And Works,3,0.6,3.6,04-May-11,COMMUNITIES
Nottinghamshire County Council,02-01008,ADR TOWING,Transport And Travel,Fleet Maintenance Services,504,100.8,604.8,04-May-11,COMMUNITIES
Nottinghamshire County Council,02-01009,W T BURDEN LIMITED,Hard Facilities Management ,Building And Construction Supplies,716.8,143.36,860.16,25-May-11,COMMUNITIES
Nottinghamshire County Council,02-01009,W T BURDEN LIMITED,Hard Facilities Management ,Building And Construction Supplies,0.22,0.04,0.26,25-May-11,COMMUNITIES
Nottinghamshire County Council,02-01066,AYTON ASPHALT,External Services (Highways And Culture),Highways And Works,"2,119.68",423.94,"2,543.62",04-May-11,COMMUNITIES
Nottinghamshire County Council,02-01326,RENNICKS (UK) LIMITED,External Services (Highways And Culture),Highways And Works,590,118,708,19-May-11,COMMUNITIES
Nottinghamshire County Council,02-01326,RENNICKS (UK) LIMITED,External Services (Highways And Culture),Highways And Works,590,118,708,19-May-11,COMMUNITIES
Nottinghamshire County Council,02-01326,RENNICKS (UK) LIMITED,External Services (Highways And Culture),Highways And Works,728,145.6,873.6,19-May-11,COMMUNITIES
Nottinghamshire County Council,02-01326,RENNICKS (UK) LIMITED,External Services (Highways And Culture),Highways And Works,788,157.6,945.6,19-May-11,COMMUNITIES
Nottinghamshire County Council,02-01345,SIGNPOST SOLUTIONS LIMITED,Soft Facilities Management,Printed Media And Signage,56,11.2,67.2,19-May-11,COMMUNITIES
Nottinghamshire County Council,02-01345,SIGNPOST SOLUTIONS LIMITED,Soft Facilities Management,Printed Media And Signage,"2,462.50",492.5,"2,955.00",19-May-11,COMMUNITIES
Nottinghamshire County Council,02-01360,EMO OIL LIMITED,Hard Facilities Management ,Utilities,"5,782.00","1,156.40","6,938.40",04-May-11,COMMUNITIES
Nottinghamshire County Council,02-01361,EMO OIL LIMITED,Hard Facilities Management ,Utilities,"1,355.80",67.79,"1,423.59",04-May-11,COMMUNITIES
Nottinghamshire County Council,02-01362,EMO OIL LIMITED,Hard Facilities Management ,Utilities,"3,941.48",788.3,"4,729.78",04-May-11,COMMUNITIES
Nottinghamshire County Council,02-01968,MARWOOD ELECTRICAL CO LIMITED,Hard Facilities Management ,Electrical Systems And Lighting,"8,145.60","1,629.12","9,774.72",25-May-11,COMMUNITIES
Nottinghamshire County Council,02-01968,MARWOOD ELECTRICAL CO LIMITED,Hard Facilities Management ,Electrical Systems And Lighting,48,9.6,57.6,25-May-11,COMMUNITIES
Nottinghamshire County Council,02-01970,SIGNPOST SOLUTIONS LIMITED,Soft Facilities Management,Printed Media And Signage,985,197,"1,182.00",17-May-11,COMMUNITIES
Nottinghamshire County Council,02-02153,GREENHAM TRADING LIMITED,Hard Facilities Management ,Health And Safety,532.6,106.52,639.12,09-May-11,COMMUNITIES
Nottinghamshire County Council,02-02154,KEYLINE BUILDERS MERCHANTS,Hard Facilities Management ,Building Construction Services,939.84,187.97,"1,127.81",10-May-11,COMMUNITIES
Nottinghamshire County Council,02-02439,SIGNPOST SOLUTIONS LIMITED,Soft Facilities Management,Printed Media And Signage,533.8,106.76,640.56,20-May-11,COMMUNITIES
Nottinghamshire County Council,02-02439,SIGNPOST SOLUTIONS LIMITED,Soft Facilities Management,Printed Media And Signage,635,127,762,20-May-11,COMMUNITIES
Nottinghamshire County Council,02-02467,EMO OIL LIMITED,Hard Facilities Management ,Utilities,"1,413.34",70.67,"1,484.01",11-May-11,COMMUNITIES
Nottinghamshire County Council,02-02468,EMO OIL LIMITED,Hard Facilities Management ,Utilities,"6,987.00","1,397.40","8,384.40",11-May-11,COMMUNITIES
Nottinghamshire County Council,02-02469,EMO OIL LIMITED,Hard Facilities Management ,Utilities,"4,618.40",923.68,"5,542.08",11-May-11,COMMUNITIES
Nottinghamshire County Council,02-02773,AGGREGATE INDUSTRIES UK,External Services (Highways And Culture),Earth And Stone Aggregates ,248.96,49.79,298.75,31-May-11,COMMUNITIES
Nottinghamshire County Council,02-02773,AGGREGATE INDUSTRIES UK,External Services (Highways And Culture),Earth And Stone Aggregates ,249.84,49.97,299.81,31-May-11,COMMUNITIES
Nottinghamshire County Council,02-02773,AGGREGATE INDUSTRIES UK,External Services (Highways And Culture),Earth And Stone Aggregates ,387.6,77.52,465.12,31-May-11,COMMUNITIES
Nottinghamshire County Council,02-02773,AGGREGATE INDUSTRIES UK,External Services (Highways And Culture),Earth And Stone Aggregates ,568.08,113.62,681.7,31-May-11,COMMUNITIES
Nottinghamshire County Council,02-02773,AGGREGATE INDUSTRIES UK,External Services (Highways And Culture),Earth And Stone Aggregates ,568.08,113.62,681.7,31-May-11,COMMUNITIES
Nottinghamshire County Council,02-02773,AGGREGATE INDUSTRIES UK,External Services (Highways And Culture),Earth And Stone Aggregates ,610.4,122.08,732.48,31-May-11,COMMUNITIES
Nottinghamshire County Council,02-02774,PUDSEY DIAMOND ENGINEERING LIMITED,Professional Services,Professional Engineering Services,"2,424.40",484.88,"2,909.28",20-May-11,COMMUNITIES
Nottinghamshire County Council,02-02792,TILE TREND LIMITED,Hard Facilities Management ,Decoration Services,296.52,59.3,355.82,12-May-11,COMMUNITIES
Nottinghamshire County Council,02-02792,TILE TREND LIMITED,Hard Facilities Management ,Decoration Services,-0.01,0,-0.01,12-May-11,COMMUNITIES
Nottinghamshire County Council,02-02792,TILE TREND LIMITED,Hard Facilities Management ,Decoration Services,561.89,112.38,674.27,12-May-11,COMMUNITIES
Nottinghamshire County Council,02-03761,KEYLINE BUILDERS MERCHANTS,Hard Facilities Management ,Building Construction Services,626.56,125.31,751.87,19-May-11,COMMUNITIES
Nottinghamshire County Council,02-03762,PEEK TRAFFIC LIMITED,External Services (Highways And Culture),Highways And Works,517,103.4,620.4,19-May-11,COMMUNITIES
Nottinghamshire County Council,02-03763,PEEK TRAFFIC LIMITED,External Services (Highways And Culture),Highways And Works,620,124,744,19-May-11,COMMUNITIES
Nottinghamshire County Council,02-03763,PEEK TRAFFIC LIMITED,External Services (Highways And Culture),Highways And Works,660,132,792,19-May-11,COMMUNITIES
Nottinghamshire County Council,02-03763,PEEK TRAFFIC LIMITED,External Services (Highways And Culture),Highways And Works,"5,232.00","1,046.40","6,278.40",19-May-11,COMMUNITIES
Nottinghamshire County Council,02-03765,REDDI LIGHT LIMITED,Hard Facilities Management ,Electrical Systems And Lighting,810,162,972,19-May-11,COMMUNITIES
Nottinghamshire County Council,02-03767,TRAFFIC MANAGEMENT SUPPLIES LIMITED,External Services (Highways And Culture),Highways And Works,"4,700.00",940,"5,640.00",19-May-11,COMMUNITIES
Nottinghamshire County Council,02-03768,TRAFFIC MANAGEMENT SUPPLIES LIMITED,External Services (Highways And Culture),Highways And Works,940,188,"1,128.00",24-May-11,COMMUNITIES
Nottinghamshire County Council,02-03769,TRAFFIC MANAGEMENT SUPPLIES LIMITED,External Services (Highways And Culture),Highways And Works,"1,410.00",282,"1,692.00",24-May-11,COMMUNITIES
Nottinghamshire County Council,02-03812,AGGREGATE INDUSTRIES UK,External Services (Highways And Culture),Earth And Stone Aggregates ,62.24,12.45,74.69,17-May-11,COMMUNITIES
Nottinghamshire County Council,02-03812,AGGREGATE INDUSTRIES UK,External Services (Highways And Culture),Earth And Stone Aggregates ,62.24,12.45,74.69,17-May-11,COMMUNITIES
Nottinghamshire County Council,02-03812,AGGREGATE INDUSTRIES UK,External Services (Highways And Culture),Earth And Stone Aggregates ,70.02,14,84.02,17-May-11,COMMUNITIES
Nottinghamshire County Council,02-03812,AGGREGATE INDUSTRIES UK,External Services (Highways And Culture),Earth And Stone Aggregates ,70.02,14,84.02,17-May-11,COMMUNITIES
Nottinghamshire County Council,02-03812,AGGREGATE INDUSTRIES UK,External Services (Highways And Culture),Earth And Stone Aggregates ,83.28,16.66,99.94,17-May-11,COMMUNITIES
Nottinghamshire County Council,02-03812,AGGREGATE INDUSTRIES UK,External Services (Highways And Culture),Earth And Stone Aggregates ,83.28,16.66,99.94,17-May-11,COMMUNITIES
Nottinghamshire County Council,02-03812,AGGREGATE INDUSTRIES UK,External Services (Highways And Culture),Earth And Stone Aggregates ,87.2,17.44,104.64,17-May-11,COMMUNITIES
Nottinghamshire County Council,02-03812,AGGREGATE INDUSTRIES UK,External Services (Highways And Culture),Earth And Stone Aggregates ,142.02,28.4,170.42,17-May-11,COMMUNITIES
Nottinghamshire County Council,02-03812,AGGREGATE INDUSTRIES UK,External Services (Highways And Culture),Earth And Stone Aggregates ,142.02,28.4,170.42,17-May-11,COMMUNITIES
Nottinghamshire County Council,02-03812,AGGREGATE INDUSTRIES UK,External Services (Highways And Culture),Earth And Stone Aggregates ,142.02,28.4,170.42,17-May-11,COMMUNITIES
Nottinghamshire County Council,02-03812,AGGREGATE INDUSTRIES UK,External Services (Highways And Culture),Earth And Stone Aggregates ,288.54,57.71,346.25,17-May-11,COMMUNITIES
Nottinghamshire County Council,02-03812,AGGREGATE INDUSTRIES UK,External Services (Highways And Culture),Earth And Stone Aggregates ,448.8,89.76,538.56,17-May-11,COMMUNITIES
Nottinghamshire County Council,02-04019,GREENHAM TRADING LIMITED,Hard Facilities Management ,Health And Safety,532.6,106.52,639.12,20-May-11,COMMUNITIES
Nottinghamshire County Council,02-04179,THE POST AND COLUMN CO LIMITED,Hard Facilities Management ,Building And Construction Supplies,"4,176.50",835.3,"5,011.80",20-May-11,COMMUNITIES
Nottinghamshire County Council,02-04276,KEYLINE BUILDERS MERCHANTS,Hard Facilities Management ,Building Construction Services,"1,240.62",248.12,"1,488.74",20-May-11,COMMUNITIES
Nottinghamshire County Council,02-04574,AGGREGATE INDUSTRIES UK,External Services (Highways And Culture),Earth And Stone Aggregates ,140.04,28.01,168.05,31-May-11,COMMUNITIES
Nottinghamshire County Council,02-04574,AGGREGATE INDUSTRIES UK,External Services (Highways And Culture),Earth And Stone Aggregates ,140.04,28.01,168.05,31-May-11,COMMUNITIES
Nottinghamshire County Council,02-04574,AGGREGATE INDUSTRIES UK,External Services (Highways And Culture),Earth And Stone Aggregates ,164.88,32.98,197.86,31-May-11,COMMUNITIES
Nottinghamshire County Council,02-04574,AGGREGATE INDUSTRIES UK,External Services (Highways And Culture),Earth And Stone Aggregates ,174.4,34.88,209.28,31-May-11,COMMUNITIES
Nottinghamshire County Council,02-04574,AGGREGATE INDUSTRIES UK,External Services (Highways And Culture),Earth And Stone Aggregates ,359.04,71.81,430.85,31-May-11,COMMUNITIES
Nottinghamshire County Council,02-04574,AGGREGATE INDUSTRIES UK,External Services (Highways And Culture),Earth And Stone Aggregates ,969,193.8,"1,162.80",31-May-11,COMMUNITIES
Nottinghamshire County Council,02-04575,INSTARMAC LIMITED,External Services (Highways And Culture),Highways And Works,855.12,171.02,"1,026.14",25-May-11,COMMUNITIES
Nottinghamshire County Council,02-04576,PARKER MERCHANTING LIMITED,Soft Facilities Management,Paper And Paper Products,75.68,15.14,90.82,25-May-11,COMMUNITIES
Nottinghamshire County Council,02-04576,PARKER MERCHANTING LIMITED,Soft Facilities Management,Paper And Paper Products,426.06,85.21,511.27,25-May-11,COMMUNITIES
Nottinghamshire County Council,02-04796,EMO OIL LIMITED,Hard Facilities Management ,Utilities,"3,821.02",764.2,"4,585.22",23-May-11,COMMUNITIES
Nottinghamshire County Council,02-04797,EMO OIL LIMITED,Hard Facilities Management ,Utilities,"1,271.80",63.59,"1,335.39",23-May-11,COMMUNITIES
Nottinghamshire County Council,02-04798,EMO OIL LIMITED,Hard Facilities Management ,Utilities,"5,561.11","1,112.22","6,673.33",23-May-11,COMMUNITIES
Nottinghamshire County Council,02-04931,ZODIAN (ZODION LIMITED),External Services (Highways And Culture),Highways And Works,"1,170.00",234,"1,404.00",25-May-11,COMMUNITIES
Nottinghamshire County Council,02-08420,EMO OIL LIMITED,Hard Facilities Management ,Utilities,"5,557.72","1,111.54","6,669.26",25-May-11,COMMUNITIES
Nottinghamshire County Council,02-08421,EMO OIL LIMITED,Hard Facilities Management ,Utilities,"1,899.97",379.99,"2,279.96",25-May-11,COMMUNITIES
Nottinghamshire County Council,02-08619,RENNICKS (UK) LIMITED,External Services (Highways And Culture),Highways And Works,"-2,696.00",-539.2,"-3,235.20",31-May-11,COMMUNITIES
Nottinghamshire County Council,02-08636,HIRST SIGNS LIMITED,Soft Facilities Management,Printed Media And Signage,590,118,708,31-May-11,COMMUNITIES
Nottinghamshire County Council,02-08636,HIRST SIGNS LIMITED,Soft Facilities Management,Printed Media And Signage,590,118,708,31-May-11,COMMUNITIES
Nottinghamshire County Council,02-08636,HIRST SIGNS LIMITED,Soft Facilities Management,Printed Media And Signage,728,145.6,873.6,31-May-11,COMMUNITIES
Nottinghamshire County Council,02-08636,HIRST SIGNS LIMITED,Soft Facilities Management,Printed Media And Signage,788,157.6,945.6,31-May-11,COMMUNITIES
Nottinghamshire County Council,02-00288,EXPRESS LOGISTICS (NOTTINGHAM) LIMITED,Soft Facilities Management,Mail And Couriers,"1,817.90",363.58,"2,181.48",16-May-11,COMMUNITIES
Nottinghamshire County Council,02-00417,EXPRESS LOGISTICS (NOTTINGHAM) LIMITED,Soft Facilities Management,Mail And Couriers,"1,580.80",316.16,"1,896.96",16-May-11,COMMUNITIES
Nottinghamshire County Council,02-00473,NNAS (TRADING) LIMITED,People,Vocational Training,400,80,480,20-May-11,COMMUNITIES
Nottinghamshire County Council,02-00473,NNAS (TRADING) LIMITED,People,Vocational Training,715,143,858,20-May-11,COMMUNITIES
Nottinghamshire County Council,02-02775,ROYAL MAIL GROUP PLC,Soft Facilities Management,Mail And Couriers,780,156,936,31-May-11,COMMUNITIES
Nottinghamshire County Council,02-00102,KONICA MINOLTA,ICT,"Printing And Publishing, Equipment And Supplies",506.63,101.33,607.96,04-May-11,COMMUNITIES
Nottinghamshire County Council,02-02335,KONICA MINOLTA,ICT,"Printing And Publishing, Equipment And Supplies",707.35,141.47,848.82,27-May-11,COMMUNITIES
Nottinghamshire County Council,02-02160,BUILDING SOFTWARE LIMITED,ICT,Software,"7,500.00","1,500.00","9,000.00",09-May-11,COMMUNITIES
Nottinghamshire County Council,02-04356,SAVOY COMPUTING SERVICES LIMITED,ICT,Computer Services,568,0,568,20-May-11,COMMUNITIES
Nottinghamshire County Council,02-00706,VODAFONE LIMITED,ICT,Telecommunications And Media,470,94,564,04-May-11,COMMUNITIES
Nottinghamshire County Council,02-08445,VODAFONE LIMITED,ICT,Telecommunications And Media,470,94,564,26-May-11,COMMUNITIES
Nottinghamshire County Council,02-00925,REDSPEED INTERNATION LIMITED,External Services (Highways And Culture),Highways And Works,"7,252.67",0,"7,252.67",04-May-11,COMMUNITIES
Nottinghamshire County Council,02-00062,LINCOLNSHIRE ROAD SAFETY PARTNERSHIP,External Services (Highways And Culture),Highways And Works,953,0,953,04-May-11,COMMUNITIES
Nottinghamshire County Council,02-00063,LINCOLNSHIRE ROAD SAFETY PARTNERSHIP,External Services (Highways And Culture),Highways And Works,953,0,953,04-May-11,COMMUNITIES
Nottinghamshire County Council,02-03142,N S L LIMITED,Transport And Travel,Motor Vehicles,"91,473.58","16,007.88","107,481.46",12-May-11,COMMUNITIES
Nottinghamshire County Council,02-03143,N S L LIMITED,Transport And Travel,Motor Vehicles,"83,089.98",0,"83,089.98",12-May-11,COMMUNITIES
Nottinghamshire County Council,02-03146,N S L LIMITED,Transport And Travel,Motor Vehicles,"94,749.98",0,"94,749.98",12-May-11,COMMUNITIES
Nottinghamshire County Council,02-03175,ROYAL MAIL GROUP PLC,Soft Facilities Management,Mail And Couriers,43.2,0,43.2,12-May-11,COMMUNITIES
Nottinghamshire County Council,02-03175,ROYAL MAIL GROUP PLC,Soft Facilities Management,Mail And Couriers,19.5,0,19.5,12-May-11,COMMUNITIES
Nottinghamshire County Council,02-03175,ROYAL MAIL GROUP PLC,Soft Facilities Management,Mail And Couriers,79.2,0,79.2,12-May-11,COMMUNITIES
Nottinghamshire County Council,02-03175,ROYAL MAIL GROUP PLC,Soft Facilities Management,Mail And Couriers,22.75,0,22.75,12-May-11,COMMUNITIES
Nottinghamshire County Council,02-03175,ROYAL MAIL GROUP PLC,Soft Facilities Management,Mail And Couriers,38.52,0,38.52,12-May-11,COMMUNITIES
Nottinghamshire County Council,02-03175,ROYAL MAIL GROUP PLC,Soft Facilities Management,Mail And Couriers,19.25,0,19.25,12-May-11,COMMUNITIES
Nottinghamshire County Council,02-03175,ROYAL MAIL GROUP PLC,Soft Facilities Management,Mail And Couriers,23.25,0,23.25,12-May-11,COMMUNITIES
Nottinghamshire County Council,02-03175,ROYAL MAIL GROUP PLC,Soft Facilities Management,Mail And Couriers,141.12,0,141.12,12-May-11,COMMUNITIES
Nottinghamshire County Council,02-03175,ROYAL MAIL GROUP PLC,Soft Facilities Management,Mail And Couriers,54.72,0,54.72,12-May-11,COMMUNITIES
Nottinghamshire County Council,02-03175,ROYAL MAIL GROUP PLC,Soft Facilities Management,Mail And Couriers,34,0,34,12-May-11,COMMUNITIES
Nottinghamshire County Council,02-03175,ROYAL MAIL GROUP PLC,Soft Facilities Management,Mail And Couriers,102.24,0,102.24,12-May-11,COMMUNITIES
Nottinghamshire County Council,02-03175,ROYAL MAIL GROUP PLC,Soft Facilities Management,Mail And Couriers,25.25,0,25.25,12-May-11,COMMUNITIES
Nottinghamshire County Council,02-03175,ROYAL MAIL GROUP PLC,Soft Facilities Management,Mail And Couriers,41.76,0,41.76,12-May-11,COMMUNITIES
Nottinghamshire County Council,02-03175,ROYAL MAIL GROUP PLC,Soft Facilities Management,Mail And Couriers,22.25,0,22.25,12-May-11,COMMUNITIES
Nottinghamshire County Council,02-03175,ROYAL MAIL GROUP PLC,Soft Facilities Management,Mail And Couriers,25.5,0,25.5,12-May-11,COMMUNITIES
Nottinghamshire County Council,02-03175,ROYAL MAIL GROUP PLC,Soft Facilities Management,Mail And Couriers,99.72,0,99.72,12-May-11,COMMUNITIES
Nottinghamshire County Council,02-03175,ROYAL MAIL GROUP PLC,Soft Facilities Management,Mail And Couriers,19.5,0,19.5,12-May-11,COMMUNITIES
Nottinghamshire County Council,02-03175,ROYAL MAIL GROUP PLC,Soft Facilities Management,Mail And Couriers,142.2,0,142.2,12-May-11,COMMUNITIES
Nottinghamshire County Council,02-03175,ROYAL MAIL GROUP PLC,Soft Facilities Management,Mail And Couriers,43.2,0,43.2,12-May-11,COMMUNITIES
Nottinghamshire County Council,02-03175,ROYAL MAIL GROUP PLC,Soft Facilities Management,Mail And Couriers,58,0,58,12-May-11,COMMUNITIES
Nottinghamshire County Council,02-03698,BRITISH PARKING ASSOCIATION,Transport And Travel,Motor Vehicles,770,154,924,23-May-11,COMMUNITIES
Nottinghamshire County Council,02-03920,CHIPSIDE LIMITED,ICT,Software,"1,043.33",0,"1,043.33",18-May-11,COMMUNITIES
Nottinghamshire County Council,02-03920,CHIPSIDE LIMITED,ICT,Software,"1,489.34",0,"1,489.34",18-May-11,COMMUNITIES
Nottinghamshire County Council,02-08752,ROYAL MAIL GROUP PLC,Soft Facilities Management,Mail And Couriers,45,0,45,27-May-11,COMMUNITIES
Nottinghamshire County Council,02-08752,ROYAL MAIL GROUP PLC,Soft Facilities Management,Mail And Couriers,25.75,0,25.75,27-May-11,COMMUNITIES
Nottinghamshire County Council,02-08752,ROYAL MAIL GROUP PLC,Soft Facilities Management,Mail And Couriers,105.12,0,105.12,27-May-11,COMMUNITIES
Nottinghamshire County Council,02-08752,ROYAL MAIL GROUP PLC,Soft Facilities Management,Mail And Couriers,29.5,0,29.5,27-May-11,COMMUNITIES
Nottinghamshire County Council,02-08752,ROYAL MAIL GROUP PLC,Soft Facilities Management,Mail And Couriers,32,0,32,27-May-11,COMMUNITIES
Nottinghamshire County Council,02-08752,ROYAL MAIL GROUP PLC,Soft Facilities Management,Mail And Couriers,54,0,54,27-May-11,COMMUNITIES
Nottinghamshire County Council,02-08752,ROYAL MAIL GROUP PLC,Soft Facilities Management,Mail And Couriers,76.32,0,76.32,27-May-11,COMMUNITIES
Nottinghamshire County Council,02-08752,ROYAL MAIL GROUP PLC,Soft Facilities Management,Mail And Couriers,29,0,29,27-May-11,COMMUNITIES
Nottinghamshire County Council,02-08752,ROYAL MAIL GROUP PLC,Soft Facilities Management,Mail And Couriers,57.24,0,57.24,27-May-11,COMMUNITIES
Nottinghamshire County Council,02-08752,ROYAL MAIL GROUP PLC,Soft Facilities Management,Mail And Couriers,29,0,29,27-May-11,COMMUNITIES
Nottinghamshire County Council,02-08752,ROYAL MAIL GROUP PLC,Soft Facilities Management,Mail And Couriers,40.75,0,40.75,27-May-11,COMMUNITIES
Nottinghamshire County Council,02-08752,ROYAL MAIL GROUP PLC,Soft Facilities Management,Mail And Couriers,104.76,0,104.76,27-May-11,COMMUNITIES
Nottinghamshire County Council,02-08752,ROYAL MAIL GROUP PLC,Soft Facilities Management,Mail And Couriers,52.2,0,52.2,27-May-11,COMMUNITIES
Nottinghamshire County Council,02-08752,ROYAL MAIL GROUP PLC,Soft Facilities Management,Mail And Couriers,39,0,39,27-May-11,COMMUNITIES
Nottinghamshire County Council,02-08752,ROYAL MAIL GROUP PLC,Soft Facilities Management,Mail And Couriers,45,0,45,27-May-11,COMMUNITIES
Nottinghamshire County Council,02-08752,ROYAL MAIL GROUP PLC,Soft Facilities Management,Mail And Couriers,32.5,0,32.5,27-May-11,COMMUNITIES
Nottinghamshire County Council,02-08752,ROYAL MAIL GROUP PLC,Soft Facilities Management,Mail And Couriers,37.5,0,37.5,27-May-11,COMMUNITIES
Nottinghamshire County Council,02-08752,ROYAL MAIL GROUP PLC,Soft Facilities Management,Mail And Couriers,55.44,0,55.44,27-May-11,COMMUNITIES
Nottinghamshire County Council,02-08752,ROYAL MAIL GROUP PLC,Soft Facilities Management,Mail And Couriers,68.76,0,68.76,27-May-11,COMMUNITIES
Nottinghamshire County Council,02-08752,ROYAL MAIL GROUP PLC,Soft Facilities Management,Mail And Couriers,25.25,0,25.25,27-May-11,COMMUNITIES
Nottinghamshire County Council,02-08752,ROYAL MAIL GROUP PLC,Soft Facilities Management,Mail And Couriers,59.4,0,59.4,27-May-11,COMMUNITIES
Nottinghamshire County Council,02-08752,ROYAL MAIL GROUP PLC,Soft Facilities Management,Mail And Couriers,14.25,0,14.25,27-May-11,COMMUNITIES
Nottinghamshire County Council,02-08752,ROYAL MAIL GROUP PLC,Soft Facilities Management,Mail And Couriers,76.32,0,76.32,27-May-11,COMMUNITIES
Nottinghamshire County Council,02-08752,ROYAL MAIL GROUP PLC,Soft Facilities Management,Mail And Couriers,17.25,0,17.25,27-May-11,COMMUNITIES
Nottinghamshire County Council,02-08752,ROYAL MAIL GROUP PLC,Soft Facilities Management,Mail And Couriers,59.76,0,59.76,27-May-11,COMMUNITIES
Nottinghamshire County Council,02-08752,ROYAL MAIL GROUP PLC,Soft Facilities Management,Mail And Couriers,18.75,0,18.75,27-May-11,COMMUNITIES
Nottinghamshire County Council,02-01087,NEOPOST LIMITED,Soft Facilities Management,Mail And Couriers,"2,500.00",0,"2,500.00",04-May-11,COMMUNITIES
Nottinghamshire County Council,02-00469,MANSFIELD DISTRICT COUNCIL,Professional Services,Politics And Civic Affairs,"27,758.28",0,"27,758.28",04-May-11,COMMUNITIES
Nottinghamshire County Council,02-00470,ASHFIELD DISTRICT COUNCIL,Professional Services,Politics And Civic Affairs,"7,316.22",0,"7,316.22",05-May-11,COMMUNITIES
Nottinghamshire County Council,02-00469,MANSFIELD DISTRICT COUNCIL,Professional Services,Politics And Civic Affairs,318,0,318,04-May-11,COMMUNITIES
Nottinghamshire County Council,02-00470,ASHFIELD DISTRICT COUNCIL,Professional Services,Politics And Civic Affairs,"3,130.84",0,"3,130.84",05-May-11,COMMUNITIES
Nottinghamshire County Council,02-00469,MANSFIELD DISTRICT COUNCIL,Professional Services,Politics And Civic Affairs,"30,993.16",0,"30,993.16",04-May-11,COMMUNITIES
Nottinghamshire County Council,02-00470,ASHFIELD DISTRICT COUNCIL,Professional Services,Politics And Civic Affairs,"4,740.95",0,"4,740.95",05-May-11,COMMUNITIES
Nottinghamshire County Council,02-00470,ASHFIELD DISTRICT COUNCIL,Professional Services,Politics And Civic Affairs,"2,676.50",0,"2,676.50",05-May-11,COMMUNITIES
Nottinghamshire County Council,02-01431,BEACON HEALTH AND SAFETY,Hard Facilities Management ,Health And Safety,700,0,700,17-May-11,COMMUNITIES
Nottinghamshire County Council,02-00919,BARKER ROSS LIMITED,People,Recruitment,"1,247.00",249.4,"1,496.40",11-May-11,COMMUNITIES
Nottinghamshire County Council,02-00469,MANSFIELD DISTRICT COUNCIL,Professional Services,Politics And Civic Affairs,"17,102.55",0,"17,102.55",04-May-11,COMMUNITIES
Nottinghamshire County Council,02-00470,ASHFIELD DISTRICT COUNCIL,Professional Services,Politics And Civic Affairs,"30,539.00",0,"30,539.00",05-May-11,COMMUNITIES
Nottinghamshire County Council,02-00469,MANSFIELD DISTRICT COUNCIL,Professional Services,Politics And Civic Affairs,"38,512.70",0,"38,512.70",04-May-11,COMMUNITIES
Nottinghamshire County Council,02-00470,ASHFIELD DISTRICT COUNCIL,Professional Services,Politics And Civic Affairs,"2,508.66",0,"2,508.66",05-May-11,COMMUNITIES
Nottinghamshire County Council,02-08337,JBA CONSULTING,Professional Services,Consultancy,"3,500.00",0,"3,500.00",25-May-11,COMMUNITIES
Nottinghamshire County Council,02-00469,MANSFIELD DISTRICT COUNCIL,Professional Services,Politics And Civic Affairs,"7,782.48",0,"7,782.48",04-May-11,COMMUNITIES
Nottinghamshire County Council,02-00470,ASHFIELD DISTRICT COUNCIL,Professional Services,Politics And Civic Affairs,"7,294.69",0,"7,294.69",05-May-11,COMMUNITIES
Nottinghamshire County Council,02-00469,MANSFIELD DISTRICT COUNCIL,Professional Services,Politics And Civic Affairs,"7,627.55",0,"7,627.55",04-May-11,COMMUNITIES
Nottinghamshire County Council,02-00470,ASHFIELD DISTRICT COUNCIL,Professional Services,Politics And Civic Affairs,"3,135.47",0,"3,135.47",05-May-11,COMMUNITIES
Nottinghamshire County Council,02-00469,MANSFIELD DISTRICT COUNCIL,Professional Services,Politics And Civic Affairs,"6,634.23",0,"6,634.23",04-May-11,COMMUNITIES
Nottinghamshire County Council,02-00469,MANSFIELD DISTRICT COUNCIL,Professional Services,Politics And Civic Affairs,"56,038.46",0,"56,038.46",04-May-11,COMMUNITIES
Nottinghamshire County Council,02-00470,ASHFIELD DISTRICT COUNCIL,Professional Services,Politics And Civic Affairs,"23,765.98",0,"23,765.98",05-May-11,COMMUNITIES
Nottinghamshire County Council,02-04130,ROCH SERVICES LIMITED,Hard Facilities Management ,Building And Construction Supplies,"1,640.00",0,"1,640.00",19-May-11,COMMUNITIES
Nottinghamshire County Council,02-00469,MANSFIELD DISTRICT COUNCIL,Professional Services,Politics And Civic Affairs,525.98,0,525.98,04-May-11,COMMUNITIES
Nottinghamshire County Council,02-00470,ASHFIELD DISTRICT COUNCIL,Professional Services,Politics And Civic Affairs,"3,074.01",0,"3,074.01",05-May-11,COMMUNITIES
Nottinghamshire County Council,02-00469,MANSFIELD DISTRICT COUNCIL,Professional Services,Politics And Civic Affairs,"22,200.00",0,"22,200.00",04-May-11,COMMUNITIES
Nottinghamshire County Council,02-00470,ASHFIELD DISTRICT COUNCIL,Professional Services,Politics And Civic Affairs,515.09,0,515.09,05-May-11,COMMUNITIES
Nottinghamshire County Council,02-00469,MANSFIELD DISTRICT COUNCIL,Professional Services,Politics And Civic Affairs,"17,580.00",0,"17,580.00",04-May-11,COMMUNITIES
Nottinghamshire County Council,02-00470,ASHFIELD DISTRICT COUNCIL,Professional Services,Politics And Civic Affairs,150,0,150,05-May-11,COMMUNITIES
Nottinghamshire County Council,02-00469,MANSFIELD DISTRICT COUNCIL,Professional Services,Politics And Civic Affairs,"2,681.85",0,"2,681.85",04-May-11,COMMUNITIES
Nottinghamshire County Council,02-00470,ASHFIELD DISTRICT COUNCIL,Professional Services,Politics And Civic Affairs,"3,912.35",0,"3,912.35",05-May-11,COMMUNITIES
Nottinghamshire County Council,02-00469,MANSFIELD DISTRICT COUNCIL,Professional Services,Politics And Civic Affairs,"1,678.08",0,"1,678.08",04-May-11,COMMUNITIES
Nottinghamshire County Council,02-00470,ASHFIELD DISTRICT COUNCIL,Professional Services,Politics And Civic Affairs,"1,443.33",0,"1,443.33",05-May-11,COMMUNITIES
Nottinghamshire County Council,02-02438,1ST CALL COMMUNICATIONS LIMITED,ICT,Telecommunications And Media,965.5,193.1,"1,158.60",31-May-11,COMMUNITIES
Nottinghamshire County Council,02-00469,MANSFIELD DISTRICT COUNCIL,Professional Services,Politics And Civic Affairs,"8,051.33",0,"8,051.33",04-May-11,COMMUNITIES
Nottinghamshire County Council,02-00470,ASHFIELD DISTRICT COUNCIL,Professional Services,Politics And Civic Affairs,"9,725.27",0,"9,725.27",05-May-11,COMMUNITIES
Nottinghamshire County Council,02-00469,MANSFIELD DISTRICT COUNCIL,Professional Services,Politics And Civic Affairs,"2,945.40",0,"2,945.40",04-May-11,COMMUNITIES
Nottinghamshire County Council,02-00470,ASHFIELD DISTRICT COUNCIL,Professional Services,Politics And Civic Affairs,"1,527.51",0,"1,527.51",05-May-11,COMMUNITIES
Nottinghamshire County Council,02-00469,MANSFIELD DISTRICT COUNCIL,Professional Services,Politics And Civic Affairs,158.33,0,158.33,04-May-11,COMMUNITIES
Nottinghamshire County Council,02-00470,ASHFIELD DISTRICT COUNCIL,Professional Services,Politics And Civic Affairs,"3,488.87",0,"3,488.87",05-May-11,COMMUNITIES
Nottinghamshire County Council,02-00469,MANSFIELD DISTRICT COUNCIL,Professional Services,Politics And Civic Affairs,"20,598.86",0,"20,598.86",04-May-11,COMMUNITIES
Nottinghamshire County Council,02-00470,ASHFIELD DISTRICT COUNCIL,Professional Services,Politics And Civic Affairs,"38,188.90",0,"38,188.90",05-May-11,COMMUNITIES
Nottinghamshire County Council,02-08719,POLETECH SYSTEMS LIMITED,External Services (Highways And Culture),Highways And Works,738,0,738,27-May-11,COMMUNITIES
Nottinghamshire County Council,02-08719,POLETECH SYSTEMS LIMITED,External Services (Highways And Culture),Highways And Works,58,0,58,27-May-11,COMMUNITIES
Nottinghamshire County Council,02-08719,POLETECH SYSTEMS LIMITED,External Services (Highways And Culture),Highways And Works,50,0,50,27-May-11,COMMUNITIES
Nottinghamshire County Council,02-08719,POLETECH SYSTEMS LIMITED,External Services (Highways And Culture),Highways And Works,4.5,0,4.5,27-May-11,COMMUNITIES
Nottinghamshire County Council,02-08719,POLETECH SYSTEMS LIMITED,External Services (Highways And Culture),Highways And Works,232.28,0,232.28,27-May-11,COMMUNITIES
Nottinghamshire County Council,02-08719,POLETECH SYSTEMS LIMITED,External Services (Highways And Culture),Highways And Works,249.08,0,249.08,27-May-11,COMMUNITIES
Nottinghamshire County Council,02-08719,POLETECH SYSTEMS LIMITED,External Services (Highways And Culture),Highways And Works,"1,023.60",0,"1,023.60",27-May-11,COMMUNITIES
Nottinghamshire County Council,02-08719,POLETECH SYSTEMS LIMITED,External Services (Highways And Culture),Highways And Works,251.4,0,251.4,27-May-11,COMMUNITIES
Nottinghamshire County Council,02-08719,POLETECH SYSTEMS LIMITED,External Services (Highways And Culture),Highways And Works,74,0,74,27-May-11,COMMUNITIES
Nottinghamshire County Council,02-08719,POLETECH SYSTEMS LIMITED,External Services (Highways And Culture),Highways And Works,150.4,0,150.4,27-May-11,COMMUNITIES
Nottinghamshire County Council,02-04008,RADIO EXPRESS LIMITED,Professional Services,"Reproduction, Photographic And Design Services",305,0,305,18-May-11,COMMUNITIES
Nottinghamshire County Council,02-04008,RADIO EXPRESS LIMITED,Professional Services,"Reproduction, Photographic And Design Services","2,000.00",0,"2,000.00",18-May-11,COMMUNITIES
Nottinghamshire County Council,02-02455,ASHFIELD DISTRICT COUNCIL,Professional Services,Politics And Civic Affairs,"10,000.00",0,"10,000.00",10-May-11,COMMUNITIES
Nottinghamshire County Council,02-00011,FOREST FARM TREE SERVICE,External Services (Highways And Culture),Farming Forestry And Wildlife Services,150,26.25,176.25,05-May-11,COMMUNITIES
Nottinghamshire County Council,02-00011,FOREST FARM TREE SERVICE,External Services (Highways And Culture),Farming Forestry And Wildlife Services,"2,674.22",467.99,"3,142.21",05-May-11,COMMUNITIES
Nottinghamshire County Council,02-00195,LANDSCAPE MAINTENANCE SERVICES,External Services (Highways And Culture),Farming Forestry And Wildlife Services,"1,070.00",0,"1,070.00",04-May-11,COMMUNITIES
Nottinghamshire County Council,02-04794,FRANK HARDY AND SONS (FARNDON) LIMITED,Soft Facilities Management,Fresh Fruit And Veg,787.05,137.73,924.78,23-May-11,COMMUNITIES
Nottinghamshire County Council,02-08979,WELBECK ESTATES COMPANY LIMITED,Professional Services,Property Management,"1,098.82",192.29,"1,291.11",27-May-11,COMMUNITIES
Nottinghamshire County Council,02-03151,ACT TRAVELWISE,Transport And Travel,Fleet Maintenance Services,495,86.63,581.63,12-May-11,COMMUNITIES
Nottinghamshire County Council,02-00015,BASEMAP LIMITED,ICT,Software,550,96.25,646.25,26-May-11,COMMUNITIES
Nottinghamshire County Council,02-08331,LIMEHOUSE SOFTWARE LIMITED,ICT,Software,"2,500.00",0,"2,500.00",25-May-11,COMMUNITIES
Nottinghamshire County Council,02-08774,BT REDCARE,ICT,Telecommunications And Media,"1,565.52",313.1,"1,878.62",27-May-11,COMMUNITIES
Nottinghamshire County Council,02-01814,NOTTINGHAM CITY COUNCIL,Professional Services,Politics And Civic Affairs,795,0,795,05-May-11,COMMUNITIES
Nottinghamshire County Council,02-03359,BROXTOWE BOROUGH COUNCIL,Professional Services,Politics And Civic Affairs,578.43,0,578.43,13-May-11,COMMUNITIES
Nottinghamshire County Council,02-03697,WASTE RECYCLING GROUP PLC,Soft Facilities Management,Environmental Services,"7,191.20","1,438.24","8,629.44",20-May-11,COMMUNITIES
Nottinghamshire County Council,02-04671,BAKER SHEPHERD GILLESPIE LLP,Professional Services,Legal Services,"2,238.58",0,"2,238.58",23-May-11,COMMUNITIES
Nottinghamshire County Council,02-04671,BAKER SHEPHERD GILLESPIE LLP,Professional Services,Legal Services,78.92,0,78.92,23-May-11,COMMUNITIES
Nottinghamshire County Council,02-02147,VEOLIA ENVIRONMENTAL SERVICES PLC,Soft Facilities Management,Scrap And Waste Materials,"148,302.50",0,"148,302.50",09-May-11,COMMUNITIES
Nottinghamshire County Council,02-01172,RUSHCLIFFE BOROUGH COUNCIL,Professional Services,Politics And Civic Affairs,"4,000.00",0,"4,000.00",04-May-11,COMMUNITIES
Nottinghamshire County Council,02-02045,S R C L LIMITED,Soft Facilities Management,Scrap And Waste Materials,"16,045.13",0,"16,045.13",05-May-11,COMMUNITIES
Nottinghamshire County Council,02-04361,S R C L LIMITED,Soft Facilities Management,Scrap And Waste Materials,"1,962.27",0,"1,962.27",20-May-11,COMMUNITIES
Nottinghamshire County Council,02-04361,S R C L LIMITED,Soft Facilities Management,Scrap And Waste Materials,"3,453.12",0,"3,453.12",20-May-11,COMMUNITIES
Nottinghamshire County Council,02-04361,S R C L LIMITED,Soft Facilities Management,Scrap And Waste Materials,570.61,0,570.61,20-May-11,COMMUNITIES
Nottinghamshire County Council,02-04361,S R C L LIMITED,Soft Facilities Management,Scrap And Waste Materials,305.47,0,305.47,20-May-11,COMMUNITIES
Nottinghamshire County Council,02-04361,S R C L LIMITED,Soft Facilities Management,Scrap And Waste Materials,"2,945.57",0,"2,945.57",20-May-11,COMMUNITIES
Nottinghamshire County Council,02-04361,S R C L LIMITED,Soft Facilities Management,Scrap And Waste Materials,"3,442.89",0,"3,442.89",20-May-11,COMMUNITIES
Nottinghamshire County Council,02-04361,S R C L LIMITED,Soft Facilities Management,Scrap And Waste Materials,"1,080.70",0,"1,080.70",20-May-11,COMMUNITIES
Nottinghamshire County Council,02-01979,BROXTOWE BOROUGH COUNCIL,Professional Services,Politics And Civic Affairs,"8,904.56",0,"8,904.56",06-May-11,COMMUNITIES
Nottinghamshire County Council,02-02535,RECYCLING OLLERTON AND BOUGHTON,Soft Facilities Management,Scrap And Waste Materials,"3,149.42",0,"3,149.42",16-May-11,COMMUNITIES
Nottinghamshire County Council,02-08562,NEWARK AND SHERWOOD DISTRICT COUNCIL,Professional Services,Politics And Civic Affairs,"6,350.33",0,"6,350.33",27-May-11,COMMUNITIES
Nottinghamshire County Council,02-08563,NEWARK AND SHERWOOD DISTRICT COUNCIL,Professional Services,Politics And Civic Affairs,"6,010.29",0,"6,010.29",27-May-11,COMMUNITIES
Nottinghamshire County Council,02-08564,NEWARK AND SHERWOOD DISTRICT COUNCIL,Professional Services,Politics And Civic Affairs,"7,723.93",0,"7,723.93",27-May-11,COMMUNITIES
Nottinghamshire County Council,02-08568,BASSETLAW DISTRICT COUNCIL,Professional Services,Politics And Civic Affairs,"4,552.25",0,"4,552.25",27-May-11,COMMUNITIES
Nottinghamshire County Council,02-08569,NOTTINGHAMSHIRE POLICE AID CONVOY,Professional Services,Politics And Civic Affairs,"2,805.20",0,"2,805.20",31-May-11,COMMUNITIES
Nottinghamshire County Council,02-08626,GEDLING BOROUGH COUNCIL,Professional Services,Politics And Civic Affairs,"13,602.01",0,"13,602.01",27-May-11,COMMUNITIES
Nottinghamshire County Council,02-08627,BARNARDOS,Care,Adoption Services,"1,145.37",0,"1,145.37",27-May-11,COMMUNITIES
Nottinghamshire County Council,02-08628,UHURU (PEACEFUL) TRUST,Professional Services,Politics And Civic Affairs,738.53,0,738.53,27-May-11,COMMUNITIES
Nottinghamshire County Council,02-08629,ASHFIELD DISTRICT COUNCIL,Professional Services,Politics And Civic Affairs,"8,124.74",0,"8,124.74",31-May-11,COMMUNITIES
Nottinghamshire County Council,02-01173,IMPACT MARKETING AND PUBLICITY LIMITED,Professional Services,Marketing And Distribution,675,0,675,04-May-11,COMMUNITIES
Nottinghamshire County Council,02-01174,IMPACT MARKETING AND PUBLICITY LIMITED,Professional Services,Marketing And Distribution,675,0,675,04-May-11,COMMUNITIES
Nottinghamshire County Council,02-01175,IMPACT MARKETING AND PUBLICITY LIMITED,Professional Services,Marketing And Distribution,675,0,675,04-May-11,COMMUNITIES
Nottinghamshire County Council,02-08566,WASTE RECYCLING GROUP PLC,Soft Facilities Management,Environmental Services,"25,087.75","5,017.55","30,105.30",27-May-11,COMMUNITIES
Nottinghamshire County Council,02-03437,VEOLIA ENVIRONMENTAL SERVICES PLC,Soft Facilities Management,Scrap And Waste Materials,"723,263.34","144,652.67","867,916.01",18-May-11,COMMUNITIES
Nottinghamshire County Council,02-03437,VEOLIA ENVIRONMENTAL SERVICES PLC,Soft Facilities Management,Scrap And Waste Materials,"100,091.03","20,018.21","120,109.24",18-May-11,COMMUNITIES
Nottinghamshire County Council,02-03437,VEOLIA ENVIRONMENTAL SERVICES PLC,Soft Facilities Management,Scrap And Waste Materials,"77,697.52","15,539.50","93,237.02",18-May-11,COMMUNITIES
Nottinghamshire County Council,02-03437,VEOLIA ENVIRONMENTAL SERVICES PLC,Soft Facilities Management,Scrap And Waste Materials,"385,567.86","77,113.57","462,681.43",18-May-11,COMMUNITIES
Nottinghamshire County Council,02-03437,VEOLIA ENVIRONMENTAL SERVICES PLC,Soft Facilities Management,Scrap And Waste Materials,"42,659.33","8,531.87","51,191.20",18-May-11,COMMUNITIES
Nottinghamshire County Council,02-03437,VEOLIA ENVIRONMENTAL SERVICES PLC,Soft Facilities Management,Scrap And Waste Materials,"32,641.30","6,528.26","39,169.56",18-May-11,COMMUNITIES
Nottinghamshire County Council,02-03437,VEOLIA ENVIRONMENTAL SERVICES PLC,Soft Facilities Management,Scrap And Waste Materials,"171,240.74","34,248.15","205,488.89",18-May-11,COMMUNITIES
Nottinghamshire County Council,02-03437,VEOLIA ENVIRONMENTAL SERVICES PLC,Soft Facilities Management,Scrap And Waste Materials,"28,788.42","5,757.68","34,546.10",18-May-11,COMMUNITIES
Nottinghamshire County Council,02-03437,VEOLIA ENVIRONMENTAL SERVICES PLC,Soft Facilities Management,Scrap And Waste Materials,"15,931.59","3,186.32","19,117.91",18-May-11,COMMUNITIES
Nottinghamshire County Council,02-03437,VEOLIA ENVIRONMENTAL SERVICES PLC,Soft Facilities Management,Scrap And Waste Materials,"124,467.69","24,893.54","149,361.23",18-May-11,COMMUNITIES
Nottinghamshire County Council,02-03437,VEOLIA ENVIRONMENTAL SERVICES PLC,Soft Facilities Management,Scrap And Waste Materials,"194,166.05","38,833.21","232,999.26",18-May-11,COMMUNITIES
Nottinghamshire County Council,02-03437,VEOLIA ENVIRONMENTAL SERVICES PLC,Soft Facilities Management,Scrap And Waste Materials,"42,840.53","8,568.11","51,408.64",18-May-11,COMMUNITIES
Nottinghamshire County Council,02-02148,VEOLIA ENVIRONMENTAL SERVICES PLC,Soft Facilities Management,Scrap And Waste Materials,"10,937.00","2,187.40","13,124.40",09-May-11,COMMUNITIES
Nottinghamshire County Council,02-03437,VEOLIA ENVIRONMENTAL SERVICES PLC,Soft Facilities Management,Scrap And Waste Materials,"38,964.27","7,792.85","46,757.12",18-May-11,COMMUNITIES
Nottinghamshire County Council,02-03437,VEOLIA ENVIRONMENTAL SERVICES PLC,Soft Facilities Management,Scrap And Waste Materials,"7,052.99","1,410.60","8,463.59",18-May-11,COMMUNITIES
Nottinghamshire County Council,02-01947,SCOTT WILSON LIMITED,Professional Services,Consultancy,"69,551.98","13,910.40","83,462.38",20-May-11,COMMUNITIES
Nottinghamshire County Council,02-08631,SCOTT WILSON LIMITED,Professional Services,Consultancy,"36,297.40","7,259.48","43,556.88",26-May-11,COMMUNITIES
Nottinghamshire County Council,02-03713,RADIODETECTION LIMITED,Soft Facilities Management,Security,546.83,0,546.83,17-May-11,COMMUNITIES
Nottinghamshire County Council,02-03713,RADIODETECTION LIMITED,Soft Facilities Management,Security,10.65,0,10.65,17-May-11,COMMUNITIES
Nottinghamshire County Council,02-03620,TOTAL SECURITY PROTECTION LIMITED,Soft Facilities Management,Security,621.85,124.37,746.22,19-May-11,RESOURCES
Nottinghamshire County Council,02-02772,CENTRAL HIGH RISE LIMITED,Hard Facilities Management ,Rigging And Scaffolding Services,47.76,9.55,57.31,23-May-11,RESOURCES
Nottinghamshire County Council,02-03197,SCHNEIDER ELECTRIC IT UK LIMITED,ICT,Audio And Visual Equipment,"11,237.50","2,247.50","13,485.00",12-May-11,RESOURCES
Nottinghamshire County Council,02-03623,TOTAL SECURITY PROTECTION LIMITED,Soft Facilities Management,Security,"1,328.98",265.8,"1,594.78",19-May-11,RESOURCES
Nottinghamshire County Council,02-04441,TUKE AND BELL LIMITED,Soft Facilities Management,Scrap And Waste Materials,"1,415.00",247.63,"1,662.63",23-May-11,RESOURCES
Nottinghamshire County Council,02-02772,CENTRAL HIGH RISE LIMITED,Hard Facilities Management ,Rigging And Scaffolding Services,5.97,1.19,7.16,23-May-11,RESOURCES
Nottinghamshire County Council,02-03619,TOTAL SECURITY PROTECTION LIMITED,Soft Facilities Management,Security,569.36,113.87,683.23,19-May-11,RESOURCES
Nottinghamshire County Council,02-03622,TOTAL SECURITY PROTECTION LIMITED,Soft Facilities Management,Security,503.64,100.73,604.37,19-May-11,RESOURCES
Nottinghamshire County Council,02-03625,TOTAL SECURITY PROTECTION LIMITED,Soft Facilities Management,Security,903.96,180.79,"1,084.75",19-May-11,RESOURCES
Nottinghamshire County Council,02-03621,TOTAL SECURITY PROTECTION LIMITED,Soft Facilities Management,Security,"1,074.32",214.86,"1,289.18",19-May-11,RESOURCES
Nottinghamshire County Council,02-08515,FORMOST AIRCONDITIONING AND REFRIG LIMITED,Hard Facilities Management ,Heating And Ventilation (Inc A/C),840.86,168.17,"1,009.03",27-May-11,RESOURCES
Nottinghamshire County Council,02-03624,TOTAL SECURITY PROTECTION LIMITED,Soft Facilities Management,Security,601.66,120.33,721.99,19-May-11,RESOURCES
Nottinghamshire County Council,02-02772,CENTRAL HIGH RISE LIMITED,Hard Facilities Management ,Rigging And Scaffolding Services,59.7,11.94,71.64,23-May-11,RESOURCES
Nottinghamshire County Council,02-02146,FORMOST AIRCONDITIONING AND REFRIG LIMITED,Hard Facilities Management ,Heating And Ventilation (Inc A/C),849.4,169.88,"1,019.28",09-May-11,RESOURCES
Nottinghamshire County Council,02-03699,TOTAL SECURITY PROTECTION LIMITED,Soft Facilities Management,Security,"1,758.12",351.62,"2,109.74",20-May-11,RESOURCES
Nottinghamshire County Council,02-01146,INTERSERVE PROJECT SERVICES LIMITED,Professional Services,Professional Engineering Services,"34,883.95","6,976.79","41,860.74",10-May-11,RESOURCES
Nottinghamshire County Council,02-02470,HERBERT BAGGALEY CONSTRUCTION LIMITED,Hard Facilities Management ,Building Construction Services,"46,156.05","9,231.21","55,387.26",10-May-11,RESOURCES
Nottinghamshire County Council,02-00910,MIDLAND ROOFING SERVICES (DERBY) LIMITED,Hard Facilities Management ,Roofing Services,"19,388.00","3,877.60","23,265.60",04-May-11,#N/A
Nottinghamshire County Council,02-04790,PTL OCCUPATIONAL HYGIENE CONSULTANTS,Professional Services,Consultancy,577.4,115.48,692.88,23-May-11,RESOURCES
Nottinghamshire County Council,02-08657,TRENT VALLEY WINDOW AND DOOR CO LIMITED,Hard Facilities Management ,Window And Door Installation Services,"4,056.83",811.37,"4,868.20",31-May-11,RESOURCES
Nottinghamshire County Council,02-02823,ENVIRONTEC LIMITED,Professional Services,Consultancy,"1,245.00",249,"1,494.00",13-May-11,RESOURCES
Nottinghamshire County Council,02-04448,MANSELL CONSTRUCTION SERVICES LIMITED,Hard Facilities Management ,Building Construction Services,"40,501.11","8,100.22","48,601.33",20-May-11,RESOURCES
Nottinghamshire County Council,02-01144,TRENT VALLEY WINDOW AND DOOR CO LIMITED,Hard Facilities Management ,Window And Door Installation Services,"45,109.00","9,021.80","54,130.80",04-May-11,RESOURCES
Nottinghamshire County Council,02-08660,TRENT VALLEY WINDOW AND DOOR CO LIMITED,Hard Facilities Management ,Window And Door Installation Services,"1,500.00",300,"1,800.00",31-May-11,RESOURCES
Nottinghamshire County Council,02-02824,ENVIRONTEC LIMITED,Professional Services,Consultancy,645,129,774,13-May-11,RESOURCES
Nottinghamshire County Council,02-02822,ENVIRONTEC LIMITED,Professional Services,Consultancy,499.5,99.9,599.4,13-May-11,RESOURCES
Nottinghamshire County Council,02-02820,ENVIRONTEC LIMITED,Professional Services,Consultancy,"1,273.00",254.6,"1,527.60",13-May-11,RESOURCES
Nottinghamshire County Council,02-08647,HERBERT BAGGALEY CONSTRUCTION LIMITED,Hard Facilities Management ,Building Construction Services,"9,842.32","1,968.46","11,810.78",26-May-11,RESOURCES
Nottinghamshire County Council,02-04795,CENTRAL NETWORKS,Hard Facilities Management ,Utilities,"3,116.96",623.39,"3,740.35",23-May-11,RESOURCES
Nottinghamshire County Council,02-00911,MIDLAND ROOFING SERVICES (DERBY) LIMITED,Hard Facilities Management ,Roofing Services,"16,753.86","3,350.77","20,104.63",04-May-11,RESOURCES
Nottinghamshire County Council,02-01145,INTERSERVE PROJECT SERVICES LIMITED,Professional Services,Professional Engineering Services,"22,435.75","4,487.15","26,922.90",10-May-11,RESOURCES
Nottinghamshire County Council,02-08659,PTL OCCUPATIONAL HYGIENE CONSULTANTS,Professional Services,Consultancy,"3,596.00",719.2,"4,315.20",26-May-11,RESOURCES
Nottinghamshire County Council,02-08656,TRENT VALLEY WINDOW AND DOOR CO LIMITED,Hard Facilities Management ,Window And Door Installation Services,"27,120.74","5,424.15","32,544.89",31-May-11,RESOURCES
Nottinghamshire County Council,02-08658,PTL OCCUPATIONAL HYGIENE CONSULTANTS,Professional Services,Consultancy,"1,108.00",221.6,"1,329.60",26-May-11,RESOURCES
Nottinghamshire County Council,02-04555,FIRST ORDER RED LIMITED,Soft Facilities Management,Scrap And Waste Materials,479,95.8,574.8,20-May-11,RESOURCES
Nottinghamshire County Council,02-08642,FIRST ORDER RED LIMITED,Soft Facilities Management,Scrap And Waste Materials,969.5,193.9,"1,163.40",26-May-11,RESOURCES
Nottinghamshire County Council,02-02821,ENVIRONTEC LIMITED,Professional Services,Consultancy,444,88.8,532.8,13-May-11,RESOURCES
Nottinghamshire County Council,02-00897,MIDLAND ROOFING SERVICES (DERBY) LIMITED,Hard Facilities Management ,Roofing Services,"15,292.06","3,058.41","18,350.47",04-May-11,RESOURCES
Nottinghamshire County Council,02-02772,CENTRAL HIGH RISE LIMITED,Hard Facilities Management ,Rigging And Scaffolding Services,35.82,7.16,42.98,23-May-11,RESOURCES
Nottinghamshire County Council,02-00909,MIDLAND ROOFING SERVICES (DERBY) LIMITED,Hard Facilities Management ,Roofing Services,"8,968.00","1,793.60","10,761.60",04-May-11,RESOURCES
Nottinghamshire County Council,02-03609,PTL OCCUPATIONAL HYGIENE CONSULTANTS,Professional Services,Consultancy,698,139.6,837.6,16-May-11,RESOURCES
Nottinghamshire County Council,02-03604,ENVIRONTEC LIMITED,Professional Services,Consultancy,"1,625.00",325,"1,950.00",16-May-11,RESOURCES
Nottinghamshire County Council,02-04789,M J W ASBESTOS REMOVAL LIMITED,Soft Facilities Management,Scrap And Waste Materials,"3,630.00",726,"4,356.00",23-May-11,RESOURCES
Nottinghamshire County Council,02-02772,CENTRAL HIGH RISE LIMITED,Hard Facilities Management ,Rigging And Scaffolding Services,11.94,2.39,14.33,23-May-11,#N/A
Nottinghamshire County Council,02-02772,CENTRAL HIGH RISE LIMITED,Hard Facilities Management ,Rigging And Scaffolding Services,35.82,7.16,42.98,23-May-11,RESOURCES
Nottinghamshire County Council,02-01143,MANSELL CONSTRUCTION SERVICES LIMITED,Hard Facilities Management ,Building Construction Services,"2,096.00",419.2,"2,515.20",04-May-11,RESOURCES
Nottinghamshire County Council,02-02534,KEN BURROWS LIMITED,Hard Facilities Management ,Electrical Systems And Lighting,229.97,45.99,275.96,16-May-11,RESOURCES
Nottinghamshire County Council,02-02772,CENTRAL HIGH RISE LIMITED,Hard Facilities Management ,Rigging And Scaffolding Services,5.97,1.19,7.16,23-May-11,RESOURCES
Nottinghamshire County Council,02-08644,PTL OCCUPATIONAL HYGIENE CONSULTANTS,Professional Services,Consultancy,487.8,97.56,585.36,26-May-11,RESOURCES
Nottinghamshire County Council,02-02772,CENTRAL HIGH RISE LIMITED,Hard Facilities Management ,Rigging And Scaffolding Services,17.91,3.58,21.49,23-May-11,RESOURCES
Nottinghamshire County Council,02-02772,CENTRAL HIGH RISE LIMITED,Hard Facilities Management ,Rigging And Scaffolding Services,35.82,7.16,42.98,23-May-11,RESOURCES
Nottinghamshire County Council,02-02772,CENTRAL HIGH RISE LIMITED,Hard Facilities Management ,Rigging And Scaffolding Services,47.76,9.55,57.31,23-May-11,RESOURCES
Nottinghamshire County Council,02-02772,CENTRAL HIGH RISE LIMITED,Hard Facilities Management ,Rigging And Scaffolding Services,35.82,7.16,42.98,23-May-11,RESOURCES
Nottinghamshire County Council,02-01086,QUANTAQUA LIMITED,Soft Facilities Management,Cleaning Equipment And Janitorial Supplies,87.84,17.57,105.41,04-May-11,RESOURCES
Nottinghamshire County Council,02-02772,CENTRAL HIGH RISE LIMITED,Hard Facilities Management ,Rigging And Scaffolding Services,173.13,34.63,207.76,23-May-11,RESOURCES
Nottinghamshire County Council,02-02772,CENTRAL HIGH RISE LIMITED,Hard Facilities Management ,Rigging And Scaffolding Services,125.37,25.07,150.44,23-May-11,RESOURCES
Nottinghamshire County Council,02-02772,CENTRAL HIGH RISE LIMITED,Hard Facilities Management ,Rigging And Scaffolding Services,59.7,11.94,71.64,23-May-11,RESOURCES
Nottinghamshire County Council,02-02534,KEN BURROWS LIMITED,Hard Facilities Management ,Electrical Systems And Lighting,229.97,45.99,275.96,16-May-11,RESOURCES
Nottinghamshire County Council,02-02772,CENTRAL HIGH RISE LIMITED,Hard Facilities Management ,Rigging And Scaffolding Services,11.94,2.39,14.33,23-May-11,RESOURCES
Nottinghamshire County Council,02-02772,CENTRAL HIGH RISE LIMITED,Hard Facilities Management ,Rigging And Scaffolding Services,47.76,9.55,57.31,23-May-11,RESOURCES
Nottinghamshire County Council,02-02772,CENTRAL HIGH RISE LIMITED,Hard Facilities Management ,Rigging And Scaffolding Services,119.4,23.88,143.28,23-May-11,RESOURCES
Nottinghamshire County Council,02-02772,CENTRAL HIGH RISE LIMITED,Hard Facilities Management ,Rigging And Scaffolding Services,119.4,23.88,143.28,23-May-11,RESOURCES
Nottinghamshire County Council,02-01086,QUANTAQUA LIMITED,Soft Facilities Management,Cleaning Equipment And Janitorial Supplies,147.07,29.41,176.48,04-May-11,RESOURCES
Nottinghamshire County Council,02-02772,CENTRAL HIGH RISE LIMITED,Hard Facilities Management ,Rigging And Scaffolding Services,149.25,29.85,179.1,23-May-11,RESOURCES
Nottinghamshire County Council,02-02772,CENTRAL HIGH RISE LIMITED,Hard Facilities Management ,Rigging And Scaffolding Services,119.4,23.88,143.28,23-May-11,RESOURCES
Nottinghamshire County Council,02-02772,CENTRAL HIGH RISE LIMITED,Hard Facilities Management ,Rigging And Scaffolding Services,53.73,10.75,64.48,23-May-11,RESOURCES
Nottinghamshire County Council,02-02772,CENTRAL HIGH RISE LIMITED,Hard Facilities Management ,Rigging And Scaffolding Services,47.76,9.55,57.31,23-May-11,RESOURCES
Nottinghamshire County Council,02-02772,CENTRAL HIGH RISE LIMITED,Hard Facilities Management ,Rigging And Scaffolding Services,5.97,1.19,7.16,23-May-11,RESOURCES
Nottinghamshire County Council,02-02812,SECOND ELEMENT LIMITED,Hard Facilities Management ,Health And Safety,630,126,756,11-May-11,RESOURCES
Nottinghamshire County Council,02-02813,SECOND ELEMENT LIMITED,Hard Facilities Management ,Health And Safety,640,128,768,11-May-11,RESOURCES
Nottinghamshire County Council,02-02814,SECOND ELEMENT LIMITED,Hard Facilities Management ,Health And Safety,795,159,954,11-May-11,RESOURCES
Nottinghamshire County Council,02-02815,SECOND ELEMENT LIMITED,Hard Facilities Management ,Health And Safety,855,171,"1,026.00",11-May-11,RESOURCES
Nottinghamshire County Council,02-02816,SECOND ELEMENT LIMITED,Hard Facilities Management ,Health And Safety,950,190,"1,140.00",11-May-11,RESOURCES
Nottinghamshire County Council,02-02772,CENTRAL HIGH RISE LIMITED,Hard Facilities Management ,Rigging And Scaffolding Services,71.64,14.33,85.97,23-May-11,RESOURCES
Nottinghamshire County Council,02-08525,MANSFIELD DISTRICT COUNCIL,Professional Services,Politics And Civic Affairs,664.13,0,664.13,27-May-11,COMMUNITIES
Nottinghamshire County Council,02-08526,MANSFIELD DISTRICT COUNCIL,Professional Services,Politics And Civic Affairs,"1,944.90",0,"1,944.90",27-May-11,COMMUNITIES
Nottinghamshire County Council,02-01060,NOTTINGHAM CITY TRANSPORT LIMITED,Transport And Travel,Bus,"161,540.00",0,"161,540.00",04-May-11,COMMUNITIES
Nottinghamshire County Council,02-01061,STAGECOACH EAST MIDLANDS,Transport And Travel,Bus,"261,540.00",0,"261,540.00",04-May-11,COMMUNITIES
Nottinghamshire County Council,02-01062,TRENT MOTOR TRACTION COMPANY LIMITED,Transport And Travel,Bus,"230,000.00",0,"230,000.00",04-May-11,COMMUNITIES
Nottinghamshire County Council,02-08532,ARROW LIGHT RAIL LIMITED,External Services (Highways And Culture),Highways And Works,"20,000.00",0,"20,000.00",26-May-11,COMMUNITIES
Nottinghamshire County Council,02-08533,CENTREBUS LIMITED,Transport And Travel,Bus,"1,061.23",0,"1,061.23",26-May-11,COMMUNITIES
Nottinghamshire County Council,02-08534,K AND H DOYLE COACHES LIMITED,Transport And Travel,Bus,"5,700.00",0,"5,700.00",26-May-11,COMMUNITIES
Nottinghamshire County Council,02-08535,K AND H DOYLE COACHES LIMITED,Transport And Travel,Bus,"5,000.00",0,"5,000.00",26-May-11,COMMUNITIES
Nottinghamshire County Council,02-08536,KETTLEWELL RETFORD LIMITED,Transport And Travel,Bus,800,0,800,26-May-11,COMMUNITIES
Nottinghamshire County Council,02-08537,MARSHALLS OF SUTTON ON TRENT,Transport And Travel,Bus,"17,500.00",0,"17,500.00",26-May-11,COMMUNITIES
Nottinghamshire County Council,02-08539,PREMIERE TRAVEL LIMITED,Transport And Travel,Travel Agencies And Booking,"25,000.00",0,"25,000.00",26-May-11,COMMUNITIES
Nottinghamshire County Council,02-08541,TRAVEL WRIGHT LIMITED,Transport And Travel,Travel Agencies And Booking,"8,000.00",0,"8,000.00",26-May-11,COMMUNITIES
Nottinghamshire County Council,02-08542,YOUR BUS,Transport And Travel,Bus,"20,000.00",0,"20,000.00",26-May-11,COMMUNITIES
Nottinghamshire County Council,02-08538,OUR CENTRE,Care,Community And Social Services,522.14,0,522.14,26-May-11,COMMUNITIES
Nottinghamshire County Council,02-08540,SOAR VALLEY BUS,Transport And Travel,Bus,800,0,800,26-May-11,COMMUNITIES
Nottinghamshire County Council,02-01085,ALMEX UK,TBC,TBC,"25,000.00",0,"25,000.00",18-May-11,COMMUNITIES
Nottinghamshire County Council,02-01088,RAVENSHEAD COMMUNITY PROJECT,Care,Personal And Domestic Services,"3,424.21",0,"3,424.21",04-May-11,COMMUNITIES
Nottinghamshire County Council,02-02473,OUR CENTRE,Care,Community And Social Services,"8,185.78",0,"8,185.78",12-May-11,COMMUNITIES
Nottinghamshire County Council,02-03635,SILVERDALE TOURS NOTTINGHAM LIMITED,Transport And Travel,Travel Agencies And Booking,"20,350.43","4,070.09","24,420.52",31-May-11,COMMUNITIES
Nottinghamshire County Council,02-04349,HOFT AND WESSEL AG,Professional Services,Professional Engineering Services,"25,000.00",0,"25,000.00",18-May-11,COMMUNITIES
Nottinghamshire County Council,02-04557,PARKEON TRANSIT LIMITED,Transport And Travel,Bus,"9,005.89","1,801.18","10,807.07",20-May-11,COMMUNITIES
Nottinghamshire County Council,02-04558,PARKEON TRANSIT LIMITED,Transport And Travel,Bus,"5,414.50","1,082.90","6,497.40",20-May-11,COMMUNITIES
Nottinghamshire County Council,02-00173,WILFREDA BEEHIVE,Transport And Travel,Bus,"7,590.00",0,"7,590.00",04-May-11,COMMUNITIES
Nottinghamshire County Council,02-00174,WILFREDA BEEHIVE,Transport And Travel,Bus,-940.25,0,-940.25,04-May-11,COMMUNITIES
Nottinghamshire County Council,02-00299,GARY'S COACHES,Transport And Travel,Bus,"3,450.00",0,"3,450.00",16-May-11,COMMUNITIES
Nottinghamshire County Council,02-00299,GARY'S COACHES,Transport And Travel,Bus,-413.7,0,-413.7,16-May-11,COMMUNITIES
Nottinghamshire County Council,02-00300,GARY'S COACHES,Transport And Travel,Bus,"2,200.00",0,"2,200.00",16-May-11,COMMUNITIES
Nottinghamshire County Council,02-00300,GARY'S COACHES,Transport And Travel,Bus,-557.8,0,-557.8,16-May-11,COMMUNITIES
Nottinghamshire County Council,02-00303,STAGECOACH EAST MIDLANDS,Transport And Travel,Bus,"41,618.71",0,"41,618.71",04-May-11,COMMUNITIES
Nottinghamshire County Council,02-00627,STAGECOACH EAST MIDLANDS,Transport And Travel,Bus,"10,395.00",0,"10,395.00",04-May-11,COMMUNITIES
Nottinghamshire County Council,02-00628,STAGECOACH EAST MIDLANDS,Transport And Travel,Bus,"2,184.00",0,"2,184.00",04-May-11,COMMUNITIES
Nottinghamshire County Council,02-00629,STAGECOACH EAST MIDLANDS,Transport And Travel,Bus,"4,725.00",0,"4,725.00",04-May-11,COMMUNITIES
Nottinghamshire County Council,02-00630,STAGECOACH EAST MIDLANDS,Transport And Travel,Bus,"3,375.00",0,"3,375.00",04-May-11,COMMUNITIES
Nottinghamshire County Council,02-00631,STAGECOACH EAST MIDLANDS,Transport And Travel,Bus,"3,015.30",0,"3,015.30",04-May-11,COMMUNITIES
Nottinghamshire County Council,02-00632,STAGECOACH EAST MIDLANDS,Transport And Travel,Bus,"3,375.00",0,"3,375.00",04-May-11,COMMUNITIES
Nottinghamshire County Council,02-00831,JOHNSON BROS TOURS LIMITED,Transport And Travel,Travel Agencies And Booking,"3,727.61",0,"3,727.61",04-May-11,COMMUNITIES
Nottinghamshire County Council,02-00832,JOHNSON BROS TOURS LIMITED,Transport And Travel,Travel Agencies And Booking,"3,727.61",0,"3,727.61",04-May-11,COMMUNITIES
Nottinghamshire County Council,02-00833,JOHNSON BROS TOURS LIMITED,Transport And Travel,Travel Agencies And Booking,"3,727.61",0,"3,727.61",04-May-11,COMMUNITIES
Nottinghamshire County Council,02-00834,JOHNSON BROS TOURS LIMITED,Transport And Travel,Travel Agencies And Booking,"3,727.61",0,"3,727.61",04-May-11,COMMUNITIES
Nottinghamshire County Council,02-00835,JOHNSON BROS TOURS LIMITED,Transport And Travel,Travel Agencies And Booking,"3,847.67",0,"3,847.67",04-May-11,COMMUNITIES
Nottinghamshire County Council,02-00836,JOHNSON BROS TOURS LIMITED,Transport And Travel,Travel Agencies And Booking,"2,963.55",0,"2,963.55",04-May-11,COMMUNITIES
Nottinghamshire County Council,02-00837,JOHNSON BROS TOURS LIMITED,Transport And Travel,Travel Agencies And Booking,"3,210.57",0,"3,210.57",04-May-11,COMMUNITIES
Nottinghamshire County Council,02-00838,JOHNSON BROS TOURS LIMITED,Transport And Travel,Travel Agencies And Booking,"3,087.52",0,"3,087.52",04-May-11,COMMUNITIES
Nottinghamshire County Council,02-00839,JOHNSON BROS TOURS LIMITED,Transport And Travel,Travel Agencies And Booking,"1,024.10",0,"1,024.10",04-May-11,COMMUNITIES
Nottinghamshire County Council,02-00840,JOHNSON BROS TOURS LIMITED,Transport And Travel,Travel Agencies And Booking,"3,210.57",0,"3,210.57",04-May-11,COMMUNITIES
Nottinghamshire County Council,02-00841,JOHNSON BROS TOURS LIMITED,Transport And Travel,Travel Agencies And Booking,"2,963.55",0,"2,963.55",04-May-11,COMMUNITIES
Nottinghamshire County Council,02-00841,JOHNSON BROS TOURS LIMITED,Transport And Travel,Travel Agencies And Booking,-308,0,-308,04-May-11,COMMUNITIES
Nottinghamshire County Council,02-00842,JOHNSON BROS TOURS LIMITED,Transport And Travel,Travel Agencies And Booking,"4,284.94",0,"4,284.94",04-May-11,COMMUNITIES
Nottinghamshire County Council,02-00842,JOHNSON BROS TOURS LIMITED,Transport And Travel,Travel Agencies And Booking,-459.95,0,-459.95,04-May-11,COMMUNITIES
Nottinghamshire County Council,02-00843,JOHNSON BROS TOURS LIMITED,Transport And Travel,Travel Agencies And Booking,"3,567.36",0,"3,567.36",04-May-11,COMMUNITIES
Nottinghamshire County Council,02-00844,JOHNSON BROS TOURS LIMITED,Transport And Travel,Travel Agencies And Booking,"4,284.94",0,"4,284.94",04-May-11,COMMUNITIES
Nottinghamshire County Council,02-00844,JOHNSON BROS TOURS LIMITED,Transport And Travel,Travel Agencies And Booking,-427.65,0,-427.65,04-May-11,COMMUNITIES
Nottinghamshire County Council,02-00845,JOHNSON BROS TOURS LIMITED,Transport And Travel,Travel Agencies And Booking,"4,284.94",0,"4,284.94",04-May-11,COMMUNITIES
Nottinghamshire County Council,02-00845,JOHNSON BROS TOURS LIMITED,Transport And Travel,Travel Agencies And Booking,-397.4,0,-397.4,04-May-11,COMMUNITIES
Nottinghamshire County Council,02-00846,JOHNSON BROS TOURS LIMITED,Transport And Travel,Travel Agencies And Booking,"3,044.58",0,"3,044.58",04-May-11,COMMUNITIES
Nottinghamshire County Council,02-00846,JOHNSON BROS TOURS LIMITED,Transport And Travel,Travel Agencies And Booking,-310.05,0,-310.05,04-May-11,COMMUNITIES
